NUMERO_MANDATO;RIGA_MANDATO;QUIET;IMPORTO_RIGA;IMPORTO_MANDATO;BENEFICIARIO;CIG;TITOLO_PAGAMENTO;DATA_MANDATO;CAPITOLO;ARTICOLO;NUMERO_IMPEGNO;TITOLO;DESCR_TITOLO;LIVELLO_II;DESCR_LIVELLO_II;LIVELLO_III;DESCR_LIVELLO_III;LIVELLO_IV;DESCR_LIVELLO_IV;LIVELLO_V;DESCR_LIVELLO_V;DATA_PAG_EFF;
1;1;0;"88,28";"88,28";VODAFONE OMNITEL B.V.;ZD11381BD3;SALDO Fatt.n. AG20632847  del 28/12/2016 Spese per telefonia mobile periodo dal 29 ottobre 2016 al 23 dicembre 2016;16-01-2017;4751;0;88;1;Spese correnti;3;Acquisto di beni e servizi;2;Acquisto di servizi;5;Utenze e canoni;2;Telefonia mobile;16-01-2017;
2;1;0;"57,49";"156,53";Illumia S.p.A.;Z0E14167CF;SALDO Fatt.n. 21447-PE  del 22/12/2016 Fornitura energia elettrica utenza ex scuola Vo' Vecchio periodo ottobre/novembre 2016;17-01-2017;1330;0;376;1;Spese correnti;3;Acquisto di beni e servizi;2;Acquisto di servizi;5;Utenze e canoni;4;Energia elettrica;17-01-2017;
2;2;0;"99,04";"156,53";Illumia S.p.A.;Z0E14167CF;SALDO Fatt.n. 21449-PE  del 22/12/2016 Fornitura energia elettrica utenza ex scuola Zovon periodo ottobre / novembre 2016;17-01-2017;1330;0;376;1;Spese correnti;3;Acquisto di beni e servizi;2;Acquisto di servizi;5;Utenze e canoni;4;Energia elettrica;17-01-2017;
3;1;0;"24,14";"141,43";Illumia S.p.A.;Z0E14167CF;SALDO Fatt.n. 21446-PE  del 22/12/2016 Fornitura energia elettrica utenza illuminazione pubblica (POD IT001E32268714) mese di novembre 2016;17-01-2017;7420;0;105;1;Spese correnti;3;Acquisto di beni e servizi;2;Acquisto di servizi;5;Utenze e canoni;4;Energia elettrica;17-01-2017;
3;2;0;"117,29";"141,43";Illumia S.p.A.;Z0E14167CF;SALDO Fatt.n. 21462-PE  del 22/12/2016 Fornitura energia elettrica utenza torretta Piazzetta Spolverato mese di novembre 2016;17-01-2017;7420;0;105;1;Spese correnti;3;Acquisto di beni e servizi;2;Acquisto di servizi;5;Utenze e canoni;4;Energia elettrica;17-01-2017;
4;1;0;"420,00";"420,00";Illumia S.p.A.;Z0E14167CF;ACCONTO Fatt.n. 21448-PE  del 22/12/2016 Fornitura energia elettrica utenza Polo Scolastico mese di novembre 2016;17-01-2017;28001;0;97;1;Spese correnti;3;Acquisto di beni e servizi;2;Acquisto di servizi;5;Utenze e canoni;4;Energia elettrica;17-01-2017;
5;1;0;"420,00";"420,00";Illumia S.p.A.;Z0E14167CF;ACCONTO Fatt.n. 21448-PE  del 22/12/2016 Fornitura energia elettrica utenza Polo Scolastico mese di novembre 2016;17-01-2017;29701;0;98;1;Spese correnti;3;Acquisto di beni e servizi;2;Acquisto di servizi;5;Utenze e canoni;4;Energia elettrica;17-01-2017;
6;1;0;"439,78";"439,78";Illumia S.p.A.;Z0E14167CF;SALDO Fatt.n. 21448-PE  del 22/12/2016 Fornitura energia elettrica utenza Polo Scolastico mese di novembre 2016;17-01-2017;31801;0;99;1;Spese correnti;3;Acquisto di beni e servizi;2;Acquisto di servizi;5;Utenze e canoni;4;Energia elettrica;17-01-2017;
7;1;0;"44,29";"789,05";Illumia S.p.A.;Z0E14167CF;SALDO Fatt.n. 21453-PE  del 22/12/2016 Fornitura energia elettrica utenza Villa Venier (POD IT001E35511792) periodo ottobre / novembre 2016;17-01-2017;1312;0;103;1;Spese correnti;3;Acquisto di beni e servizi;2;Acquisto di servizi;5;Utenze e canoni;4;Energia elettrica;17-01-2017;
7;2;0;"44,29";"789,05";Illumia S.p.A.;Z0E14167CF;SALDO Fatt.n. 21457-PE  del 22/12/2016 Fornitura energia elettrica utenza Villa Venier (POD IT001E35511782) periodo ottobre / novembre 2016;17-01-2017;1312;0;103;1;Spese correnti;3;Acquisto di beni e servizi;2;Acquisto di servizi;5;Utenze e canoni;4;Energia elettrica;17-01-2017;
7;3;0;"97,53";"789,05";Illumia S.p.A.;Z0E14167CF;SALDO Fatt.n. 21452-PE  del 22/12/2016 Fornitura energia elettrica utenza Villa Venier (POD IT001E04020277) periodo ottobre / novembre 2016;17-01-2017;1312;0;103;1;Spese correnti;3;Acquisto di beni e servizi;2;Acquisto di servizi;5;Utenze e canoni;4;Energia elettrica;17-01-2017;
7;4;0;"97,53";"789,05";Illumia S.p.A.;Z0E14167CF;SALDO Fatt.n. 21460-PE  del 22/12/2016 Fornitura energia elettrica utenza Villa Venier (POD IT001E04020273) periodo ottobre / novembre 2016;17-01-2017;1312;0;103;1;Spese correnti;3;Acquisto di beni e servizi;2;Acquisto di servizi;5;Utenze e canoni;4;Energia elettrica;17-01-2017;
7;5;0;"505,41";"789,05";Illumia S.p.A.;Z0E14167CF;SALDO Fatt.n. 21456-PE  del 22/12/2016 Fornitura energia elettrica utenza Villa Venier (POD IT001E34674161) mese di novembre 2016;17-01-2017;1312;0;103;1;Spese correnti;3;Acquisto di beni e servizi;2;Acquisto di servizi;5;Utenze e canoni;4;Energia elettrica;17-01-2017;
8;1;0;"97,53";"10.563,70";Illumia S.p.A.;Z0E14167CF;SALDO Fatt.n. 21454-PE  del 22/12/2016 Fornitura energia elettrica utenza illuminazione pubblica (POD IT001E04199192) periodo ottobre / novembre 2016;17-01-2017;7420;0;377;1;Spese correnti;3;Acquisto di beni e servizi;2;Acquisto di servizi;5;Utenze e canoni;4;Energia elettrica;17-01-2017;
8;2;0;"212,49";"10.563,70";Illumia S.p.A.;Z0E14167CF;SALDO Fatt.n. 21450-PE  del 22/12/2016 Fornitura energia elettrica utenza illuminazione pubblica (POD IT001E33625246) periodo ottobre / novembre 2016;17-01-2017;7420;0;377;1;Spese correnti;3;Acquisto di beni e servizi;2;Acquisto di servizi;5;Utenze e canoni;4;Energia elettrica;17-01-2017;
8;3;0;"309,37";"10.563,70";Illumia S.p.A.;Z0E14167CF;SALDO Fatt.n. 21461-PE  del 22/12/2016 Fornitura energia elettrica utenza illuminazione pubblica (POD IT001E04199191) mese di novembre 2016;17-01-2017;7420;0;377;1;Spese correnti;3;Acquisto di beni e servizi;2;Acquisto di servizi;5;Utenze e canoni;4;Energia elettrica;17-01-2017;
8;4;0;"9.944,31";"10.563,70";Illumia S.p.A.;Z0E14167CF;SALDO Fatt.n. 21445-PE  del 22/12/2016 Fornitura energia elettrica utenze illuminazione pubblica mese di novembre 2016;17-01-2017;7420;0;377;1;Spese correnti;3;Acquisto di beni e servizi;2;Acquisto di servizi;5;Utenze e canoni;4;Energia elettrica;17-01-2017;
9;1;0;"281,52";"281,52";Illumia S.p.A.;Z0E14167CF;ACCONTO Fatt.n. 21459-PE  del 22/12/2016 Fornitura energia elettrica utenza Sede Municipale mese di novembre 2016;17-01-2017;4751;0;96;1;Spese correnti;3;Acquisto di beni e servizi;2;Acquisto di servizi;5;Utenze e canoni;4;Energia elettrica;17-01-2017;
10;1;0;"178,02";"178,02";Illumia S.p.A.;Z0E14167CF;SALDO Fatt.n. 21459-PE  del 22/12/2016 Fornitura energia elettrica utenza Sede Municipale mese di novembre 2016;17-01-2017;4751;0;375;1;Spese correnti;3;Acquisto di beni e servizi;2;Acquisto di servizi;5;Utenze e canoni;4;Energia elettrica;17-01-2017;
11;1;0;"117,08";"584,44";Illumia S.p.A.;Z0E14167CF;SALDO Fatt.n. 21458-PE  del 22/12/2016 Fornitura energia elettrica utenza impianto sportivo Zovon mese di novembre 2016;17-01-2017;64981;0;101;1;Spese correnti;3;Acquisto di beni e servizi;2;Acquisto di servizi;5;Utenze e canoni;4;Energia elettrica;17-01-2017;
11;2;0;"467,36";"584,44";Illumia S.p.A.;Z0E14167CF;SALDO Fatt.n. 21451-PE  del 22/12/2016 Fornitura energia elettrica utenza impianto sportivo Via G. Marconi mese di novembre 2016;17-01-2017;64981;0;101;1;Spese correnti;3;Acquisto di beni e servizi;2;Acquisto di servizi;5;Utenze e canoni;4;Energia elettrica;17-01-2017;
12;1;0;"206,69";"206,69";Illumia S.p.A.;Z0E14167CF;SALDO Fatt.n. 21463-PE  del 22/12/2016 Fornitura energia elettrica utenza magazzino comunale periodo ottobre / novembre 2016;17-01-2017;78701;0;102;1;Spese correnti;3;Acquisto di beni e servizi;2;Acquisto di servizi;5;Utenze e canoni;4;Energia elettrica;17-01-2017;
13;1;0;"380,30";"380,30";Illumia S.p.A.;Z0E14167CF;SALDO Fatt.n. 21455-PE  del 22/12/2016 Fornitura energia elettrica utenza immobile Piazzetta Martiri mese di novembre 2016;17-01-2017;1405;0;104;1;Spese correnti;3;Acquisto di beni e servizi;2;Acquisto di servizi;5;Utenze e canoni;4;Energia elettrica;17-01-2017;
14;1;0;"13.761,04";"13.761,04";DE VIZIA TRANSFER S.P.A.;Z941520100;SALDO Fatt.n. V3-31809  del 30/11/2016 Servizio di raccolta e trasporto rifiuti mese di novembre 2016;18-01-2017;5780;0;334;1;Spese correnti;3;Acquisto di beni e servizi;2;Acquisto di servizi;15;Contratti di servizio pubblico;4;Contratti di servizio per la raccolta rifiuti;18-01-2017;
15;1;0;"13.424,91";"13.424,91";PROVINCIA DI PADOVA; ;"Addizionale provinciale (5%) su incassi tributo TARI anni 2014, 2015 e 2016 - A.L. RAG. N. 115 DEL 21.12.2016";18-01-2017;1490;0;423;1;Spese correnti;4;Trasferimenti correnti;1;Trasferimenti correnti a Amministrazioni Pubbliche;2;Trasferimenti correnti a Amministrazioni Locali;2;Trasferimenti correnti a Province;18-01-2017;
17;1;0;"1.534,62";"1.534,62";CODESS SOCIALE;53979365B3;ACCONTO Fatt.n. 6391/PA  del 19/12/2016 SERVIZIO DI ASSISTENZA SOCIALE E DOMICILIARE mese di novembre 2016;18-01-2017;6980;0;43;1;Spese correnti;3;Acquisto di beni e servizi;2;Acquisto di servizi;15;Contratti di servizio pubblico;9;Contratti di servizio di assistenza sociale domiciliare;18-01-2017;
18;1;0;"2.857,40";"2.857,40";CODESS SOCIALE;53979365B3;SALDO Fatt.n. 6391/PA  del 19/12/2016 SERVIZIO DI ASSISTENZA SOCIALE E DOMICILIARE mese di novembre 2016;18-01-2017;6990;0;44;1;Spese correnti;3;Acquisto di beni e servizi;2;Acquisto di servizi;15;Contratti di servizio pubblico;9;Contratti di servizio di assistenza sociale domiciliare;18-01-2017;
19;1;0;"1.000,00";"1.000,00";PARROCCHIA "NATIVITA' BEATA VERGINE"; ;Contributo a Scuola dell'Infanzia Asilo Nido Integrato "S. Maria Goretti" anno 2015 - A.L. SEG. N. 130 DEL 22.12.2016;18-01-2017;6180;0;245;1;Spese correnti;4;Trasferimenti correnti;4;Trasferimenti correnti a Istituzioni Sociali Private;1;Trasferimenti correnti a Istituzioni Sociali Private;1;Trasferimenti correnti a Istituzioni Sociali Private;18-01-2017;
20;1;0;"2.000,00";"2.000,00";PARROCCHIA "NATIVITA' BEATA VERGINE"; ;Integrazione contributo per spese funzionamento Scuola d'Infanzia - Asilo Nido Integrato "S. Maria Goretti" - Anno 2015 - a.l. seg. n. 130 del 22.12.2016;18-01-2017;6180;0;318;1;Spese correnti;4;Trasferimenti correnti;4;Trasferimenti correnti a Istituzioni Sociali Private;1;Trasferimenti correnti a Istituzioni Sociali Private;1;Trasferimenti correnti a Istituzioni Sociali Private;18-01-2017;
21;1;0;"184,86";"184,86";POSTE ITALIANE SPA;Z901438A4F;SALDO Fatt.n. 8716360748  del 21/12/2016 Servizio affrancatura mese di novembre 2016;18-01-2017;4800;0;398;1;Spese correnti;3;Acquisto di beni e servizi;2;Acquisto di servizi;16;Servizi amministrativi;2;Spese postali;18-01-2017;
22;1;0;"7.924,31";"7.924,31";S.E.S.A. SPA;Z11182D6F2;SALDO Fatt.n. 2000766  del 30/11/2016 Servizio di smaltimento rifiuti mese di novembre 2016;18-01-2017;5780;0;33;1;Spese correnti;3;Acquisto di beni e servizi;2;Acquisto di servizi;15;Contratti di servizio pubblico;5;Contratti di servizio per il conferimento in discarica dei rifiuti;18-01-2017;
23;1;0;"780,80";"780,80";MATTIUSSI ECOLOGIA S.p.a.;ZF61BCE3DD;SALDO Fatt.n. 200 EL  del 20/12/2016 Fornitura contenitori rifiuti per nuovi utenti;18-01-2017;5787;0;367;1;Spese correnti;3;Acquisto di beni e servizi;1;Acquisto di beni;2;Altri beni di consumo;999;Altri beni e materiali di consumo n.a.c.;18-01-2017;
24;1;0;"1.744,60";"1.744,60";VENETA SICUREZZA E SEGNALETICA STRADALE  SRL;Z831BD91C9;SALDO Fatt.n. 152  del 27/12/2016 Sistemazione stradale e posa segnaletica danneggiata a seguito sinistro del 14.10.2016;18-01-2017;1302;0;382;1;Spese correnti;3;Acquisto di beni e servizi;2;Acquisto di servizi;9;Manutenzione ordinaria e riparazioni;8;Manutenzione ordinaria e riparazioni di beni immobili;18-01-2017;
25;1;0;"180,00";"180,00";EL.PO srl;Z371A735EA;ACCONTO Fatt.n. 002647  del 27/12/2016 Servizio di gestione e manutenzione ascensori c/o immobili comunali per il periodo dal 01.07.2016 al 31.12.2016;18-01-2017;3180;0;293;1;Spese correnti;3;Acquisto di beni e servizi;1;Acquisto di beni;2;Altri beni di consumo;999;Altri beni e materiali di consumo n.a.c.;18-01-2017;
26;1;0;"318,35";"318,35";EL.PO srl;Z371A735EA;ACCONTO Fatt.n. 002647  del 27/12/2016 Servizio di gestione e manutenzione ascensori c/o immobili comunali per il periodo dal 01.07.2016 al 31.12.2016;18-01-2017;476;0;292;1;Spese correnti;3;Acquisto di beni e servizi;2;Acquisto di servizi;9;Manutenzione ordinaria e riparazioni;8;Manutenzione ordinaria e riparazioni di beni immobili;18-01-2017;
27;1;0;"240,00";"240,00";EL.PO srl;Z371A735EA;ACCONTO Fatt.n. 002647  del 27/12/2016 Servizio di gestione e manutenzione ascensori c/o immobili comunali per il periodo dal 01.07.2016 al 31.12.2016;18-01-2017;1400;0;291;1;Spese correnti;3;Acquisto di beni e servizi;2;Acquisto di servizi;9;Manutenzione ordinaria e riparazioni;8;Manutenzione ordinaria e riparazioni di beni immobili;18-01-2017;
28;1;0;"330,00";"330,00";EL.PO srl;Z371A735EA;SALDO Fatt.n. 002647  del 27/12/2016 Servizio di gestione e manutenzione ascensori c/o immobili comunali per il periodo dal 01.07.2016 al 31.12.2016;18-01-2017;1310;0;290;1;Spese correnti;3;Acquisto di beni e servizi;2;Acquisto di servizi;9;Manutenzione ordinaria e riparazioni;8;Manutenzione ordinaria e riparazioni di beni immobili;18-01-2017;
50;1;0;"1.207,80";"1.207,80";BOGONI s.r.l.;ZDA1C694BF;SALDO Fatt.n. PA00003  del 30/12/2016 Fornitura gasolio da riscaldamento per impianti sportivi;25-01-2017;6498;0;416;1;Spese correnti;3;Acquisto di beni e servizi;1;Acquisto di beni;2;Altri beni di consumo;999;Altri beni e materiali di consumo n.a.c.;25-01-2017;
51;1;0;"1.900,00";"1.900,00";MARTINI LUCIANO SRL;Z70188CBBO;ACCONTO Fatt.n. 1  del 12/01/2017 Lavori sistemazioni stradali a tutto il 31.12.2016;25-01-2017;7335;0;428;1;Spese correnti;3;Acquisto di beni e servizi;2;Acquisto di servizi;9;Manutenzione ordinaria e riparazioni;8;Manutenzione ordinaria e riparazioni di beni immobili;25-01-2017;
52;1;0;"950,23";"950,23";MARTINI LUCIANO SRL;Z70188CBBO;SALDO Fatt.n. 1  del 12/01/2017 Lavori sistemazioni stradali a tutto il 31.12.2016;25-01-2017;1302;0;427;1;Spese correnti;3;Acquisto di beni e servizi;2;Acquisto di servizi;9;Manutenzione ordinaria e riparazioni;8;Manutenzione ordinaria e riparazioni di beni immobili;25-01-2017;
53;1;0;"1.045,00";"1.045,00";ZEFIRO SRL;Z3D1A45638;ACCONTO Fatt.n. 47/PA  del 31/12/2016 Servizio di pulizia edifici comunali MESE di DICEMBRE 2016;25-01-2017;475;0;393;1;Spese correnti;3;Acquisto di beni e servizi;2;Acquisto di servizi;99;Altri servizi;999;Altri servizi diversi n.a.c.;25-01-2017;
54;1;0;"262,18";"262,18";ZEFIRO SRL;Z3D1A45638;ACCONTO Fatt.n. 47/PA  del 31/12/2016 Servizio di pulizia edifici comunali MESE di DICEMBRE 2016;25-01-2017;2973;0;394;1;Spese correnti;3;Acquisto di beni e servizi;2;Acquisto di servizi;99;Altri servizi;999;Altri servizi diversi n.a.c.;25-01-2017;
55;1;0;"294,75";"294,75";ZEFIRO SRL;Z3D1A45638;ACCONTO Fatt.n. 47/PA  del 31/12/2016 Servizio di pulizia edifici comunali MESE di DICEMBRE 2016;25-01-2017;37601;0;395;1;Spese correnti;3;Acquisto di beni e servizi;2;Acquisto di servizi;99;Altri servizi;999;Altri servizi diversi n.a.c.;25-01-2017;
56;1;0;"174,85";"174,85";ZEFIRO SRL;Z3D1A45638;SALDO Fatt.n. 47/PA  del 31/12/2016 Servizio di pulizia edifici comunali MESE di DICEMBRE 2016;25-01-2017;1400;0;396;1;Spese correnti;3;Acquisto di beni e servizi;2;Acquisto di servizi;9;Manutenzione ordinaria e riparazioni;8;Manutenzione ordinaria e riparazioni di beni immobili;25-01-2017;
57;1;0;"4.399,45";"4.399,45";COOPERATIVA SOCIALE SERVIZI ASSOCIATI;Z561A7EDC6;SALDO Fatt.n. D-518  del 31/12/2016 Servizio di trasporto scolastico  mese di dicembre 2016;25-01-2017;3413;0;319;1;Spese correnti;3;Acquisto di beni e servizi;2;Acquisto di servizi;15;Contratti di servizio pubblico;2;Contratti di servizio di trasporto scolastico;25-01-2017;
58;1;0;"13.761,04";"13.761,04";DE VIZIA TRANSFER S.P.A.;Z941520100;SALDO Fatt.n. V3-32001  del 31/12/2016 Servizio di raccolta RSU mese di dicembre 2016;25-01-2017;5780;0;334;1;Spese correnti;3;Acquisto di beni e servizi;2;Acquisto di servizi;15;Contratti di servizio pubblico;4;Contratti di servizio per la raccolta rifiuti;25-01-2017;
59;1;0;"500,20";"500,20";Q. E B. GRAFICHE S.r.l.;Z121CA305E;SALDO Fatt.n. 29/PA  del 29/12/2016 Fornitura telo 450 x 430 con stampa monofacciale per lavori polo scolastico;25-01-2017;10380;0;420;2;Spese in conto capitale;2;Investimenti fissi lordi e acquisto di terreni;1;Beni materiali;9;Beni immobili;3;Fabbricati ad uso scolastico;25-01-2017;
60;1;0;"621,00";"621,00";BARBIN IMPIANTI Srl;ZCA1AD03BA;SALDO Fatt.n. 96S  del 31/12/2016 Saldo lavori elettrici nuova cucina polo scolastico;25-01-2017;10350;0;429;2;Spese in conto capitale;2;Investimenti fissi lordi e acquisto di terreni;1;Beni materiali;9;Beni immobili;3;Fabbricati ad uso scolastico;25-01-2017;
61;1;0;"182,40";"182,40";MAGAZZINI AMBROSI S.A.S. DI AMBROSI FABIO E TIZIANA;ZD91A8D141;SALDO Fatt.n. 18  del 30/12/2016 Fornitura materiale di ferramenta per manutenzione ordinaria;25-01-2017;1300;0;257;1;Spese correnti;3;Acquisto di beni e servizi;1;Acquisto di beni;2;Altri beni di consumo;999;Altri beni e materiali di consumo n.a.c.;25-01-2017;
62;1;0;"8.892,50";"8.892,50";Cabi Broker Di Assicurazioni Srl;Z091B04FDB;"Premi assicurativi relativi alle polizze n. 709, M10919786 e M10919075 in scadenza il 31.01.2017 - atto liq. UTC n. 14 del 26.01.2017";26-01-2017;477;0;8;1;Spese correnti;10;Altre spese correnti;4;Premi di assicurazione;99;Altri premi di assicurazione n.a.c.;999;Altri premi di assicurazione n.a.c.;26-01-2017;
64;1;0;"716,13";"716,13";E.ON Energia S.p.a.;Z711FE6B2;ACCONTO Fatt.n. 40000319  del 09/01/2017 Fornitura gas naturale utenza Polo Scolastico periodo dal 01.11.2016 al 30.11.2016;07-02-2017;28001;0;92;1;Spese correnti;3;Acquisto di beni e servizi;2;Acquisto di servizi;5;Utenze e canoni;6;Gas;07-02-2017;
65;1;0;"716,13";"716,13";E.ON Energia S.p.a.;Z7113FE6B2;ACCONTO Fatt.n. 40000319  del 09/01/2017 Fornitura gas naturale utenza Polo Scolastico periodo dal 01.11.2016 al 30.11.2016;07-02-2017;29701;0;93;1;Spese correnti;3;Acquisto di beni e servizi;2;Acquisto di servizi;5;Utenze e canoni;6;Gas;07-02-2017;
66;1;0;"716,06";"716,06";E.ON Energia S.p.a.;Z7113FE6B2;SALDO Fatt.n. 40000319  del 09/01/2017 Fornitura gas naturale utenza Polo Scolastico periodo dal 01.11.2016 al 30.11.2016;07-02-2017;31801;0;94;1;Spese correnti;3;Acquisto di beni e servizi;2;Acquisto di servizi;5;Utenze e canoni;6;Gas;07-02-2017;
67;1;0;"748,95";"748,95";E.ON Energia S.p.a.;Z7113FE6B2;ACCONTO Fatt.n. 40000318  del 09/01/2017 Fornitura gas naturale utenza Sede Municipale mese di novembre 2016;07-02-2017;4751;0;91;1;Spese correnti;3;Acquisto di beni e servizi;2;Acquisto di servizi;5;Utenze e canoni;6;Gas;07-02-2017;
68;1;0;"29,27";"206,04";E.ON Energia S.p.a.;Z7113FE6B2;SALDO Fatt.n. 40000318  del 09/01/2017 Fornitura gas naturale utenza Sede Municipale mese di novembre 2016;07-02-2017;4751;0;449;1;Spese correnti;3;Acquisto di beni e servizi;2;Acquisto di servizi;5;Utenze e canoni;6;Gas;07-02-2017;
68;2;0;"176,77";"206,04";E.ON Energia S.p.a.;Z7113FE6B2;SALDO Fatt.n. 40000554  del 09/01/2017 Fornitura gas naturale utenza sede Municipale conguaglio periodo dal 05.05.2016 al 14.11.2016;07-02-2017;4751;0;449;1;Spese correnti;3;Acquisto di beni e servizi;2;Acquisto di servizi;5;Utenze e canoni;6;Gas;07-02-2017;
69;1;0;"838,15";"838,15";E.ON Energia S.p.a.;Z7113FE6B2;SALDO Fatt.n. 40000320  del 09/01/2017 Fornitura gas naturale utenza immobile Piazzetta Martiri mese di novembre 2016;07-02-2017;1405;0;90;1;Spese correnti;3;Acquisto di beni e servizi;2;Acquisto di servizi;5;Utenze e canoni;6;Gas;07-02-2017;
78;1;0;"1.774,75";"1.774,75";TREVISAN VANESSA; ;Indennità di funzione spettante al Sindaco gennaio 2017;08-02-2017;10;0;9;1;Spese correnti;3;Acquisto di beni e servizi;2;Acquisto di servizi;1;Organi e incarichi istituzionali dell'amministrazione;1;Organi istituzionali dell'amministrazione - Indennità;08-02-2017;
79;1;0;"177,48";"177,48";CALAON SIMONE; ;Indennità di funzione spettante al vice-sindaco gennaio 2017;08-02-2017;10;0;10;1;Spese correnti;3;Acquisto di beni e servizi;2;Acquisto di servizi;1;Organi e incarichi istituzionali dell'amministrazione;1;Organi istituzionali dell'amministrazione - Indennità;08-02-2017;
80;1;0;"266,21";"266,21";SANTIMARIA ANDREA; ;Indennita' di funzione assessore gennaio 2017;08-02-2017;10;0;11;1;Spese correnti;3;Acquisto di beni e servizi;2;Acquisto di servizi;1;Organi e incarichi istituzionali dell'amministrazione;1;Organi istituzionali dell'amministrazione - Indennità;08-02-2017;
81;1;0;"133,11";"133,11";LAZZARETTO ROBERTA; ;Indennità di funzione assessore gennaio 2017;08-02-2017;10;0;12;1;Spese correnti;3;Acquisto di beni e servizi;2;Acquisto di servizi;1;Organi e incarichi istituzionali dell'amministrazione;1;Organi istituzionali dell'amministrazione - Indennità;08-02-2017;
82;1;0;"266,21";"266,21";ZAVATTIERO AGOSTINO; ;Indennità di funzione assessore gennaio 2017;08-02-2017;10;0;13;1;Spese correnti;3;Acquisto di beni e servizi;2;Acquisto di servizi;1;Organi e incarichi istituzionali dell'amministrazione;1;Organi istituzionali dell'amministrazione - Indennità;08-02-2017;
85;1;0;"37,82";"37,82";BIBLIO S.r.l.;Z8B1BF200D;SALDO Fatt.n. 293  del 31/12/2016 Fornitura etichette per libri biblioteca;08-02-2017;3760;0;383;1;Spese correnti;3;Acquisto di beni e servizi;2;Acquisto di servizi;99;Altri servizi;999;Altri servizi diversi n.a.c.;08-02-2017;
86;1;0;"806,25";"806,25";CASA DI RIPOSO "A. SIMIONATI"; ;SALDO Fatt.n. 160/E  del 31/12/2016 Quota retta R.R. mese di dicembre 2016;08-02-2017;6875;0;205;1;Spese correnti;3;Acquisto di beni e servizi;2;Acquisto di servizi;99;Altri servizi;999;Altri servizi diversi n.a.c.;08-02-2017;
87;1;0;"1.386,99";"4.440,80";FALTRACCO CLAUDIO; ;SALDO Fatt.n. 2/E  del 19/01/2017 Saldo compenso per attivita' di revisore dei conti anno 2016;08-02-2017;576;0;35;1;Spese correnti;3;Acquisto di beni e servizi;2;Acquisto di servizi;1;Organi e incarichi istituzionali dell'amministrazione;8;"Compensi agli organi istituzionali di revisione, di controllo ed altri incarichi istituzionali dell'amministrazione";08-02-2017;
87;2;0;"3.053,81";"4.440,80";FALTRACCO CLAUDIO; ;SALDO Fatt.n. 1/E  del 18/01/2017 Acconto compenso per attivita' di revisore dei conti anno 2016;08-02-2017;576;0;35;1;Spese correnti;3;Acquisto di beni e servizi;2;Acquisto di servizi;1;Organi e incarichi istituzionali dell'amministrazione;8;"Compensi agli organi istituzionali di revisione, di controllo ed altri incarichi istituzionali dell'amministrazione";08-02-2017;
89;1;0;"1.216,96";"1.216,96";E.ON Energia S.p.a.;Z7113FE6B2;ACCONTO Fatt.n. 40001765  del 01/02/2017 Fornitura gas naturale utenza immobile Piazzetta Martiri periodo dal 29.11.2016 al 28.12.2016;09-02-2017;1405;0;90;1;Spese correnti;3;Acquisto di beni e servizi;2;Acquisto di servizi;5;Utenze e canoni;6;Gas;09-02-2017;
90;1;0;"500,00";"500,00";E.ON Energia S.p.a.;Z7113FE6B2;ACCONTO Fatt.n. 40001765  del 01/02/2017 Fornitura gas naturale utenza immobile Piazzetta Martiri periodo dal 29.11.2016 al 28.12.2016;09-02-2017;1405;0;448;1;Spese correnti;3;Acquisto di beni e servizi;2;Acquisto di servizi;5;Utenze e canoni;6;Gas;09-02-2017;
91;1;0;"69,12";"1.607,41";E.ON Energia S.p.a.;Z7113FE6B2;SALDO Fatt.n. 40001765  del 01/02/2017 Fornitura gas naturale periodo dal 29.11.2016 al 28.12.2016;09-02-2017;4751;0;449;1;Spese correnti;3;Acquisto di beni e servizi;2;Acquisto di servizi;5;Utenze e canoni;6;Gas;09-02-2017;
91;2;0;"292,80";"1.607,41";E.ON Energia S.p.a.;Z7113FE6B2;SALDO Fatt.n. 40001071  del 01/02/2017 Fornitura gas naturale utenza Sede Municipale (contatore 30155066) periodo dal 15 novembre al 31 dicembre 2016);09-02-2017;4751;0;449;1;Spese correnti;3;Acquisto di beni e servizi;2;Acquisto di servizi;5;Utenze e canoni;6;Gas;09-02-2017;
91;3;0;"1.245,49";"1.607,41";E.ON Energia S.p.a.;Z7113FE6B2;SALDO Fatt.n. 40001763  del 01/02/2017 Forbitura gas naturale utenza Sede Municipale (contatore 1545006563) mese di dicembre 2016;09-02-2017;4751;0;449;1;Spese correnti;3;Acquisto di beni e servizi;2;Acquisto di servizi;5;Utenze e canoni;6;Gas;09-02-2017;
92;1;0;"281,85";"281,85";E.ON Energia S.p.a.;Z7113FE6B2;SALDO Fatt.n. 40001807  del 01/02/2017 Fornitura gas naturale utenza Villa Venier periodo dal 15.11.2016 al 31.12.2016;09-02-2017;1312;0;95;1;Spese correnti;3;Acquisto di beni e servizi;2;Acquisto di servizi;5;Utenze e canoni;6;Gas;09-02-2017;
93;1;0;"1.185,00";"1.185,00";E.ON Energia S.p.a.;Z711FE6B2;ACCONTO Fatt.n. 40001764  del 01/02/2017 Fornitura gas naturale utenza Polo Scolastico mese di dicembre 2016;09-02-2017;28001;0;92;1;Spese correnti;3;Acquisto di beni e servizi;2;Acquisto di servizi;5;Utenze e canoni;6;Gas;09-02-2017;
94;1;0;"1.185,00";"1.185,00";E.ON Energia S.p.a.;Z7113FE6B2;ACCONTO Fatt.n. 40001764  del 01/02/2017 Fornitura gas naturale utenza Polo Scolastico mese di dicembre 2016;09-02-2017;29701;0;93;1;Spese correnti;3;Acquisto di beni e servizi;2;Acquisto di servizi;5;Utenze e canoni;6;Gas;09-02-2017;
95;1;0;"1.192,47";"1.192,47";E.ON Energia S.p.a.;Z7113FE6B2;SALDO Fatt.n. 40001764  del 01/02/2017 Fornitura gas naturale utenza Polo Scolastico mese di dicembre 2016;09-02-2017;31801;0;94;1;Spese correnti;3;Acquisto di beni e servizi;2;Acquisto di servizi;5;Utenze e canoni;6;Gas;09-02-2017;
96;1;0;"207,40";"207,40";TECNOCOPIA SNC;Z261D144C3;SALDO Fatt.n. P/8  del 30/01/2017 Fornitura toner per fotocopiatore Kyocera Km2030;10-02-2017;4753;0;6;1;Spese correnti;3;Acquisto di beni e servizi;1;Acquisto di beni;2;Altri beni di consumo;1;"Carta, cancelleria e stampati";10-02-2017;
97;1;0;"439,20";"439,20";TECNOCOPIA SNC;Z561D144F4;SALDO Fatt.n. P/9  del 30/01/2017 Riparazione fotocopiatore Kyocera Km2030 e sostituzione pezzi di ricambio;10-02-2017;4752;0;5;1;Spese correnti;3;Acquisto di beni e servizi;2;Acquisto di servizi;9;Manutenzione ordinaria e riparazioni;5;Manutenzione ordinaria e riparazioni di attrezzature;10-02-2017;
98;1;0;"299,94";"299,94";Sodexo Italia Spa;64630250F4;SALDO Fatt.n. 7400054646  del 31/12/2016 Servizio di sorveglianza alunni scuola primaria durante la mensa  mese di dicembre 2016;10-02-2017;3406;0;328;1;Spese correnti;3;Acquisto di beni e servizi;2;Acquisto di servizi;15;Contratti di servizio pubblico;6;Contratti di servizio per le mense scolastiche;10-02-2017;
99;1;0;"1.784,76";"1.784,76";Sodexo Italia Spa;64630250F4;SALDO Fatt.n. 7400054645  del 31/12/2016 Fornitura pasti agli alunni scuole elementari mese di dicembre 2016;10-02-2017;3406;0;32;1;Spese correnti;3;Acquisto di beni e servizi;2;Acquisto di servizi;15;Contratti di servizio pubblico;6;Contratti di servizio per le mense scolastiche;10-02-2017;
100;1;0;"938,19";"938,19";Sodexo Italia Spa;64630250F4;ACCONTO Fatt.n. 7400054644  del 31/12/2016 Fornitura pasti alunni scuola materna mese di dicembre 2016;10-02-2017;3404;0;24;1;Spese correnti;3;Acquisto di beni e servizi;2;Acquisto di servizi;15;Contratti di servizio pubblico;6;Contratti di servizio per le mense scolastiche;10-02-2017;
101;1;0;"1.493,43";"1.493,43";Sodexo Italia Spa;64630250F4;SALDO Fatt.n. 7400054644  del 31/12/2016 Fornitura pasti alunni scuola materna mese di dicembre 2016;10-02-2017;3404;0;425;1;Spese correnti;3;Acquisto di beni e servizi;2;Acquisto di servizi;15;Contratti di servizio pubblico;6;Contratti di servizio per le mense scolastiche;10-02-2017;
102;1;0;"1.293,35";"1.293,35";Ass. ANTEAS; ;Rimborso quota carburante per servizio di trasporto persone anziane o in difficolta' presso strutture sanitarie anno 2016 - A.L. RESP. 1' AREA N. 10 DEL 08.02.2017;10-02-2017;6955;0;70;1;Spese correnti;4;Trasferimenti correnti;4;Trasferimenti correnti a Istituzioni Sociali Private;1;Trasferimenti correnti a Istituzioni Sociali Private;1;Trasferimenti correnti a Istituzioni Sociali Private;10-02-2017;
103;1;0;"278,09";"278,09";POSTE ITALIANE SPA;Z901438A4F;SALDO Fatt.n. 8717021656  del 26/01/2017 Fattura Elettronica relativa all'Identificativo Rendiconto 2090560131 - dicembre 2016;10-02-2017;4800;0;398;1;Spese correnti;3;Acquisto di beni e servizi;2;Acquisto di servizi;16;Servizi amministrativi;2;Spese postali;10-02-2017;
104;1;0;"1.263,81";"1.263,81";CODESS SOCIALE;53979365B3;ACCONTO Fatt.n. 553/PA  del 01/02/2017 SERVIZIO DI ASSISTENZA SOCIALE E DOMICILIARE mese di dicembre 2016;10-02-2017;6980;0;43;1;Spese correnti;3;Acquisto di beni e servizi;2;Acquisto di servizi;15;Contratti di servizio pubblico;9;Contratti di servizio di assistenza sociale domiciliare;10-02-2017;
105;1;0;"2.748,20";"2.748,20";CODESS SOCIALE;53979365B3;SALDO Fatt.n. 553/PA  del 01/02/2017 SERVIZIO DI ASSISTENZA SOCIALE E DOMICILIARE mese di dicembre 2016;10-02-2017;6990;0;44;1;Spese correnti;3;Acquisto di beni e servizi;2;Acquisto di servizi;15;Contratti di servizio pubblico;9;Contratti di servizio di assistenza sociale domiciliare;10-02-2017;
106;1;0;"64,00";"64,00";AZIENDA ULSS N. 6 EUGANEA - AREA DISTRETTUALE 5; ;SALDO Fatt.n. KW  201700000001  del 23/01/2017 Cattura e installazione microchip a n. 8 cani nel mese di novembre 2016;10-02-2017;5037;0;355;1;Spese correnti;3;Acquisto di beni e servizi;2;Acquisto di servizi;15;Contratti di servizio pubblico;11;Contratti di servizio per la lotta al randagismo;10-02-2017;
110;1;0;"180,00";"180,00";TECNOPRINT di Mora Alessandro;ZDF1BAF950;SALDO Fatt.n. 78/PA  del 29/12/2016 Fornitura fascia tricolore per sindaco;10-02-2017;30;0;356;1;Spese correnti;3;Acquisto di beni e servizi;1;Acquisto di beni;2;Altri beni di consumo;9;Beni per attività di rappresentanza;10-02-2017;
111;1;0;"321,98";"321,98";Illumia S.p.A.;Z0E14167CF;ACCONTO Fatt.n. 1083-PE  del 20/01/2017 Fornitura energia elettrica utenza Sede municipale mese di dicembre 2016;13-02-2017;4751;0;375;1;Spese correnti;3;Acquisto di beni e servizi;2;Acquisto di servizi;5;Utenze e canoni;4;Energia elettrica;13-02-2017;
112;1;0;"220,99";"220,99";Illumia S.p.A.;Z0E14167CF;SALDO Fatt.n. 1083-PE  del 20/01/2017 Fornitura energia elettrica utenza Sede municipale mese di dicembre 2016;13-02-2017;4751;0;30;1;Spese correnti;3;Acquisto di beni e servizi;2;Acquisto di servizi;5;Utenze e canoni;4;Energia elettrica;13-02-2017;
113;1;0;"57,86";"57,86";Illumia S.p.A.;Z0E14167CF;ACCONTO Fatt.n. 1081-PE  del 20/01/2017 Fornitura energia elettrica utenza Villa venier mese di dicembre 2016;13-02-2017;1312;0;103;1;Spese correnti;3;Acquisto di beni e servizi;2;Acquisto di servizi;5;Utenze e canoni;4;Energia elettrica;13-02-2017;
114;1;0;"537,27";"537,27";Illumia S.p.A.;Z0E14167CF;SALDO Fatt.n. 1081-PE  del 20/01/2017 Fornitura energia elettrica utenza Villa venier mese di dicembre 2016;13-02-2017;1312;0;37;1;Spese correnti;3;Acquisto di beni e servizi;2;Acquisto di servizi;5;Utenze e canoni;4;Energia elettrica;13-02-2017;
115;1;0;"125,87";"4.962,10";Illumia S.p.A.;Z8E14167CF;SALDO Fatt.n. 1085-PE  del 20/01/2017 Fornitura energia elettrica utenza torretta Piazzetta Spolverato (POD IT001E35512473) mese di dicembre 2016;13-02-2017;7420;0;447;1;Spese correnti;3;Acquisto di beni e servizi;2;Acquisto di servizi;5;Utenze e canoni;4;Energia elettrica;13-02-2017;
115;2;0;"4.836,23";"4.962,10";Illumia S.p.A.;Z8E14167CF;SALDO Fatt.n. 1076-PE  del 20/01/2017 Fornitura energia elettrica utenze illuminazione pubblica mese di dicembre 2016;13-02-2017;7420;0;447;1;Spese correnti;3;Acquisto di beni e servizi;2;Acquisto di servizi;5;Utenze e canoni;4;Energia elettrica;13-02-2017;
116;1;0;"466,09";"466,09";Illumia S.p.A.;Z8E14167CF;SALDO Fatt.n. 1079-PE  del 20/01/2017 Fornitura energia elettrica utenza impianto sportivo Via Marconi mese di dicembre 2016;13-02-2017;64981;0;445;1;Spese correnti;3;Acquisto di beni e servizi;2;Acquisto di servizi;5;Utenze e canoni;4;Energia elettrica;13-02-2017;
117;1;0;"428,07";"428,07";Illumia S.p.A.;Z0E14167CF;SALDO Fatt.n. 1080-PE  del 20/01/2017 Fornitura energia elettrica utenza immobile Piazzetta Martiri mese di dicembre 2016;13-02-2017;1405;0;104;1;Spese correnti;3;Acquisto di beni e servizi;2;Acquisto di servizi;5;Utenze e canoni;4;Energia elettrica;13-02-2017;
118;1;0;"113,92";"113,92";Illumia S.p.A.;Z0E14167CF;SALDO Fatt.n. 1082-PE  del 20/01/2017 Fornitura energia elettrica utenza impianto sportivo Zovon mese di dicembre 2016;13-02-2017;64981;0;101;1;Spese correnti;3;Acquisto di beni e servizi;2;Acquisto di servizi;5;Utenze e canoni;4;Energia elettrica;13-02-2017;
119;1;0;"78,63";"78,63";Illumia S.p.A.;Z0E14167CF;SALDO Fatt.n. 1077-PE  del 20/01/2017 Fornitura energia elettrica utenza illuminazione pubblica (POD IT001E32268714) mese di dicembre 2016;13-02-2017;7420;0;377;1;Spese correnti;3;Acquisto di beni e servizi;2;Acquisto di servizi;5;Utenze e canoni;4;Energia elettrica;13-02-2017;
120;1;0;"410,00";"410,00";Illumia S.p.A.;Z0E14167CF;ACCONTO Fatt.n. 1078-PE  del 20/01/2017;13-02-2017;28001;0;97;1;Spese correnti;3;Acquisto di beni e servizi;2;Acquisto di servizi;5;Utenze e canoni;4;Energia elettrica;13-02-2017;
121;1;0;"410,00";"410,00";Illumia S.p.A.;Z0E14167CF;ACCONTO Fatt.n. 1078-PE  del 20/01/2017;13-02-2017;29701;0;98;1;Spese correnti;3;Acquisto di beni e servizi;2;Acquisto di servizi;5;Utenze e canoni;4;Energia elettrica;13-02-2017;
122;1;0;"420,39";"420,39";Illumia S.p.A.;Z0E14167CF;SALDO Fatt.n. 1078-PE  del 20/01/2017;13-02-2017;31801;0;99;1;Spese correnti;3;Acquisto di beni e servizi;2;Acquisto di servizi;5;Utenze e canoni;4;Energia elettrica;13-02-2017;
123;1;0;"370,88";"370,88";EURODET PROFESSIONAL SRL;Z221D1C325;SALDO Fatt.n. 3  del 08/02/2017 FORNITURA ATTREZZATURA PER CUCINA POLO SCOLASTICO;14-02-2017;1300;0;24;1;Spese correnti;3;Acquisto di beni e servizi;1;Acquisto di beni;2;Altri beni di consumo;999;Altri beni e materiali di consumo n.a.c.;14-02-2017;
124;1;0;"13.323,94";"13.323,94";DE VIZIA TRANSFER S.P.A.;6848933E4B;SALDO Fatt.n. V3-30004  del 31/01/2017 Servizio di raccolta e trasporto rifiuti mese di gennaio 2017;14-02-2017;5780;0;18;1;Spese correnti;3;Acquisto di beni e servizi;2;Acquisto di servizi;15;Contratti di servizio pubblico;4;Contratti di servizio per la raccolta rifiuti;14-02-2017;
125;1;0;"8.336,09";"8.336,09";S.E.S.A. SPA;Z11182D6F2;SALDO Fatt.n. 2000855  del 31/12/2016 Servizio di smaltimento rifiuti mese di dicembre 2016;14-02-2017;5780;0;33;1;Spese correnti;3;Acquisto di beni e servizi;2;Acquisto di servizi;15;Contratti di servizio pubblico;5;Contratti di servizio per il conferimento in discarica dei rifiuti;14-02-2017;
126;1;0;"173,61";"173,61";PVB SOLUTIONS S.p.a.;Z491B8B1B4;ACCONTO Fatt.n. 2016/966/VPA  del 31/12/2016 Servizio di gestione calore - 1' rata stagione 2016/2017 - periodo 14.10.2016 - 31.12.2016;14-02-2017;1400;0;353;1;Spese correnti;3;Acquisto di beni e servizi;2;Acquisto di servizi;9;Manutenzione ordinaria e riparazioni;8;Manutenzione ordinaria e riparazioni di beni immobili;14-02-2017;
127;1;0;"140,08";"140,08";PVB SOLUTIONS S.p.a.;Z491B8B1B4;ACCONTO Fatt.n. 2016/966/VPA  del 31/12/2016 Servizio di gestione calore - 1' rata stagione 2016/2017 - periodo 14.10.2016 - 31.12.2016;14-02-2017;1310;0;352;1;Spese correnti;3;Acquisto di beni e servizi;2;Acquisto di servizi;9;Manutenzione ordinaria e riparazioni;8;Manutenzione ordinaria e riparazioni di beni immobili;14-02-2017;
128;1;0;"80,53";"80,53";PVB SOLUTIONS S.p.a.;Z491B8B1B4;ACCONTO Fatt.n. 2016/966/VPA  del 31/12/2016 Servizio di gestione calore - 1' rata stagione 2016/2017 - periodo 14.10.2016 - 31.12.2016;14-02-2017;2800;0;351;1;Spese correnti;3;Acquisto di beni e servizi;1;Acquisto di beni;2;Altri beni di consumo;999;Altri beni e materiali di consumo n.a.c.;14-02-2017;
129;1;0;"362,00";"362,00";PVB SOLUTIONS S.p.a.;Z491B8B1B4;ACCONTO Fatt.n. 2016/966/VPA  del 31/12/2016 Servizio di gestione calore - 1' rata stagione 2016/2017 - periodo 14.10.2016 - 31.12.2016;14-02-2017;476;0;350;1;Spese correnti;3;Acquisto di beni e servizi;2;Acquisto di servizi;9;Manutenzione ordinaria e riparazioni;8;Manutenzione ordinaria e riparazioni di beni immobili;14-02-2017;
130;1;0;"200,83";"200,83";PVB SOLUTIONS S.p.a.;Z491B8B1B4;ACCONTO Fatt.n. 2016/966/VPA  del 31/12/2016 Servizio di gestione calore - 1' rata stagione 2016/2017 - periodo 14.10.2016 - 31.12.2016;14-02-2017;2975;0;349;1;Spese correnti;3;Acquisto di beni e servizi;2;Acquisto di servizi;99;Altri servizi;999;Altri servizi diversi n.a.c.;14-02-2017;
131;1;0;"400,20";"400,20";PVB SOLUTIONS S.p.a.;Z491B8B1B4;SALDO Fatt.n. 2016/966/VPA  del 31/12/2016 Servizio di gestione calore - 1' rata stagione 2016/2017 - periodo 14.10.2016 - 31.12.2016;14-02-2017;3185;0;348;1;Spese correnti;3;Acquisto di beni e servizi;2;Acquisto di servizi;99;Altri servizi;999;Altri servizi diversi n.a.c.;14-02-2017;
132;1;0;"364,56";"532,62";LAZZARETTO ROBERTA; ;Rimborso spese viaggio agli amministratori comunali per il 4' trimestre 2016 - A.L. RESP. AREA AMM.VO CONTABILE N. 6 DEL 07.02.2017;14-02-2017;230;0;342;1;Spese correnti;3;Acquisto di beni e servizi;2;Acquisto di servizi;1;Organi e incarichi istituzionali dell'amministrazione;2;Organi istituzionali dell'amministrazione - Rimborsi;14-02-2017;
132;2;0;"168,06";"532,62";TREVISAN VANESSA; ;Rimborso spese viaggio agli amministratori comunali per il 4' trimestre 2016 - A.L. RESP. AREA AMM.VO CONTABILE N. 6 DEL 07.02.2017;14-02-2017;230;0;342;1;Spese correnti;3;Acquisto di beni e servizi;2;Acquisto di servizi;1;Organi e incarichi istituzionali dell'amministrazione;2;Organi istituzionali dell'amministrazione - Rimborsi;14-02-2017;
161;1;0;"60,95";"60,95";TELECOM ITALIA SPA;ZE31381BC6;SALDO Fatt.n. 8E01254956  del 06/12/2016 Spese telefoniche utenza Villa Venier - 1' bimestre 2017;21-02-2017;1312;0;71;1;Spese correnti;3;Acquisto di beni e servizi;2;Acquisto di servizi;5;Utenze e canoni;1;Telefonia fissa;21-02-2017;
162;1;0;"200,51";"200,51";TELECOM ITALIA SPA;ZE31381BC6;SALDO Fatt.n. 8E01256139  del 06/12/2016 Spese telefoniche utenza Scuola Secondaria 1' grado - 1' bimestre 2017;21-02-2017;31801;0;70;1;Spese correnti;3;Acquisto di beni e servizi;2;Acquisto di servizi;5;Utenze e canoni;1;Telefonia fissa;21-02-2017;
163;1;0;"98,47";"602,95";TELECOM ITALIA SPA;ZE31381BC6;SALDO Fatt.n. 8E01253399  del 06/12/2016 Spese telefoniche utenza Sede Municipale  (0499940027) - 1' bimestre 2017;21-02-2017;4751;0;67;1;Spese correnti;3;Acquisto di beni e servizi;2;Acquisto di servizi;5;Utenze e canoni;1;Telefonia fissa;21-02-2017;
163;2;0;"212,24";"602,95";TELECOM ITALIA SPA;ZE31381BC6;SALDO Fatt.n. 8E01256958  del 06/12/2016 Spese telefoniche utenza Sede Municipale (0499940666) - 1' bimestre 2017;21-02-2017;4751;0;67;1;Spese correnti;3;Acquisto di beni e servizi;2;Acquisto di servizi;5;Utenze e canoni;1;Telefonia fissa;21-02-2017;
163;3;0;"292,24";"602,95";TELECOM ITALIA SPA;ZE31381BC6;SALDO Fatt.n. 8E01253379  del 06/12/2016 Spese telefoniche utenza Sede Municipale (0499940677) - 1' bimestre 2017;21-02-2017;4751;0;67;1;Spese correnti;3;Acquisto di beni e servizi;2;Acquisto di servizi;5;Utenze e canoni;1;Telefonia fissa;21-02-2017;
164;1;0;"140,91";"140,91";TELECOM ITALIA SPA;ZE31381BC6;SALDO Fatt.n. 8E01250235  del 06/12/2016 Spese telefoniche utenza Scuola Primaria - 1' bimestre 2017;21-02-2017;29701;0;69;1;Spese correnti;3;Acquisto di beni e servizi;2;Acquisto di servizi;5;Utenze e canoni;1;Telefonia fissa;21-02-2017;
165;1;0;"76,40";"76,40";TELECOM ITALIA SPA;ZE31381BC6;SALDO Fatt.n. 8E01252309  del 06/12/2016 Spese telefoniche utenza Scuola dell'Infanzia - 1' bimestre 2017;21-02-2017;28001;0;68;1;Spese correnti;3;Acquisto di beni e servizi;2;Acquisto di servizi;5;Utenze e canoni;1;Telefonia fissa;21-02-2017;
166;1;0;"121,51";"121,51";TELECOM ITALIA SPA;ZE31381BC6;SALDO Fatt.n. 8E01248913  del 06/12/2016 Spese telefoniche utenza biblioteca - 1' bimestre 2017;21-02-2017;3761;0;72;1;Spese correnti;3;Acquisto di beni e servizi;2;Acquisto di servizi;5;Utenze e canoni;1;Telefonia fissa;21-02-2017;
167;1;0;"512,40";"512,40";Igorsoft.net di Tomasetto Igor;Z66181B12A;SALDO Fatt.n. FATTPA 2_17  del 17/02/2017 Assistenza informatica anno 2016;23-02-2017;555;0;18;1;Spese correnti;3;Acquisto di beni e servizi;2;Acquisto di servizi;19;Servizi informatici e di telecomunicazioni;1;Gestione e manutenzione applicazioni;23-02-2017;
168;1;0;"887,38";"887,38";TREVISAN VANESSA; ;Indennità di funzione spettante al Sindaco febbraio 2017;01-03-2017;10;0;9;1;Spese correnti;3;Acquisto di beni e servizi;2;Acquisto di servizi;1;Organi e incarichi istituzionali dell'amministrazione;1;Organi istituzionali dell'amministrazione - Indennità;01-03-2017;
169;1;0;"177,48";"177,48";CALAON SIMONE; ;Indennità di funzione spettante al vice-sindaco febbraio 2017;01-03-2017;10;0;10;1;Spese correnti;3;Acquisto di beni e servizi;2;Acquisto di servizi;1;Organi e incarichi istituzionali dell'amministrazione;1;Organi istituzionali dell'amministrazione - Indennità;01-03-2017;
170;1;0;"266,21";"266,21";SANTIMARIA ANDREA; ;Indennita' di funzione assessore febbraio 2017;01-03-2017;10;0;11;1;Spese correnti;3;Acquisto di beni e servizi;2;Acquisto di servizi;1;Organi e incarichi istituzionali dell'amministrazione;1;Organi istituzionali dell'amministrazione - Indennità;01-03-2017;
171;1;0;"133,11";"133,11";LAZZARETTO ROBERTA; ;Indennità di funzione assessore febbraio 2017;01-03-2017;10;0;12;1;Spese correnti;3;Acquisto di beni e servizi;2;Acquisto di servizi;1;Organi e incarichi istituzionali dell'amministrazione;1;Organi istituzionali dell'amministrazione - Indennità;01-03-2017;
172;1;0;"266,21";"266,21";ZAVATTIERO AGOSTINO; ;Indennità di funzione assessore febbraio 2017;01-03-2017;10;0;13;1;Spese correnti;3;Acquisto di beni e servizi;2;Acquisto di servizi;1;Organi e incarichi istituzionali dell'amministrazione;1;Organi istituzionali dell'amministrazione - Indennità;01-03-2017;
176;1;0;"955,00";"955,00";TESORERIA PROVINCIALE DELLO STATO - RISCOSSIONE TRIBUTI; ;Liquidazione IVA a debito anno 2016;01-03-2017;9240;0;79;1;Spese correnti;10;Altre spese correnti;3;Versamenti IVA a debito;1;Versamenti IVA a debito per le gestioni commerciali;1;Versamenti IVA a debito per le gestioni commerciali;01-03-2017;
177;1;0;"1.966,64";"1.966,64";BUGGIN ANTONIO;ZD51ACF21A;SALDO Fatt.n. FATTPA 6_17  del 22/02/2017 Onorario variante verde al PRG;01-03-2017;790;0;274;1;Spese correnti;3;Acquisto di beni e servizi;2;Acquisto di servizi;99;Altri servizi;999;Altri servizi diversi n.a.c.;01-03-2017;
178;1;0;"3.172,00";"3.172,00";BUGGIN ANTONIO;Z861C0992A;SALDO Fatt.n. FATTPA 5_17  del 22/02/2017 Onorario variante al PRG - Area PIP;01-03-2017;790;0;388;1;Spese correnti;3;Acquisto di beni e servizi;2;Acquisto di servizi;99;Altri servizi;999;Altri servizi diversi n.a.c.;01-03-2017;
179;1;0;"1.761,38";"1.761,38";Melillo Servizi Ambientali e Cimiteriali s.r.l.;ZE418C2969;SALDO Fatt.n. 3071  del 31/01/2017 Servizio di sepoltura 4' trimestre 2016;01-03-2017;5190;0;294;1;Spese correnti;3;Acquisto di beni e servizi;2;Acquisto di servizi;99;Altri servizi;999;Altri servizi diversi n.a.c.;01-03-2017;
180;1;0;"4.399,45";"4.399,45";COOPERATIVA SOCIALE SERVIZI ASSOCIATI;Z561A7EDC6;SALDO Fatt.n. D-36  del 31/01/2017 Servizio di trasporto scolastico mese di gennaio 2017;01-03-2017;3413;0;319;1;Spese correnti;3;Acquisto di beni e servizi;2;Acquisto di servizi;15;Contratti di servizio pubblico;2;Contratti di servizio di trasporto scolastico;01-03-2017;
181;1;0;"6.503,38";"6.503,38";S.E.S.A. SPA;Z11182D6F2;SALDO Fatt.n. 2000016  del 31/01/2017 Smaltimento rifiuti mese di gennaio 2017;01-03-2017;5780;0;74;1;Spese correnti;3;Acquisto di beni e servizi;2;Acquisto di servizi;15;Contratti di servizio pubblico;4;Contratti di servizio per la raccolta rifiuti;01-03-2017;
182;1;0;"1.866,60";"1.866,60";DE VIZIA TRANSFER S.P.A.;Z7C1D062E7;SALDO Fatt.n. V3-30103  del 31/01/2017 Stampa calendari raccolta differenziata anno 2017;01-03-2017;5780;0;22;1;Spese correnti;3;Acquisto di beni e servizi;2;Acquisto di servizi;15;Contratti di servizio pubblico;4;Contratti di servizio per la raccolta rifiuti;01-03-2017;
183;1;0;"4.026,00";"4.026,00";TERMOIDRAULICA BELLUCCO ROBERTINO;Z3B1CB6676;SALDO Fatt.n. 000001-2017-T  del 14/02/2017 Riparazione impianto di riscaldamento palestra polo scolastico;01-03-2017;11631;0;433;2;Spese in conto capitale;2;Investimenti fissi lordi e acquisto di terreni;1;Beni materiali;9;Beni immobili;16;Impianti sportivi;01-03-2017;
184;1;0;"1.045,00";"1.045,00";ZEFIRO SRL;Z3D1A45638;ACCONTO Fatt.n. 1/PA  del 31/01/2017 Servizio di pulizia edifici comunali MESE di GENNAIO 2017;01-03-2017;475;0;393;1;Spese correnti;3;Acquisto di beni e servizi;2;Acquisto di servizi;99;Altri servizi;999;Altri servizi diversi n.a.c.;01-03-2017;
185;1;0;"294,75";"294,75";ZEFIRO SRL;Z3D1A45638;ACCONTO Fatt.n. 1/PA  del 31/01/2017 Servizio di pulizia edifici comunali MESE di GENNAIO 2017;01-03-2017;37601;0;395;1;Spese correnti;3;Acquisto di beni e servizi;2;Acquisto di servizi;99;Altri servizi;999;Altri servizi diversi n.a.c.;01-03-2017;
186;1;0;"174,86";"174,86";ZEFIRO SRL;Z3D1A45638;SALDO Fatt.n. 1/PA  del 31/01/2017 Servizio di pulizia edifici comunali MESE di GENNAIO 2017;01-03-2017;1400;0;396;1;Spese correnti;3;Acquisto di beni e servizi;2;Acquisto di servizi;9;Manutenzione ordinaria e riparazioni;8;Manutenzione ordinaria e riparazioni di beni immobili;01-03-2017;
187;1;0;"3.239,02";"3.239,02";Sodexo Italia Spa;64630250F4;SALDO Fatt.n. 6400002152  del 31/01/2017 Fornitura pasti ad alunni scuola materna mese di gennaio 2017;01-03-2017;3404;0;45;1;Spese correnti;3;Acquisto di beni e servizi;2;Acquisto di servizi;15;Contratti di servizio pubblico;6;Contratti di servizio per le mense scolastiche;01-03-2017;
188;1;0;"2.035,01";"2.035,01";Sodexo Italia Spa;64630250F4;SALDO Fatt.n. 6400002153  del 31/01/2017 Fornitura pasti ad alunni scuole elementari mese di gennaio 2017;01-03-2017;3406;0;46;1;Spese correnti;3;Acquisto di beni e servizi;2;Acquisto di servizi;15;Contratti di servizio pubblico;6;Contratti di servizio per le mense scolastiche;01-03-2017;
189;1;0;"806,25";"806,25";CASA DI RIPOSO "A. SIMIONATI"; ;SALDO Fatt.n. 9/E  del 31/01/2017 Quota retta di ricovero R.R. mese di gennaio 2017;01-03-2017;6875;0;40;1;Spese correnti;3;Acquisto di beni e servizi;2;Acquisto di servizi;99;Altri servizi;999;Altri servizi diversi n.a.c.;01-03-2017;
190;1;0;"300,00";"300,00";CARRARO PAOLA; ;Compenso per l'espletamento delle funzioni di Nucleo di Valutazione anno 2016 - A.L. RESP. AREA AMM.VO CONT. N. 19 DEL 22.02.2017;01-03-2017;460;0;299;1;Spese correnti;3;Acquisto di beni e servizi;2;Acquisto di servizi;11;Prestazioni professionali e specialistiche;999;Altre prestazioni professionali e specialistiche n.a.c.;01-03-2017;
191;1;0;"150,00";"150,00";GABALDO PAOLA; ;Compenso per componente commissione per l'aggiudicazione dell'appalto per la gestione dei servizi di assistenza sociale e domiciliare - a.l. resp area amm.cont. n. 18 del 22.02.2017;01-03-2017;6980;0;409;1;Spese correnti;3;Acquisto di beni e servizi;2;Acquisto di servizi;15;Contratti di servizio pubblico;9;Contratti di servizio di assistenza sociale domiciliare;01-03-2017;
192;1;0;"40.920,00";"40.920,00";Atheste Costruzioni s.r.l.;6834508E68;SALDO Fatt.n. 12PA  del 13/02/2017 Riqualificazione statica polo scolastico;01-03-2017;10380;0;420;2;Spese in conto capitale;2;Investimenti fissi lordi e acquisto di terreni;1;Beni materiali;9;Beni immobili;3;Fabbricati ad uso scolastico;01-03-2017;
194;1;0;"31,70";"31,70";ECONOMO COMUNALE; ;Rifusione buoni economato n. 3 4 5 6 - AL RESP AREA AMM.VO CONTABILE N. 26 DEL 01.03.2017;08-03-2017;4754;0;1;1;Spese correnti;3;Acquisto di beni e servizi;1;Acquisto di beni;2;Altri beni di consumo;999;Altri beni e materiali di consumo n.a.c.;08-03-2017;
196;1;0;"28,50";"28,50";ECONOMO COMUNALE; ;Rifusione buoni economato n. 2 - A.L. RESP. AREA AMM.VO CONTABILE N. 26 DEL 01.03.2017;08-03-2017;1305;0;2;1;Spese correnti;3;Acquisto di beni e servizi;1;Acquisto di beni;2;Altri beni di consumo;999;Altri beni e materiali di consumo n.a.c.;08-03-2017;
197;1;0;"349,93";"349,93";Sodexo Italia Spa;64630250F4;SALDO Fatt.n. 6400002154  del 31/01/2017 Servizio di sorveglianza refettorio mese di gennaio 2017;08-03-2017;3406;0;78;1;Spese correnti;3;Acquisto di beni e servizi;2;Acquisto di servizi;15;Contratti di servizio pubblico;6;Contratti di servizio per le mense scolastiche;08-03-2017;
198;1;0;"310,00";"310,00";A.N.U.S.C.A.; ;Quota associativa ANUSCA anno 2017 - A.L. RESP. AREA AMM.VO CONTABILE N. 25 DEL 01.03.2017;08-03-2017;580;0;42;1;Spese correnti;4;Trasferimenti correnti;1;Trasferimenti correnti a Amministrazioni Pubbliche;2;Trasferimenti correnti a Amministrazioni Locali;999;Trasferimenti correnti a altre Amministrazioni Locali n.a.c.;08-03-2017;
199;1;0;"1.000,00";"1.000,00";COMUNE DI TEOLO; ;Quota anno 2016  per  Distretto Nord Protezione Civile - a.l. RESP. AREA AMM.VO CONTABILE N. 21 DEL 01.03.2017;08-03-2017;2666;0;431;1;Spese correnti;4;Trasferimenti correnti;1;Trasferimenti correnti a Amministrazioni Pubbliche;2;Trasferimenti correnti a Amministrazioni Locali;3;Trasferimenti correnti a Comuni;08-03-2017;
200;1;0;"2.071,56";"2.071,56";BOGONI s.r.l.;Z6E1D0D9B0;SALDO Fatt.n. PA00003  del 28/02/2017 Fornitura gasolio impianti sportivi;08-03-2017;6498;0;23;1;Spese correnti;3;Acquisto di beni e servizi;1;Acquisto di beni;2;Altri beni di consumo;999;Altri beni e materiali di consumo n.a.c.;08-03-2017;
201;1;0;"95,15";"95,15";POSTE ITALIANE SPA;Z961438A4F;SALDO Fatt.n. 8717060849  del 28/02/2017 Gestione servizi postali mese di gennaio 2017;08-03-2017;4800;0;17;1;Spese correnti;3;Acquisto di beni e servizi;2;Acquisto di servizi;16;Servizi amministrativi;2;Spese postali;08-03-2017;
202;1;0;"89,26";"89,26";Vodafone Italia S.p.A.;ZD11381BD3;SALDO Fatt.n. AH03104637  del 22/02/2017 Spese per contratto telefonia mobile relativa la periodo dal 24.12.2016 al 17.02.2017;08-03-2017;4751;0;73;1;Spese correnti;3;Acquisto di beni e servizi;2;Acquisto di servizi;5;Utenze e canoni;2;Telefonia mobile;08-03-2017;
203;1;0;"85,41";"901,55";AMBROSI FRANCESCA; ;Gettoni di presenza Consiglieri Comunali anno 2016 - A.L. RESP. AREA AMM.VO CONTAB N. 22 DEL 01.03.2017;13-03-2017;12;0;407;1;Spese correnti;3;Acquisto di beni e servizi;2;Acquisto di servizi;1;Organi e incarichi istituzionali dell'amministrazione;1;Organi istituzionali dell'amministrazione - Indennità;13-03-2017;
203;2;0;"75,92";"901,55";AMBROSI PAOLO; ;Gettoni di presenza Consiglieri Comunali anno 2016 - A.L. RESP. AREA AMM.VO CONTAB N. 22 DEL 01.03.2017;13-03-2017;12;0;407;1;Spese correnti;3;Acquisto di beni e servizi;2;Acquisto di servizi;1;Organi e incarichi istituzionali dell'amministrazione;1;Organi istituzionali dell'amministrazione - Indennità;13-03-2017;
203;3;0;"94,90";"901,55";BELLOTTI ROBERTO; ;Gettoni di presenza Consiglieri Comunali anno 2016 - A.L. RESP. AREA AMM.VO CONTAB N. 22 DEL 01.03.2017;13-03-2017;12;0;407;1;Spese correnti;3;Acquisto di beni e servizi;2;Acquisto di servizi;1;Organi e incarichi istituzionali dell'amministrazione;1;Organi istituzionali dell'amministrazione - Indennità;13-03-2017;
203;4;0;"94,90";"901,55";BERTON ANDREA; ;Gettoni di presenza Consiglieri Comunali anno 2016 - A.L. RESP. AREA AMM.VO CONTAB N. 22 DEL 01.03.2017;13-03-2017;12;0;407;1;Spese correnti;3;Acquisto di beni e servizi;2;Acquisto di servizi;1;Organi e incarichi istituzionali dell'amministrazione;1;Organi istituzionali dell'amministrazione - Indennità;13-03-2017;
203;5;0;"85,41";"901,55";BOZZOLAN SANDRO; ;Gettoni di presenza Consiglieri Comunali anno 2016 - A.L. RESP. AREA AMM.VO CONTAB N. 22 DEL 01.03.2017;13-03-2017;12;0;407;1;Spese correnti;3;Acquisto di beni e servizi;2;Acquisto di servizi;1;Organi e incarichi istituzionali dell'amministrazione;1;Organi istituzionali dell'amministrazione - Indennità;13-03-2017;
203;6;0;"113,88";"901,55";LOVISON CLAUDIO; ;Gettoni di presenza Consiglieri Comunali e  capigruppo anno 2016 - A.L. RESP. AREA AMM.VO CONTAB N. 22 DEL 01.03.2017;13-03-2017;12;0;407;1;Spese correnti;3;Acquisto di beni e servizi;2;Acquisto di servizi;1;Organi e incarichi istituzionali dell'amministrazione;1;Organi istituzionali dell'amministrazione - Indennità;13-03-2017;
203;7;0;"85,41";"901,55";MARTINI OMAR; ;Gettoni di presenza Consiglieri Comunali anno 2016 - A.L. RESP. AREA AMM.VO CONTAB N. 22 DEL 01.03.2017;13-03-2017;12;0;407;1;Spese correnti;3;Acquisto di beni e servizi;2;Acquisto di servizi;1;Organi e incarichi istituzionali dell'amministrazione;1;Organi istituzionali dell'amministrazione - Indennità;13-03-2017;
203;8;0;"85,41";"901,55";POLITO ERIKA; ;Gettoni di presenza Consiglieri Comunali anno 2016 - A.L. RESP. AREA AMM.VO CONTAB N. 22 DEL 01.03.2017;13-03-2017;12;0;407;1;Spese correnti;3;Acquisto di beni e servizi;2;Acquisto di servizi;1;Organi e incarichi istituzionali dell'amministrazione;1;Organi istituzionali dell'amministrazione - Indennità;13-03-2017;
203;9;0;"94,90";"901,55";ZAMPELLA ANDREA; ;Gettoni di presenza Consiglieri Comunali anno 2016 - A.L. RESP. AREA AMM.VO CONTAB N. 22 DEL 01.03.2017;13-03-2017;12;0;407;1;Spese correnti;3;Acquisto di beni e servizi;2;Acquisto di servizi;1;Organi e incarichi istituzionali dell'amministrazione;1;Organi istituzionali dell'amministrazione - Indennità;13-03-2017;
203;10;0;"85,41";"901,55";ZATTARIN EMO; ;Gettoni di presenza Consiglieri Comunali anno 2016 - A.L. RESP. AREA AMM.VO CONTAB N. 22 DEL 01.03.2017;13-03-2017;12;0;407;1;Spese correnti;3;Acquisto di beni e servizi;2;Acquisto di servizi;1;Organi e incarichi istituzionali dell'amministrazione;1;Organi istituzionali dell'amministrazione - Indennità;13-03-2017;
204;1;0;"56,94";"645,32";AMBROSI PAOLO; ;Gettoni di presenza Capigruppo Consiliari e componenti Commissioni Consiliari anno 2016 - A.L. RESP. AREA SERVIZI AMM.VI CONTAB. N. 22 DEL 01.03.2017;13-03-2017;12;0;408;1;Spese correnti;3;Acquisto di beni e servizi;2;Acquisto di servizi;1;Organi e incarichi istituzionali dell'amministrazione;1;Organi istituzionali dell'amministrazione - Indennità;13-03-2017;
204;2;0;"104,39";"645,32";BELLOTTI ROBERTO; ;Gettoni di presenza Capigruppo Consiliari e componenti Commissioni Consiliari anno 2016 - A.L. RESP. AREA SERVIZI AMM.VI CONTAB. N. 22 DEL 01.03.2017;13-03-2017;12;0;408;1;Spese correnti;3;Acquisto di beni e servizi;2;Acquisto di servizi;1;Organi e incarichi istituzionali dell'amministrazione;1;Organi istituzionali dell'amministrazione - Indennità;13-03-2017;
204;3;0;"94,90";"645,32";BERTON ANDREA; ;Gettoni di presenza Capigruppo Consiliari e componenti Commissioni Consiliari anno 2016 - A.L. RESP. AREA SERVIZI AMM.VI CONTAB. N. 22 DEL 01.03.2017;13-03-2017;12;0;408;1;Spese correnti;3;Acquisto di beni e servizi;2;Acquisto di servizi;1;Organi e incarichi istituzionali dell'amministrazione;1;Organi istituzionali dell'amministrazione - Indennità;13-03-2017;
204;4;0;"132,86";"645,32";LOVISON CLAUDIO; ;Gettoni di presenza Capigruppo Consiliari e componenti Commissioni Consiliari anno 2016 - A.L. RESP. AREA SERVIZI AMM.VI CONTAB. N. 22 DEL 01.03.2017;13-03-2017;12;0;408;1;Spese correnti;3;Acquisto di beni e servizi;2;Acquisto di servizi;1;Organi e incarichi istituzionali dell'amministrazione;1;Organi istituzionali dell'amministrazione - Indennità;13-03-2017;
204;5;0;"18,98";"645,32";MARTINI OMAR; ;Gettoni di presenza Capigruppo Consiliari e componenti Commissioni Consiliari anno 2016 - A.L. RESP. AREA SERVIZI AMM.VI CONTAB. N. 22 DEL 01.03.2017;13-03-2017;12;0;408;1;Spese correnti;3;Acquisto di beni e servizi;2;Acquisto di servizi;1;Organi e incarichi istituzionali dell'amministrazione;1;Organi istituzionali dell'amministrazione - Indennità;13-03-2017;
204;6;0;"85,41";"645,32";POLITO ERIKA; ;Gettoni di presenza Capigruppo Consiliari e componenti Commissioni Consiliari anno 2016 - A.L. RESP. AREA SERVIZI AMM.VI CONTAB. N. 22 DEL 01.03.2017;13-03-2017;12;0;408;1;Spese correnti;3;Acquisto di beni e servizi;2;Acquisto di servizi;1;Organi e incarichi istituzionali dell'amministrazione;1;Organi istituzionali dell'amministrazione - Indennità;13-03-2017;
204;7;0;"151,84";"645,32";ZAMPELLA ANDREA; ;Gettoni di presenza Capigruppo Consiliari e componenti Commissioni Consiliari anno 2016 - A.L. RESP. AREA SERVIZI AMM.VI CONTAB. N. 22 DEL 01.03.2017;13-03-2017;12;0;408;1;Spese correnti;3;Acquisto di beni e servizi;2;Acquisto di servizi;1;Organi e incarichi istituzionali dell'amministrazione;1;Organi istituzionali dell'amministrazione - Indennità;13-03-2017;
205;1;0;"1.333,34";"1.333,34";PARROCCHIA "NATIVITA' BEATA VERGINE"; ;Saldo contributo a Scuola dell'Infanzia "S. Maria Goretti" anno 2015 - A.L. RESP. AREA AMM.VO CONTAB.  N. 30 DEL 10.03.2017;13-03-2017;2820;0;246;1;Spese correnti;4;Trasferimenti correnti;4;Trasferimenti correnti a Istituzioni Sociali Private;1;Trasferimenti correnti a Istituzioni Sociali Private;1;Trasferimenti correnti a Istituzioni Sociali Private;13-03-2017;
208;1;0;"192,37";"1.804,92";E.ON Energia S.p.a.;Z7113FE6B2;SALDO Fatt.n. 40002022  del 01/03/2017 Fornitura gas naturale utenza Sede Municipale mese di gennaio 2017;13-03-2017;4751;0;62;1;Spese correnti;3;Acquisto di beni e servizi;2;Acquisto di servizi;5;Utenze e canoni;6;Gas;13-03-2017;
208;2;0;"1.612,55";"1.804,92";E.ON Energia S.p.a.;Z7113FE6B2;SALDO Fatt.n. 40002689  del 01/03/2017 Fornitura gas naturale utenza Sede Municipale mese di gennaio 2017;13-03-2017;4751;0;62;1;Spese correnti;3;Acquisto di beni e servizi;2;Acquisto di servizi;5;Utenze e canoni;6;Gas;13-03-2017;
209;1;0;"169,32";"169,32";E.ON Energia S.p.a.;Z7113FE6B2;SALDO Fatt.n. 40002731  del 01/03/2017 Fornitura gas naturale utenza Villa Venier mese di gennaio 2017;13-03-2017;1312;0;66;1;Spese correnti;3;Acquisto di beni e servizi;2;Acquisto di servizi;5;Utenze e canoni;6;Gas;13-03-2017;
210;1;0;"616,77";"616,77";E.ON Energia S.p.a.;Z7113FE6B2;SALDO Fatt.n. 40002691  del 01/03/2017 Fornitura gas naturale utenza immobile Piazzetta Martiri periodo dal 29 dicembre 2016 al 31 gennaio 2017;13-03-2017;1405;0;61;1;Spese correnti;3;Acquisto di beni e servizi;2;Acquisto di servizi;5;Utenze e canoni;6;Gas;13-03-2017;
211;1;0;"1.576,24";"1.576,24";E.ON Energia S.p.a.;Z7113FE6B2;ACCONTO Fatt.n. 40002690  del 01/03/2017 Fornitura gas naturale utenza Polo Scolastico mese di gennaio 2017;13-03-2017;28001;0;63;1;Spese correnti;3;Acquisto di beni e servizi;2;Acquisto di servizi;5;Utenze e canoni;6;Gas;13-03-2017;
212;1;0;"1.576,24";"1.576,24";E.ON Energia S.p.a.;Z7113FE6B2;ACCONTO Fatt.n. 40002690  del 01/03/2017 Fornitura gas naturale utenza Polo Scolastico mese di gennaio 2017;13-03-2017;29701;0;64;1;Spese correnti;3;Acquisto di beni e servizi;2;Acquisto di servizi;5;Utenze e canoni;6;Gas;13-03-2017;
213;1;0;"1.544,13";"1.544,13";E.ON Energia S.p.a.;Z711FE6B2;SALDO Fatt.n. 40002690  del 01/03/2017 Fornitura gas naturale utenza Polo Scolastico mese di gennaio 2017;13-03-2017;31801;0;65;1;Spese correnti;3;Acquisto di beni e servizi;2;Acquisto di servizi;5;Utenze e canoni;6;Gas;13-03-2017;
214;1;0;"45,65";"942,68";Illumia S.p.A.;Z0E14167CF;SALDO Fatt.n. 2041-PE  del 20/02/2017 Fornitura energia elettrica utenza Villa Venier (POD IT001E35511792) periodo dicembre 2016 / gennaio 2017;13-03-2017;1312;0;37;1;Spese correnti;3;Acquisto di beni e servizi;2;Acquisto di servizi;5;Utenze e canoni;4;Energia elettrica;13-03-2017;
214;2;0;"97,54";"942,68";Illumia S.p.A.;Z0E14167CF;SALDO Fatt.n. 2043-PE  del 20/02/2017 Fornitura energia elettrica utenza Villa Venier (POD IT001E04020273) periodo dicembre 2016 / gennaio 2017;13-03-2017;1312;0;37;1;Spese correnti;3;Acquisto di beni e servizi;2;Acquisto di servizi;5;Utenze e canoni;4;Energia elettrica;13-03-2017;
214;3;0;"97,54";"942,68";Illumia S.p.A.;Z0E14167CF;SALDO Fatt.n. 1897-PE  del 20/02/2017 Fornitura energia elettrica utenza Villa Venier (POD IT001E04020277) periodo dicembre 2016 / gennaio 2017;13-03-2017;1312;0;37;1;Spese correnti;3;Acquisto di beni e servizi;2;Acquisto di servizi;5;Utenze e canoni;4;Energia elettrica;13-03-2017;
214;4;0;"701,95";"942,68";Illumia S.p.A.;Z0E14167CF;SALDO Fatt.n. 1900-PE  del 20/02/2017 Fornitura energia elettrica utenza Villa Venier (POD IT001E34674161) mese di gennaio 2017;13-03-2017;1312;0;37;1;Spese correnti;3;Acquisto di beni e servizi;2;Acquisto di servizi;5;Utenze e canoni;4;Energia elettrica;13-03-2017;
215;1;0;"516,49";"516,49";Illumia S.p.A.;Z0E14167CF;SALDO Fatt.n. 1901-PE  del 20/02/2017 Fornitura energia elettrica utenza Sede Municipale mese di gennaio 2017;13-03-2017;4751;0;30;1;Spese correnti;3;Acquisto di beni e servizi;2;Acquisto di servizi;5;Utenze e canoni;4;Energia elettrica;13-03-2017;
216;1;0;"58,93";"58,93";Illumia S.p.A.;Z0E14167CF;SALDO Fatt.n. 2039-PE  del 20/02/2017 Fornitura energia elettrica utenza ex scuola Vo' Vecchio (POD IT001E04020269) periodo dicembre 2016 / gennaio 2017;13-03-2017;1330;0;34;1;Spese correnti;3;Acquisto di beni e servizi;2;Acquisto di servizi;5;Utenze e canoni;4;Energia elettrica;13-03-2017;
217;1;0;"418,00";"418,00";Illumia S.p.A.;Z0E14167CF;ACCONTO Fatt.n. 2040-PE  del 20/02/2017 Fornitura energia elettrica utenza Polo Scolasico mese di gennaio 2017;13-03-2017;28001;0;31;1;Spese correnti;3;Acquisto di beni e servizi;2;Acquisto di servizi;5;Utenze e canoni;4;Energia elettrica;13-03-2017;
218;1;0;"418,00";"418,00";Illumia S.p.A.;Z0E14167CF;ACCONTO Fatt.n. 2040-PE  del 20/02/2017 Fornitura energia elettrica utenza Polo Scolasico mese di gennaio 2017;13-03-2017;29701;0;32;1;Spese correnti;3;Acquisto di beni e servizi;2;Acquisto di servizi;5;Utenze e canoni;4;Energia elettrica;13-03-2017;
219;1;0;"418,81";"418,81";Illumia S.p.A.;Z0E14167CF;SALDO Fatt.n. 2040-PE  del 20/02/2017 Fornitura energia elettrica utenza Polo Scolasico mese di gennaio 2017;13-03-2017;31801;0;33;1;Spese correnti;3;Acquisto di beni e servizi;2;Acquisto di servizi;5;Utenze e canoni;4;Energia elettrica;13-03-2017;
220;1;0;"443,14";"443,14";Illumia S.p.A.;Z0E14167CF;SALDO Fatt.n. 1899-PE  del 20/02/2017 Fornitura energia elettrica utenza immobile Piazzetta Martiri  mese di gennaio 2017;13-03-2017;1405;0;38;1;Spese correnti;3;Acquisto di beni e servizi;2;Acquisto di servizi;5;Utenze e canoni;4;Energia elettrica;13-03-2017;
221;1;0;"143,97";"541,04";Illumia S.p.A.;Z0E14167CF;SALDO Fatt.n. 2042-PE  del 20/02/2017 Fornitura energia elettrica utenza impianto sportivo Zovon (POD IT001E04020358) mese di gennaio 2017;13-03-2017;64981;0;35;1;Spese correnti;3;Acquisto di beni e servizi;2;Acquisto di servizi;5;Utenze e canoni;4;Energia elettrica;13-03-2017;
221;2;0;"397,07";"541,04";Illumia S.p.A.;Z0E14167CF;SALDO Fatt.n. 2608-PE  del 20/02/2017 Fornitura energia elettrica utenza impianto sportivo (POD IT001E04020221) mese di gennaio 2017;13-03-2017;64981;0;35;1;Spese correnti;3;Acquisto di beni e servizi;2;Acquisto di servizi;5;Utenze e canoni;4;Energia elettrica;13-03-2017;
222;1;0;"225,10";"225,10";Illumia S.p.A.;Z8E14167CF;SALDO Fatt.n. 2530-PE  del 20/02/2017 Fornitura energia elettrica utenza magazzino conguaglio dicembre 2016;13-03-2017;1450;0;446;1;Spese correnti;3;Acquisto di beni e servizi;2;Acquisto di servizi;5;Utenze e canoni;4;Energia elettrica;13-03-2017;
223;1;0;"97,54";"97,54";Illumia S.p.A.;Z0E14167CF;SALDO Fatt.n. 2527-PE  del 20/02/2017 Fornitura energia elettrica utenza ex scuola Zovon (POD IT001E04020354) conguaglio dicembre 2016;13-03-2017;1330;0;376;1;Spese correnti;3;Acquisto di beni e servizi;2;Acquisto di servizi;5;Utenze e canoni;4;Energia elettrica;13-03-2017;
224;1;0;"45,65";"5.436,90";Illumia S.p.A.;Z8E14167CF;SALDO Fatt.n. 2529-PE  del 20/02/2017 Fornitura energia elettrica utenza ill. pubblica conguaglio mese di dicembre 2016;13-03-2017;7420;0;447;1;Spese correnti;3;Acquisto di beni e servizi;2;Acquisto di servizi;5;Utenze e canoni;4;Energia elettrica;13-03-2017;
224;2;0;"5.391,25";"5.436,90";Illumia S.p.A.;Z8E14167CF;ACCONTO Fatt.n. 2607-PE  del 20/02/2017 Fornitura energia elettrica utenze ill. pubblica conguaglio  mese di dicembre 2016 e consumi gennaio 2017;13-03-2017;7420;0;447;1;Spese correnti;3;Acquisto di beni e servizi;2;Acquisto di servizi;5;Utenze e canoni;4;Energia elettrica;13-03-2017;
225;1;0;"29,23";"6.032,32";Illumia S.p.A.;Z0E14167CF;SALDO Fatt.n. 2526-PE  del 20/02/2017 Fornitura energia elettrica utenza ill. pubblica Piazzetta Martiri (POD IT001E32268714) mese di gennaio 2017;13-03-2017;7420;0;39;1;Spese correnti;3;Acquisto di beni e servizi;2;Acquisto di servizi;5;Utenze e canoni;4;Energia elettrica;13-03-2017;
225;2;0;"114,80";"6.032,32";Illumia S.p.A.;Z0E14167CF;SALDO Fatt.n. 1902-PE  del 20/02/2017 Fornitura energia elettrica utenza Piazzetta Spolverato (POD IT001E35512473) mese di gennaio 2017;13-03-2017;7420;0;39;1;Spese correnti;3;Acquisto di beni e servizi;2;Acquisto di servizi;5;Utenze e canoni;4;Energia elettrica;13-03-2017;
225;3;0;"235,14";"6.032,32";Illumia S.p.A.;Z0E14167CF;SALDO Fatt.n. 2528-PE  del 20/02/2017 Fornitura energia elettrica utenza ill. pubblica (POD IT001E33625246 Lottizzazione Canaletto)  periodo dicembre 2016 / gennaio 2017;13-03-2017;7420;0;39;1;Spese correnti;3;Acquisto di beni e servizi;2;Acquisto di servizi;5;Utenze e canoni;4;Energia elettrica;13-03-2017;
225;4;0;"5.653,15";"6.032,32";Illumia S.p.A.;Z0E14167CF;SALDO Fatt.n. 2607-PE  del 20/02/2017 Fornitura energia elettrica utenze ill. pubblica conguaglio  mese di dicembre 2016 e consumi gennaio 2017;13-03-2017;7420;0;39;1;Spese correnti;3;Acquisto di beni e servizi;2;Acquisto di servizi;5;Utenze e canoni;4;Energia elettrica;13-03-2017;
226;1;0;"104,53";"104,53";Illumia S.p.A.;Z0E14167CF;SALDO Fatt.n. 1898-PE  del 20/02/2017 Fornitura energia elettrica utenza ill. pubblica (POD IT001E04199192) conguaglio  dicembre 2016;13-03-2017;7420;0;377;1;Spese correnti;3;Acquisto di beni e servizi;2;Acquisto di servizi;5;Utenze e canoni;4;Energia elettrica;13-03-2017;
227;1;0;"693,75";"693,75";CASA DI RIPOSO "A. SIMIONATI"; ;SALDO Fatt.n. 23/E  del 28/02/2017 Quota retta R.R. mese di febbraio 2017;15-03-2017;6875;0;40;1;Spese correnti;3;Acquisto di beni e servizi;2;Acquisto di servizi;99;Altri servizi;999;Altri servizi diversi n.a.c.;15-03-2017;
228;1;0;"292,80";"597,80";SOLUZIONE srl;ZBF1D981CF;SALDO Fatt.n. 694  del 13/03/2017 Abbonamento 2017 a  modulistica armonizzazione contabile;15-03-2017;550;0;83;1;Spese correnti;3;Acquisto di beni e servizi;1;Acquisto di beni;1;"Giornali, riviste e pubblicazioni";1;Giornali e riviste;15-03-2017;
228;2;0;"305,00";"597,80";SOLUZIONE srl;ZBF1D981CF;SALDO Fatt.n. 700  del 13/03/2017 Abbonamento 2017 modulistica per gestione del personale;15-03-2017;550;0;83;1;Spese correnti;3;Acquisto di beni e servizi;1;Acquisto di beni;1;"Giornali, riviste e pubblicazioni";1;Giornali e riviste;15-03-2017;
229;1;0;"500,20";"500,20";SOLUZIONE srl;ZBF1D981CF;"SALDO Fatt.n. 710  del 13/03/2017 Abbonamento anno 2017 a Entionline - servizi di Ragioneria, Tributi, Personale";15-03-2017;445;0;82;1;Spese correnti;3;Acquisto di beni e servizi;2;Acquisto di servizi;4;Acquisto di servizi per formazione e addestramento del personale dell'ente;999;Acquisto di servizi per altre spese per formazione e addestramento n.a.c.;15-03-2017;
230;1;0;"11,70";"11,70";Busitalia Veneto spa; ;SALDO Fatt.n. 8121000103  del 28/02/2017 Contrinuto su abbonamenti 4 TRIMESTRE 2016;15-03-2017;6935;0;19;1;Spese correnti;4;Trasferimenti correnti;2;Trasferimenti correnti a Famiglie;5;Altri trasferimenti a famiglie;999;Altri trasferimenti a famiglie n.a.c.;15-03-2017;
231;1;0;"2.435,00";"2.435,00";CONSORZIO BIBLIOTECHE PADOVANE ASSOCIATE; ;Servizio di gestione della biblioteca comunale anno 2016 - a.l. resp. area amm.contab. n. 33 del 13.03.2017;15-03-2017;3760;0;25;1;Spese correnti;3;Acquisto di beni e servizi;2;Acquisto di servizi;99;Altri servizi;999;Altri servizi diversi n.a.c.;15-03-2017;
232;1;0;"246,00";"246,00";SEPEL SAS;ZDD1D986F4;SALDO Fatt.n. 2/592  del 07/03/2017 ABBONAMENTO ANNO 2017 - LO STATO CIVILE ITALIANO;15-03-2017;550;0;84;1;Spese correnti;3;Acquisto di beni e servizi;1;Acquisto di beni;1;"Giornali, riviste e pubblicazioni";1;Giornali e riviste;15-03-2017;
233;1;0;"299,94";"299,94";Sodexo Italia Spa;64630250F4;SALDO Fatt.n. 6400007124  del 28/02/2017 Servizio di sorveglianza refettorio mese di febbraio 2017;15-03-2017;3406;0;78;1;Spese correnti;3;Acquisto di beni e servizi;2;Acquisto di servizi;15;Contratti di servizio pubblico;6;Contratti di servizio per le mense scolastiche;15-03-2017;
234;1;0;"2.666,68";"2.666,68";PARROCCHIA "NATIVITA' BEATA VERGINE"; ;Acconto su seconda rata contributo per la gestione della Scuola dell'Infanzia anno 2016 - A.L. RESP. AREA AMM.CONTAB. N. 31 DEL 10.03.2017;15-03-2017;2820;0;192;1;Spese correnti;4;Trasferimenti correnti;4;Trasferimenti correnti a Istituzioni Sociali Private;1;Trasferimenti correnti a Istituzioni Sociali Private;1;Trasferimenti correnti a Istituzioni Sociali Private;15-03-2017;
235;1;0;"6.000,00";"6.000,00";PARROCCHIA "NATIVITA' BEATA VERGINE"; ;Acconto seconda rata contributo per servizio di asilo nido integrato anno 2016 - A.L. RESP. AREA AMM.VO CONTAB. N. 32 DEL 10.03.2017;15-03-2017;6180;0;190;1;Spese correnti;4;Trasferimenti correnti;4;Trasferimenti correnti a Istituzioni Sociali Private;1;Trasferimenti correnti a Istituzioni Sociali Private;1;Trasferimenti correnti a Istituzioni Sociali Private;15-03-2017;
236;1;0;"2.053,90";"2.053,90";Sodexo Italia Spa;64630250F4;SALDO Fatt.n. 6400007123  del 28/02/2017 Fornitura pasti bambini scuole elementari mese di febbraio 2017;15-03-2017;3406;0;46;1;Spese correnti;3;Acquisto di beni e servizi;2;Acquisto di servizi;15;Contratti di servizio pubblico;6;Contratti di servizio per le mense scolastiche;15-03-2017;
237;1;0;"3.314,56";"3.314,56";Sodexo Italia Spa;64630250F4;SALDO Fatt.n. 6400007122  del 28/02/2017 fornitura pasti bambini scuola materna mese di febbraio 2017;15-03-2017;3404;0;45;1;Spese correnti;3;Acquisto di beni e servizi;2;Acquisto di servizi;15;Contratti di servizio pubblico;6;Contratti di servizio per le mense scolastiche;15-03-2017;
263;1;0;"2.264,26";"2.264,26";SANTIMARIA STEFANO; ;Rimborso oneri di urbanizzazione e costo di costruzione concessione n. 131/2001 - A.L. RESP UTC N. 33 DEL 16.03.2017;22-03-2017;9500;0;421;2;Spese in conto capitale;5;Altre spese in conto capitale;4;Altri rimborsi in conto capitale di somme non dovute o incassate in eccesso;4;Rimborsi in conto capitale a Famiglie di somme non dovute o incassate in eccesso;1;Rimborsi in conto capitale a Famiglie di somme non dovute o incassate in eccesso;22-03-2017;
264;1;0;"26,84";"410,53";MyO srl;ZBD1D39090;SALDO Fatt.n. 2040/170005512  del 10/03/2017 Fornitura feltrini per timbri;22-03-2017;4753;0;20;1;Spese correnti;3;Acquisto di beni e servizi;1;Acquisto di beni;2;Altri beni di consumo;1;"Carta, cancelleria e stampati";22-03-2017;
264;2;0;"139,69";"410,53";MyO srl;ZBD1D39090;SALDO Fatt.n. 2040/170004681  del 28/02/2017 Fornitura carta da fotocopie A4;22-03-2017;4753;0;20;1;Spese correnti;3;Acquisto di beni e servizi;1;Acquisto di beni;2;Altri beni di consumo;1;"Carta, cancelleria e stampati";22-03-2017;
264;3;0;"244,00";"410,53";MyO srl;ZBD1D39090;SALDO Fatt.n. 2040/170003375  del 17/02/2017 Fornitura buste intestate;22-03-2017;4753;0;20;1;Spese correnti;3;Acquisto di beni e servizi;1;Acquisto di beni;2;Altri beni di consumo;1;"Carta, cancelleria e stampati";22-03-2017;
265;1;0;"1.866,37";"1.866,37";CODESS SOCIALE;684143311D;ACCONTO Fatt.n. 1236/PA  del 09/03/2017 SERVIZIO DI ASSISTENZA SOCIALE E DOMICILIARE MESE DI GENNAIO 2017;22-03-2017;6980;0;435;1;Spese correnti;3;Acquisto di beni e servizi;2;Acquisto di servizi;15;Contratti di servizio pubblico;9;Contratti di servizio di assistenza sociale domiciliare;22-03-2017;
266;1;0;"1.925,18";"1.925,18";CODESS SOCIALE;684143311D;SALDO Fatt.n. 1236/PA  del 09/03/2017 SERVIZIO DI ASSISTENZA SOCIALE E DOMICILIARE MESE DI GENNAIO 2017;22-03-2017;6990;0;436;1;Spese correnti;3;Acquisto di beni e servizi;2;Acquisto di servizi;15;Contratti di servizio pubblico;9;Contratti di servizio di assistenza sociale domiciliare;22-03-2017;
267;1;0;"1.200,00";"2.400,00";OMESSO NOMINATIVO NEL RISPETTO DELLA NORMATIVA SULLA PROTEZIONE DATI PERSONALI; ;Contributo per impegnativa di cura domiciliare (ICD M)  periodo dal 01.10.2016 al 31.12.2016 - A.L. RESP AC N. 53 DEL 28.03.2017;29-03-2017;6710;0;129;1;Spese correnti;4;Trasferimenti correnti;2;Trasferimenti correnti a Famiglie;5;Altri trasferimenti a famiglie;999;Altri trasferimenti a famiglie n.a.c.;29-03-2017;
267;2;0;"1.200,00";"2.400,00";OMESSO NOMINATIVO NEL RISPETTO DELLA NORMATIVA SULLA PROTEZIONE DATI PERSONALI; ;Contributo per impegnativa di cura domiciliare (ICD M)  periodo dal 01.10.2016 al 31.12.2016 - A.L. RESP AC N. 53 DEL 28.03.2017;29-03-2017;6710;0;129;1;Spese correnti;4;Trasferimenti correnti;2;Trasferimenti correnti a Famiglie;5;Altri trasferimenti a famiglie;999;Altri trasferimenti a famiglie n.a.c.;29-03-2017;
268;1;0;"720,00";"5.280,00";OMESSO NOMINATIVO NEL RISPETTO DELLA NORMATIVA SULLA PROTEZIONE DATI PERSONALI; ;Contributo per impegnativa di cura domiciliare (ICDb) periodo 2' semestre 2016 per Gomiero Natale - A.L. RESP. A.C. n. 54 del 28.03.2017;29-03-2017;6710;0;128;1;Spese correnti;4;Trasferimenti correnti;2;Trasferimenti correnti a Famiglie;5;Altri trasferimenti a famiglie;999;Altri trasferimenti a famiglie n.a.c.;29-03-2017;
268;2;0;"720,00";"5.280,00";OMESSO NOMINATIVO NEL RISPETTO DELLA NORMATIVA SULLA PROTEZIONE DATI PERSONALI; ;Contributo per impegnativa di cura domiciliare (ICDb) periodo 2' semestre 2016  per Mazzetto Antonietta - A.L. RESP. A.C. n. 54 del 28.03.2017;29-03-2017;6710;0;128;1;Spese correnti;4;Trasferimenti correnti;2;Trasferimenti correnti a Famiglie;5;Altri trasferimenti a famiglie;999;Altri trasferimenti a famiglie n.a.c.;29-03-2017;
268;3;0;"720,00";"5.280,00";OMESSO NOMINATIVO NEL RISPETTO DELLA NORMATIVA SULLA PROTEZIONE DATI PERSONALI; ;Contributo per impegnativa di cura domiciliare (ICDb) periodo 2' semestre 2016  per Meneghini Antonio - A.L. RESP. A.C. n. 54 del 28.03.2017;29-03-2017;6710;0;128;1;Spese correnti;4;Trasferimenti correnti;2;Trasferimenti correnti a Famiglie;5;Altri trasferimenti a famiglie;999;Altri trasferimenti a famiglie n.a.c.;29-03-2017;
268;4;0;"720,00";"5.280,00";OMESSO NOMINATIVO NEL RISPETTO DELLA NORMATIVA SULLA PROTEZIONE DATI PERSONALI; ;Contributo per impegnativa di cura domiciliare (ICDb) periodo 2' semestre 2016 per Meneghini Eufrasia - A.L. RESP. A.C. n. 54 del 28.03.2017;29-03-2017;6710;0;128;1;Spese correnti;4;Trasferimenti correnti;2;Trasferimenti correnti a Famiglie;5;Altri trasferimenti a famiglie;999;Altri trasferimenti a famiglie n.a.c.;29-03-2017;
268;5;0;"720,00";"5.280,00";OMESSO NOMINATIVO NEL RISPETTO DELLA NORMATIVA SULLA PROTEZIONE DATI PERSONALI; ;Contributo per impegnativa di cura domiciliare (ICDb) periodo 2' semestre 2016 per santimaria Anna - A.L. RESP. A.C. n. 54 del 28.03.2017;29-03-2017;6710;0;128;1;Spese correnti;4;Trasferimenti correnti;2;Trasferimenti correnti a Famiglie;5;Altri trasferimenti a famiglie;999;Altri trasferimenti a famiglie n.a.c.;29-03-2017;
268;6;0;"720,00";"5.280,00";OMESSO NOMINATIVO NEL RISPETTO DELLA NORMATIVA SULLA PROTEZIONE DATI PERSONALI; ;Contributo per impegnativa di cura domiciliare (ICDb) periodo 2' semestre 2016 per Sarego Lina - A.L. RESP. A.C. n. 54 del 28.03.2017;29-03-2017;6710;0;128;1;Spese correnti;4;Trasferimenti correnti;2;Trasferimenti correnti a Famiglie;5;Altri trasferimenti a famiglie;999;Altri trasferimenti a famiglie n.a.c.;29-03-2017;
268;7;0;"240,00";"5.280,00";OMESSO NOMINATIVO NEL RISPETTO DELLA NORMATIVA SULLA PROTEZIONE DATI PERSONALI; ;Contributo per impegnativa di cura domiciliare (ICDb) periodo 2' semestre 2016 per Mercurio Epifania - A.L. RESP. A.C. n. 54 del 28.03.2017;29-03-2017;6710;0;128;1;Spese correnti;4;Trasferimenti correnti;2;Trasferimenti correnti a Famiglie;5;Altri trasferimenti a famiglie;999;Altri trasferimenti a famiglie n.a.c.;29-03-2017;
268;8;0;"720,00";"5.280,00";OMESSO NOMINATIVO NEL RISPETTO DELLA NORMATIVA SULLA PROTEZIONE DATI PERSONALI; ;Contributo per impegnativa di cura domiciliare (ICDb) periodo 2' semestre 2016 per Ongaro Gina - A.L. RESP. A.C. n. 54 del 28.03.2017;29-03-2017;6710;0;128;1;Spese correnti;4;Trasferimenti correnti;2;Trasferimenti correnti a Famiglie;5;Altri trasferimenti a famiglie;999;Altri trasferimenti a famiglie n.a.c.;29-03-2017;
269;1;0;"500,00";"500,00";BIODISTRETTO COLLI EUGANEI; ;Quota di ammissione all'Associazione "Biodistretto dei Colli Euganei" con sede in  Vo' - P.tta Martiri n. 10 - A.L. RESP. A C N. 51 DEL 22.03.2017;29-03-2017;8888;0;118;1;Spese correnti;3;Acquisto di beni e servizi;2;Acquisto di servizi;99;Altri servizi;999;Altri servizi diversi n.a.c.;29-03-2017;
270;1;0;"710,00";"710,00";ANCI VENETO; ;Quota associativa e percorso formativo Master anno 2017 - A.L. RESP. AC N. 49 DEL 22.03.2017;29-03-2017;580;0;76;1;Spese correnti;4;Trasferimenti correnti;1;Trasferimenti correnti a Amministrazioni Pubbliche;2;Trasferimenti correnti a Amministrazioni Locali;999;Trasferimenti correnti a altre Amministrazioni Locali n.a.c.;29-03-2017;
271;1;0;"717,89";"717,89";ANCI - ASSOCIAZIONE NAZIONALE COMUNI ITALIANI; ;Quota associativa 2017  ANCI Nazionale Comuni Italiani anno 2017 - A.L. RESP. AC N. 50 DEL 22.03.2017;29-03-2017;580;0;115;1;Spese correnti;4;Trasferimenti correnti;1;Trasferimenti correnti a Amministrazioni Pubbliche;2;Trasferimenti correnti a Amministrazioni Locali;999;Trasferimenti correnti a altre Amministrazioni Locali n.a.c.;29-03-2017;
272;1;0;"2.700,00";"2.700,00";Ass. ANTEAS; ;Contributo onnicomprensivo per servizio trasporto  di persone presso le strutture sanitarie anno 2017 - A.L. RESP AC N. 52 DEL 22.03.2017;29-03-2017;6955;0;113;1;Spese correnti;4;Trasferimenti correnti;4;Trasferimenti correnti a Istituzioni Sociali Private;1;Trasferimenti correnti a Istituzioni Sociali Private;1;Trasferimenti correnti a Istituzioni Sociali Private;29-03-2017;
273;1;0;"1.500,00";"1.500,00";ISTITUTO COMPRENSIVO LOZZO ATESTINO; ;Contributo straordinario per l'attivita' di pre-accoglienza alunni svolta dal personale ATA della scuola anno scolastico 2016/2017 -  A.L. RESP. AC N. 46 DEL 22.03.2017;29-03-2017;3425;0;245;1;Spese correnti;4;Trasferimenti correnti;1;Trasferimenti correnti a Amministrazioni Pubbliche;1;Trasferimenti correnti a Amministrazioni Centrali;2;Trasferimenti correnti a Ministero dell'Istruzione - Istituzioni scolastiche;29-03-2017;
274;1;0;"850,00";"850,00";Ass. SPORT SOLIDALE S.S.D. a R.L.; ;Compartecipazione alla spesa per trasporto dei partecipanti over 50 ad acquagym in acqua termale - edizione  2016/2017 - A.L. RESP AC N. 44 DEL 22.03.2017;29-03-2017;6950;0;426;1;Spese correnti;3;Acquisto di beni e servizi;2;Acquisto di servizi;99;Altri servizi;999;Altri servizi diversi n.a.c.;29-03-2017;
276;1;0;"6.501,38";"6.501,38";MARTINI LUCIANO SRL;Z70188CBBO;SALDO Fatt.n. 4/EL  del 09/03/2017 Lavori asfaltature stradali  periodo 04.01.2017 - 14.02.2017;05-04-2017;1302;0;102;1;Spese correnti;3;Acquisto di beni e servizi;2;Acquisto di servizi;9;Manutenzione ordinaria e riparazioni;8;Manutenzione ordinaria e riparazioni di beni immobili;05-04-2017;
277;1;0;"4.399,45";"4.399,45";COOPERATIVA SOCIALE SERVIZI ASSOCIATI;Z561A7EDC6;SALDO Fatt.n. D-69  del 28/02/2017 Servizio di trasporto scolastico mese di febbraio 2017;05-04-2017;3413;0;319;1;Spese correnti;3;Acquisto di beni e servizi;2;Acquisto di servizi;15;Contratti di servizio pubblico;2;Contratti di servizio di trasporto scolastico;05-04-2017;
278;1;0;"2.199,05";"2.199,05";BARBIN IMPIANTI Srl;Z9B1CB65DD;SALDO Fatt.n. 22S  del 27/02/2017 Riparazione impianto di pubblica illuminazione via IV Novembre;05-04-2017;7430;0;438;1;Spese correnti;3;Acquisto di beni e servizi;2;Acquisto di servizi;9;Manutenzione ordinaria e riparazioni;4;Manutenzione ordinaria e riparazioni di impianti e macchinari;05-04-2017;
279;1;0;"13.323,94";"13.323,94";DE VIZIA TRANSFER S.P.A.;6848933E4B;SALDO Fatt.n. V3-30189  del 28/02/2017 Servizio di raccolta e trasporto RSU mese di febbraio 2017;05-04-2017;5780;0;18;1;Spese correnti;3;Acquisto di beni e servizi;2;Acquisto di servizi;15;Contratti di servizio pubblico;4;Contratti di servizio per la raccolta rifiuti;05-04-2017;
282;1;0;"7.005,17";"7.005,17";S.E.S.A. SPA;Z11182D6F2;SALDO Fatt.n. 2000074  del 28/02/2017 Servizio di smaltimento rifiuti mese di febbraio 2017;06-04-2017;5780;0;74;1;Spese correnti;3;Acquisto di beni e servizi;2;Acquisto di servizi;15;Contratti di servizio pubblico;4;Contratti di servizio per la raccolta rifiuti;06-04-2017;
283;1;0;"1.281,00";"1.281,00";DE VIZIA TRANSFER S.P.A.;Z7C1D062E7;SALDO Fatt.n. V3-30370  del 31/03/2017 Completamento stampa calendari raccolta RSU anno 2017;06-04-2017;5780;0;75;1;Spese correnti;3;Acquisto di beni e servizi;2;Acquisto di servizi;15;Contratti di servizio pubblico;4;Contratti di servizio per la raccolta rifiuti;06-04-2017;
284;1;0;"13.323,94";"13.323,94";DE VIZIA TRANSFER S.P.A.;6848933E4B;SALDO Fatt.n. V3-30369  del 31/03/2017 Raccolta e trasporto RSU mese di marzo 2017;06-04-2017;5780;0;18;1;Spese correnti;3;Acquisto di beni e servizi;2;Acquisto di servizi;15;Contratti di servizio pubblico;4;Contratti di servizio per la raccolta rifiuti;06-04-2017;
285;1;0;"1.045,00";"1.045,00";ZEFIRO SRL;Z3D1A45638;ACCONTO Fatt.n. 4/PA  del 28/02/2017 Servizio di pulizia edifici comunali MESE di FEBBRAIO 2017;06-04-2017;475;0;393;1;Spese correnti;3;Acquisto di beni e servizi;2;Acquisto di servizi;99;Altri servizi;999;Altri servizi diversi n.a.c.;06-04-2017;
286;1;0;"294,75";"294,75";ZEFIRO SRL;Z3D1A45638;ACCONTO Fatt.n. 4/PA  del 28/02/2017 Servizio di pulizia edifici comunali MESE di FEBBRAIO 2017;06-04-2017;37601;0;395;1;Spese correnti;3;Acquisto di beni e servizi;2;Acquisto di servizi;99;Altri servizi;999;Altri servizi diversi n.a.c.;06-04-2017;
287;1;0;"174,85";"174,85";ZEFIRO SRL;Z3D1A45638;ACCONTO Fatt.n. 4/PA  del 28/02/2017 Servizio di pulizia edifici comunali MESE di FEBBRAIO 2017;06-04-2017;1400;0;396;1;Spese correnti;3;Acquisto di beni e servizi;2;Acquisto di servizi;9;Manutenzione ordinaria e riparazioni;8;Manutenzione ordinaria e riparazioni di beni immobili;06-04-2017;
288;1;0;"340,31";"340,31";ZEFIRO SRL;Z3D1A45638;SALDO Fatt.n. 4/PA  del 28/02/2017 Servizio di pulizia edifici comunali MESE di FEBBRAIO 2017;06-04-2017;2973;0;394;1;Spese correnti;3;Acquisto di beni e servizi;2;Acquisto di servizi;99;Altri servizi;999;Altri servizi diversi n.a.c.;06-04-2017;
289;1;0;"1.512,80";"1.512,80";Melillo Servizi Ambientali e Cimiteriali s.r.l.;ZAC1B44674;"SALDO Fatt.n. 3922  del 30/09/2016 Trasporto e smaltimento rifiuti inerti, e analisi di caratterizzazione del rifiuto.";06-04-2017;5190;0;324;1;Spese correnti;3;Acquisto di beni e servizi;2;Acquisto di servizi;99;Altri servizi;999;Altri servizi diversi n.a.c.;06-04-2017;
290;1;0;"2.226,50";"2.226,50";FERALL S.R.L.;Z421C1C482;SALDO Fatt.n. 2  del 20/03/2017 Sostituzione n. 40 bracci con  maniglie per aperture a sporgere presso polo scolastico;06-04-2017;11950;0;422;2;Spese in conto capitale;5;Altre spese in conto capitale;99;Altre spese in conto capitale n.a.c.;99;Altre spese in conto capitale n.a.c.;999;Altre spese in conto capitale n.a.c.;06-04-2017;
291;1;0;"3.873,50";"3.873,50";FERALL S.R.L.;Z7F1CB6724;SALDO Fatt.n. 3  del 20/03/2017 Messa in opera di finestre doppivetri Biblioteca e Uffici Valoritalia srl;06-04-2017;11950;0;432;2;Spese in conto capitale;5;Altre spese in conto capitale;99;Altre spese in conto capitale n.a.c.;99;Altre spese in conto capitale n.a.c.;999;Altre spese in conto capitale n.a.c.;06-04-2017;
292;1;0;"887,38";"887,38";TREVISAN VANESSA; ;Indennita di funzione spettante al Sindaco marzo 2017;06-04-2017;10;0;9;1;Spese correnti;3;Acquisto di beni e servizi;2;Acquisto di servizi;1;Organi e incarichi istituzionali dell'amministrazione;1;Organi istituzionali dell'amministrazione - Indennità;06-04-2017;
293;1;0;"177,48";"177,48";CALAON SIMONE; ;Indennita di funzione spettante al vice-sindaco marzo 2017;06-04-2017;10;0;10;1;Spese correnti;3;Acquisto di beni e servizi;2;Acquisto di servizi;1;Organi e incarichi istituzionali dell'amministrazione;1;Organi istituzionali dell'amministrazione - Indennità;06-04-2017;
294;1;0;"133,11";"133,11";LAZZARETTO ROBERTA; ;Indennita di funzione assessore marzo 2017;06-04-2017;10;0;12;1;Spese correnti;3;Acquisto di beni e servizi;2;Acquisto di servizi;1;Organi e incarichi istituzionali dell'amministrazione;1;Organi istituzionali dell'amministrazione - Indennità;06-04-2017;
295;1;0;"266,21";"266,21";SANTIMARIA ANDREA; ;Indennita di funzione assessore marzo 2017;06-04-2017;10;0;11;1;Spese correnti;3;Acquisto di beni e servizi;2;Acquisto di servizi;1;Organi e incarichi istituzionali dell'amministrazione;1;Organi istituzionali dell'amministrazione - Indennità;06-04-2017;
296;1;0;"266,21";"266,21";ZAVATTIERO AGOSTINO; ;Indennita di funzione assessore marzo 2017;06-04-2017;10;0;13;1;Spese correnti;3;Acquisto di beni e servizi;2;Acquisto di servizi;1;Organi e incarichi istituzionali dell'amministrazione;1;Organi istituzionali dell'amministrazione - Indennità;06-04-2017;
299;1;0;"291,60";"291,60";POSTE ITALIANE SPA;Z961438A4F;SALDO Fatt.n. 8717100946  del 10/04/2017 Fattura Elettronica relativa all'Identificativo Rendiconto 1000438465 - MESE DI FEBBRAIO 2017;18-04-2017;4800;0;17;1;Spese correnti;3;Acquisto di beni e servizi;2;Acquisto di servizi;16;Servizi amministrativi;2;Spese postali;18-04-2017;
300;1;0;"53,68";"179,34";Acquaviva srl Unipersonale;Z2E1DED0E0;SALDO Fatt.n. 1700170/FE  del 31/03/2017 Fornitura n. 5 boccioni acqua per refrigeratore;18-04-2017;9375;0;108;1;Spese correnti;3;Acquisto di beni e servizi;2;Acquisto di servizi;99;Altri servizi;999;Altri servizi diversi n.a.c.;18-04-2017;
300;2;0;"125,66";"179,34";Acquaviva srl Unipersonale;Z2E1DED0E0;SALDO Fatt.n. 1700128/FE  del 22/03/2017 Manutenzione refrigeratore anno 2017;18-04-2017;9375;0;108;1;Spese correnti;3;Acquisto di beni e servizi;2;Acquisto di servizi;99;Altri servizi;999;Altri servizi diversi n.a.c.;18-04-2017;
301;1;0;"3.593,14";"3.593,14";Sodexo Italia Spa;64630250F4;SALDO Fatt.n. 6400012291  del 31/03/2017 Fornitura pasti alunni scuola materna mese di marzo 2017;18-04-2017;3404;0;45;1;Spese correnti;3;Acquisto di beni e servizi;2;Acquisto di servizi;15;Contratti di servizio pubblico;6;Contratti di servizio per le mense scolastiche;18-04-2017;
302;1;0;"2.351,36";"2.351,36";Sodexo Italia Spa;64630250F4;SALDO Fatt.n. 6400012292  del 31/03/2017 Fornitura pasti alunni scuole elementari mese di marzo 2017;18-04-2017;3406;0;46;1;Spese correnti;3;Acquisto di beni e servizi;2;Acquisto di servizi;15;Contratti di servizio pubblico;6;Contratti di servizio per le mense scolastiche;18-04-2017;
303;1;0;"449,91";"449,91";Sodexo Italia Spa;64630250F4;SALDO Fatt.n. 6400012293  del 31/03/2017 Servizio di sorveglianza refettorio mese di marzo 2017;18-04-2017;3406;0;78;1;Spese correnti;3;Acquisto di beni e servizi;2;Acquisto di servizi;15;Contratti di servizio pubblico;6;Contratti di servizio per le mense scolastiche;18-04-2017;
304;1;0;"1.512,00";"1.512,00";CODESS SOCIALE;684143311D;ACCONTO Fatt.n. 1803/PA  del 10/04/2017 SERVIZIO DI ASSISTENZA SOCIALE E DOMICILIARE mese di febbraio 2017;18-04-2017;6980;0;435;1;Spese correnti;3;Acquisto di beni e servizi;2;Acquisto di servizi;15;Contratti di servizio pubblico;9;Contratti di servizio di assistenza sociale domiciliare;18-04-2017;
305;1;0;"2.793,00";"2.793,00";CODESS SOCIALE;684143311D;SALDO Fatt.n. 1803/PA  del 10/04/2017 SERVIZIO DI ASSISTENZA SOCIALE E DOMICILIARE mese di febbraio 2017;18-04-2017;6990;0;436;1;Spese correnti;3;Acquisto di beni e servizi;2;Acquisto di servizi;15;Contratti di servizio pubblico;9;Contratti di servizio di assistenza sociale domiciliare;18-04-2017;
306;1;0;"750,00";"750,00";CASA DI RIPOSO "A. SIMIONATI"; ;SALDO Fatt.n. 37/E  del 31/03/2017 Quota retta di ricovero R.R. mese di marzo 2017;18-04-2017;6875;0;40;1;Spese correnti;3;Acquisto di beni e servizi;2;Acquisto di servizi;99;Altri servizi;999;Altri servizi diversi n.a.c.;18-04-2017;
307;1;0;"68.060,45";"68.060,45";AZIENDA ULSS N. 6 EUGANEA - AREA DISTRETTUALE 5; ;Compartecipazione alle attivita socio-assistenziali territoriali - anno 2017 - A.L. A.C. N. 63 DEL 12.04.2017;18-04-2017;7135;0;136;1;Spese correnti;4;Trasferimenti correnti;1;Trasferimenti correnti a Amministrazioni Pubbliche;2;Trasferimenti correnti a Amministrazioni Locali;11;Trasferimenti correnti a Aziende sanitarie locali  n.a.f.;18-04-2017;
308;1;0;"1.000,00";"1.000,00";CONSORZIO BIBLIOTECHE PADOVANE ASSOCIATE; ;Acquisto centralizzato di libri da destinare alla Biblioteca Comunale di Vo' anno 2017 - A.L. A.C. 64 DEL 12.04.2017;18-04-2017;3760;0;137;1;Spese correnti;3;Acquisto di beni e servizi;2;Acquisto di servizi;99;Altri servizi;999;Altri servizi diversi n.a.c.;18-04-2017;
325;1;0;"166,52";"166,52";DIPENDENTI COMUNALI DIVERSI; ;Rimborso spese mensa dipendenti 1' trimestre 2017;19-04-2017;9375;0;48;1;Spese correnti;3;Acquisto di beni e servizi;2;Acquisto di servizi;99;Altri servizi;999;Altri servizi diversi n.a.c.;19-04-2017;
332;1;0;"100,03";"602,35";TELECOM ITALIA SPA;ZE31381BC6;SALDO Fatt.n. 8E00137571  del 06/02/2017 Spese telefoniche utenza Sede Municipale (0499940027) Secondo bimestre 2017;19-04-2017;4751;0;67;1;Spese correnti;3;Acquisto di beni e servizi;2;Acquisto di servizi;5;Utenze e canoni;1;Telefonia fissa;19-04-2017;
332;2;0;"212,13";"602,35";TELECOM ITALIA SPA;ZE31381BC6;SALDO Fatt.n. 8E00136675  del 06/02/2017 Spese telefoniche utenza Sede Municipale (0499940666) Secondo bimestre 2017;19-04-2017;4751;0;67;1;Spese correnti;3;Acquisto di beni e servizi;2;Acquisto di servizi;5;Utenze e canoni;1;Telefonia fissa;19-04-2017;
332;3;0;"290,19";"602,35";TELECOM ITALIA SPA;ZE31381BC6;SALDO Fatt.n. 8E00139592  del 06/02/2017 Spese telefoniche utenza Sede Municipale (0499940677) Secondo bimestre 2017;19-04-2017;4751;0;67;1;Spese correnti;3;Acquisto di beni e servizi;2;Acquisto di servizi;5;Utenze e canoni;1;Telefonia fissa;19-04-2017;
333;1;0;"68,94";"68,94";TELECOM ITALIA SPA;ZE31381BC6;SALDO Fatt.n. 8E00139943  del 06/02/2017 Spese telefoniche utenza Scuola Infanzia - Secondo bimestre 2017;19-04-2017;28001;0;68;1;Spese correnti;3;Acquisto di beni e servizi;2;Acquisto di servizi;5;Utenze e canoni;1;Telefonia fissa;19-04-2017;
334;1;0;"123,62";"123,62";TELECOM ITALIA SPA;ZE31381BC6;SALDO Fatt.n. 8E00136702  del 06/02/2017 Spese telefoniche utenza Scuola Primaria  - Secondo bimestre 2017;19-04-2017;29701;0;69;1;Spese correnti;3;Acquisto di beni e servizi;2;Acquisto di servizi;5;Utenze e canoni;1;Telefonia fissa;19-04-2017;
335;1;0;"112,35";"112,35";TELECOM ITALIA SPA;ZE31381BC6;SALDO Fatt.n. 8E00131763  del 06/02/2017 Spese telefoniche utenza Biblioteca - Secondo bimestre 2017;19-04-2017;3761;0;72;1;Spese correnti;3;Acquisto di beni e servizi;2;Acquisto di servizi;5;Utenze e canoni;1;Telefonia fissa;19-04-2017;
336;1;0;"60,84";"60,84";TELECOM ITALIA SPA;ZE31381BC6;SALDO Fatt.n. 8E00137890  del 06/02/2017 Spese telefoniche utenza Villa Venier  -  Secondo bimestre 2016;19-04-2017;1312;0;71;1;Spese correnti;3;Acquisto di beni e servizi;2;Acquisto di servizi;5;Utenze e canoni;1;Telefonia fissa;19-04-2017;
337;1;0;"193,50";"193,50";TELECOM ITALIA SPA;ZE31381BC6;SALDO Fatt.n. 8E00138459  del 06/02/2017 Spese telefoniche utenza Scuola Secondaria primo grado - secondo bimestre 2017;19-04-2017;31801;0;70;1;Spese correnti;3;Acquisto di beni e servizi;2;Acquisto di servizi;5;Utenze e canoni;1;Telefonia fissa;19-04-2017;
338;1;0;"516,18";"516,18";Illumia S.p.A.;Z0E14167CF;SALDO Fatt.n. 3095-PE  del 20/03/2017 Fornitura energia elettrica utenza Villa Venier mese di febbraio 2017  -  provv. 24;26-04-2017;1312;0;151;1;Spese correnti;3;Acquisto di beni e servizi;2;Acquisto di servizi;5;Utenze e canoni;4;Energia elettrica;26-04-2017;
339;1;0;"119,99";"574,53";Illumia S.p.A.;Z0E14167CF;SALDO Fatt.n. 3152-PE  del 20/03/2017 Fornitura energia elettrica utenza impianto sportivo Zovon mese di febbraio 2017  -   provv.  27;26-04-2017;64981;0;35;1;Spese correnti;3;Acquisto di beni e servizi;2;Acquisto di servizi;5;Utenze e canoni;4;Energia elettrica;26-04-2017;
339;2;0;"454,54";"574,53";Illumia S.p.A.;Z0E14167CF;SALDO Fatt.n. 3694-PE  del 20/03/2017 Fornitura energia elettrica utenza impianto sportivo Via Marconi mese di febbraio 2017  -  provv. 29;26-04-2017;64981;0;35;1;Spese correnti;3;Acquisto di beni e servizi;2;Acquisto di servizi;5;Utenze e canoni;4;Energia elettrica;26-04-2017;
340;1;0;"115,39";"3.812,01";Illumia S.p.A.;Z0E14167CF;SALDO Fatt.n. 3097-PE  del 20/03/2017 Fornitura energia elettrica utenza torretta presso Piazzetta Spolverato mese di febbraio 2017  -  provv. 26;26-04-2017;7420;0;39;1;Spese correnti;3;Acquisto di beni e servizi;2;Acquisto di servizi;5;Utenze e canoni;4;Energia elettrica;26-04-2017;
340;2;0;"3.696,62";"3.812,01";Illumia S.p.A.;Z0E14167CF;SALDO Fatt.n. 3435-PE  del 20/03/2017 Fornitura energia elettrica utenze illuminazione pubblica mese di febbraio 2017  -  provv.  22;26-04-2017;7420;0;39;1;Spese correnti;3;Acquisto di beni e servizi;2;Acquisto di servizi;5;Utenze e canoni;4;Energia elettrica;26-04-2017;
341;1;0;"347,30";"347,30";Illumia S.p.A.;Z0E14167CF;SALDO Fatt.n. 3094-PE  del 20/03/2017 Fornitura energia elettrica utenza immobile Piazzetta Martiri mese di febbraio 2017  -  provv. 28;26-04-2017;1405;0;38;1;Spese correnti;3;Acquisto di beni e servizi;2;Acquisto di servizi;5;Utenze e canoni;4;Energia elettrica;26-04-2017;
342;1;0;"425,29";"425,29";Illumia S.p.A.;Z0E14167CF;SALDO Fatt.n. 3096-PE  del 20/03/2017 Fornitura energia elettrica utenza Sede Municipale mese di febbraio 2017  -  provv. 25;26-04-2017;4751;0;30;1;Spese correnti;3;Acquisto di beni e servizi;2;Acquisto di servizi;5;Utenze e canoni;4;Energia elettrica;26-04-2017;
343;1;0;"414,80";"414,80";Illumia S.p.A.;Z0E14167CF;ACCONTO Fatt.n. 3151-PE  del 20/03/2017 Fornitura energia elettrica utenza Scuola Infanzia mese di febbraio 2017  -  provv. 23;26-04-2017;28001;0;31;1;Spese correnti;3;Acquisto di beni e servizi;2;Acquisto di servizi;5;Utenze e canoni;4;Energia elettrica;26-04-2017;
344;1;0;"414,80";"414,80";Illumia S.p.A.;Z0E14167CF;ACCONTO Fatt.n. 3151-PE  del 20/03/2017 Fornitura energia elettrica utenza Scuola Primaria mese di febbraio 2017  -  provv. 23;26-04-2017;29701;0;32;1;Spese correnti;3;Acquisto di beni e servizi;2;Acquisto di servizi;5;Utenze e canoni;4;Energia elettrica;26-04-2017;
345;1;0;"419,38";"419,38";Illumia S.p.A.;Z0E14167CF;SALDO Fatt.n. 3151-PE  del 20/03/2017 Fornitura energia elettrica utenza Scuola Secondaria primo grado mese di febbraio 2017  -  provv. 23;26-04-2017;31801;0;33;1;Spese correnti;3;Acquisto di beni e servizi;2;Acquisto di servizi;5;Utenze e canoni;4;Energia elettrica;26-04-2017;
346;1;0;"89,81";"89,81";Vodafone Italia S.p.A.;ZD11381BD3;SALDO Fatt.n. AH06684881  del 20/04/2017 Spese per contratto telefonia mobile periodo dal 18 febbraio 2017 al 14 aprile 2017;27-04-2017;4751;0;73;1;Spese correnti;3;Acquisto di beni e servizi;2;Acquisto di servizi;5;Utenze e canoni;2;Telefonia mobile;27-04-2017;
347;1;0;"90,75";"90,75";Vodafone Italia S.p.A.;ZD11381BD3;Spese per contratto telefonia mobile ricarica borsellino 348886 - Atto liquidazione Area Servizi Tecnici n. 47 del 27.04.2017;27-04-2017;4751;0;73;1;Spese correnti;3;Acquisto di beni e servizi;2;Acquisto di servizi;5;Utenze e canoni;2;Telefonia mobile;27-04-2017;
349;1;0;"887,38";"887,38";TREVISAN VANESSA; ;Indennita di funzione spettante al Sindaco APRILE 2017;03-05-2017;10;0;9;1;Spese correnti;3;Acquisto di beni e servizi;2;Acquisto di servizi;1;Organi e incarichi istituzionali dell'amministrazione;1;Organi istituzionali dell'amministrazione - Indennità;03-05-2017;
350;1;0;"177,48";"177,48";CALAON SIMONE; ;Indennita di funzione spettante al vice-sindaco aprile 2017;03-05-2017;10;0;10;1;Spese correnti;3;Acquisto di beni e servizi;2;Acquisto di servizi;1;Organi e incarichi istituzionali dell'amministrazione;1;Organi istituzionali dell'amministrazione - Indennità;03-05-2017;
351;1;0;"266,21";"266,21";SANTIMARIA ANDREA; ;Indennita di funzione assessore aprile 2017;03-05-2017;10;0;11;1;Spese correnti;3;Acquisto di beni e servizi;2;Acquisto di servizi;1;Organi e incarichi istituzionali dell'amministrazione;1;Organi istituzionali dell'amministrazione - Indennità;03-05-2017;
352;1;0;"266,21";"266,21";ZAVATTIERO AGOSTINO; ;Indennita di funzione assessore aprile 2017;03-05-2017;10;0;13;1;Spese correnti;3;Acquisto di beni e servizi;2;Acquisto di servizi;1;Organi e incarichi istituzionali dell'amministrazione;1;Organi istituzionali dell'amministrazione - Indennità;03-05-2017;
353;1;0;"133,11";"133,11";LAZZARETTO ROBERTA; ;Indennita di funzione assessore aprile 2017;03-05-2017;10;0;12;1;Spese correnti;3;Acquisto di beni e servizi;2;Acquisto di servizi;1;Organi e incarichi istituzionali dell'amministrazione;1;Organi istituzionali dell'amministrazione - Indennità;03-05-2017;
356;1;0;"2,50";"2,50";ECONOMO COMUNALE; ;Rifusione buoni economato n. 10 e 12;03-05-2017;230;0;92;1;Spese correnti;3;Acquisto di beni e servizi;2;Acquisto di servizi;1;Organi e incarichi istituzionali dell'amministrazione;2;Organi istituzionali dell'amministrazione - Rimborsi;03-05-2017;
357;1;0;"120,00";"120,00";ECONOMO COMUNALE; ;Rifusione buoni economato n. 14;03-05-2017;445;0;94;1;Spese correnti;3;Acquisto di beni e servizi;2;Acquisto di servizi;4;Acquisto di servizi per formazione e addestramento del personale dell'ente;999;Acquisto di servizi per altre spese per formazione e addestramento n.a.c.;03-05-2017;
358;1;0;"10,00";"10,00";ECONOMO COMUNALE; ;Rifusione buono economato n. 11 - A.L. A C. N. 70 DEL 03.05.2017;03-05-2017;571;0;95;1;Spese correnti;3;Acquisto di beni e servizi;2;Acquisto di servizi;99;Altri servizi;999;Altri servizi diversi n.a.c.;03-05-2017;
359;1;0;"168,30";"168,30";ECONOMO COMUNALE; ;Rifusione buoni economato n. 8 13 15 17 18 19 23 25p - a.l. A.C. N. 70 DEL 03.05.2017;03-05-2017;4754;0;1;1;Spese correnti;3;Acquisto di beni e servizi;1;Acquisto di beni;2;Altri beni di consumo;999;Altri beni e materiali di consumo n.a.c.;03-05-2017;
360;1;0;"11,54";"11,54";ECONOMO COMUNALE; ;Rifusione buoni economato n. 25p - A.L. A.C. N. 70 DEL 03.05.2017;03-05-2017;4754;0;96;1;Spese correnti;3;Acquisto di beni e servizi;1;Acquisto di beni;2;Altri beni di consumo;999;Altri beni e materiali di consumo n.a.c.;03-05-2017;
361;1;0;"36,50";"36,50";ECONOMO COMUNALE; ;Rifusione buono economato n. 9 21 22p - A.L. A.C. N. 70 DEL 03.05.2017;03-05-2017;1305;0;2;1;Spese correnti;3;Acquisto di beni e servizi;1;Acquisto di beni;2;Altri beni di consumo;999;Altri beni e materiali di consumo n.a.c.;03-05-2017;
362;1;0;"25,15";"25,15";ECONOMO COMUNALE; ;Rifusione buoni economato n. 22p e 24 - A.L. A.C. N. 70 DEL 03.05.2017;03-05-2017;1305;0;97;1;Spese correnti;3;Acquisto di beni e servizi;1;Acquisto di beni;2;Altri beni di consumo;999;Altri beni e materiali di consumo n.a.c.;03-05-2017;
363;1;0;"23,25";"23,25";ECONOMO COMUNALE; ;Rifusione buono economato n. 16 20 26 - A.L. AC N. 70 DEL 03.05.2017;03-05-2017;29702;0;100;1;Spese correnti;3;Acquisto di beni e servizi;1;Acquisto di beni;2;Altri beni di consumo;999;Altri beni e materiali di consumo n.a.c.;03-05-2017;
364;1;0;"4.399,45";"4.399,45";COOPERATIVA SOCIALE SERVIZI ASSOCIATI;Z561A7EDC6;SALDO Fatt.n. D-101  del 31/03/2017 Servizio di trasporto scolastico mese di marzo 2017;03-05-2017;3413;0;319;1;Spese correnti;3;Acquisto di beni e servizi;2;Acquisto di servizi;15;Contratti di servizio pubblico;2;Contratti di servizio di trasporto scolastico;03-05-2017;
365;1;0;"8,00";"8,00";AZIENDA ULSS N. 6 EUGANEA - AREA DISTRETTUALE 5; ;SALDO Fatt.n. KW  201700000035  del 11/04/2017 Installazione microchip a cane randagio catturato mese di marzo 2017;03-05-2017;5037;0;138;1;Spese correnti;3;Acquisto di beni e servizi;2;Acquisto di servizi;15;Contratti di servizio pubblico;11;Contratti di servizio per la lotta al randagismo;03-05-2017;
366;1;0;"207,40";"207,40";L.I.F.A. di Lovison Valerio;Z561D1C565;SALDO Fatt.n. 2  del 17/03/2017 FORNITURA E POSA IN OPERA GRIGLIA C/O SCUOLE MEDIE;03-05-2017;1302;0;25;1;Spese correnti;3;Acquisto di beni e servizi;2;Acquisto di servizi;9;Manutenzione ordinaria e riparazioni;8;Manutenzione ordinaria e riparazioni di beni immobili;03-05-2017;
367;1;0;"1.159,00";"1.159,00";Sicurya s.r.l.;Z1F19ABFDD;SALDO Fatt.n. 0000006/PA  del 31/03/2017 Compenso per incarico R.S.P.P.  - primo acconto importo annuale;03-05-2017;785;0;171;1;Spese correnti;3;Acquisto di beni e servizi;2;Acquisto di servizi;4;Acquisto di servizi per formazione e addestramento del personale dell'ente;4;Acquisto di servizi per formazione obbligatoria;03-05-2017;
368;1;0;"30.000,00";"30.000,00";COSTRUZIONI LOVATO SRL;ZE01C3510B;ACCONTO Fatt.n. 19/PA  del 10/04/2017;03-05-2017;11835;0;418;2;Spese in conto capitale;2;Investimenti fissi lordi e acquisto di terreni;1;Beni materiali;9;Beni immobili;12;Infrastrutture stradali;03-05-2017;
369;1;0;"5.808,30";"5.808,30";COSTRUZIONI LOVATO SRL;ZE01C3510B;SALDO Fatt.n. 19/PA  del 10/04/2017;03-05-2017;11950;0;419;2;Spese in conto capitale;5;Altre spese in conto capitale;99;Altre spese in conto capitale n.a.c.;99;Altre spese in conto capitale n.a.c.;999;Altre spese in conto capitale n.a.c.;03-05-2017;
370;1;0;"2.400,00";"2.400,00";PARROCCHIA "MARIA AUSILIATRICE " VO' CENTRO; ;Determinazione quota proventi derivanti dagli oneri di urbanizzazione secondaria per gli interventi concernenti gli edifici di culto L.R. 44/1987 - Anno 2015 - a.l. utc n. 34 del 21.03.2017;03-05-2017;11000;0;408;2;Spese in conto capitale;3;Contributi agli investimenti;4;Contributi agli investimenti a Istituzioni Sociali Private;1;Contributi agli investimenti a Istituzioni Sociali Private;1;Contributi agli investimenti a Istituzioni Sociali Private;03-05-2017;
371;1;0;"2.640,00";"2.640,00";PARROCCHIA "MARIA AUSILIATRICE " VO' CENTRO; ;Determinazione quota proventi derivanti dagli oneri di urbanizzazione secondaria per gli interventi concernenti gli edifici di culto L.R. 44/1987 - Anno 2016 - A.L. UTC N. 34 DEL 21.03.2017;03-05-2017;11000;0;453;2;Spese in conto capitale;3;Contributi agli investimenti;4;Contributi agli investimenti a Istituzioni Sociali Private;1;Contributi agli investimenti a Istituzioni Sociali Private;1;Contributi agli investimenti a Istituzioni Sociali Private;03-05-2017;
372;1;0;"119,34";"1.381,97";E.ON Energia S.p.a.;Z7113FE6B2;SALDO Fatt.n. 40002977  del 03/04/2017 Fornitura gas utenza Sede Municipale conguaglio periodo dal 15.11.2016 al 14.02.2017;04-05-2017;4751;0;62;1;Spese correnti;3;Acquisto di beni e servizi;2;Acquisto di servizi;5;Utenze e canoni;6;Gas;04-05-2017;
372;2;0;"1.262,63";"1.381,97";E.ON Energia S.p.a.;Z7113FE6B2;SALDO Fatt.n. 40003636  del 03/04/2017 Fornitura gas naturale utenza Sede Municipale mese di febbraio 2017;04-05-2017;4751;0;62;1;Spese correnti;3;Acquisto di beni e servizi;2;Acquisto di servizi;5;Utenze e canoni;6;Gas;04-05-2017;
373;1;0;"3.566,08";"3.566,08";E.ON Energia S.p.a.;Z7113FE6B2;SALDO Fatt.n. 40003638  del 03/04/2017 Fornitura gas naturale utenza Immobile Piazzetta Martiri conguaglio gennaio e febbraio 2017;04-05-2017;1405;0;61;1;Spese correnti;3;Acquisto di beni e servizi;2;Acquisto di servizi;5;Utenze e canoni;6;Gas;04-05-2017;
374;1;0;"1.200,69";"1.200,69";E.ON Energia S.p.a.;Z7113FE6B2;SALDO Fatt.n. 40003678  del 03/04/2017 Fornitura gas naturale utenza Villa Venier conguaglio anno 2016;04-05-2017;1312;0;95;1;Spese correnti;3;Acquisto di beni e servizi;2;Acquisto di servizi;5;Utenze e canoni;6;Gas;04-05-2017;
375;1;0;"1.302,96";"1.302,96";E.ON Energia S.p.a.;Z7113FE6B2;ACCONTO Fatt.n. 40003637  del 03/04/2017 Fornitura gas naturale utenza Polo Scolastico mese di febbraio 2017;04-05-2017;28001;0;63;1;Spese correnti;3;Acquisto di beni e servizi;2;Acquisto di servizi;5;Utenze e canoni;6;Gas;04-05-2017;
376;1;0;"1.302,96";"1.302,96";E.ON Energia S.p.a.;Z7113FE6B2;ACCONTO Fatt.n. 40003637  del 03/04/2017 Fornitura gas naturale utenza Polo Scolastico mese di febbraio 2017;04-05-2017;29701;0;64;1;Spese correnti;3;Acquisto di beni e servizi;2;Acquisto di servizi;5;Utenze e canoni;6;Gas;04-05-2017;
377;1;0;"1.305,23";"1.305,23";E.ON Energia S.p.a.;Z711FE6B2;SALDO Fatt.n. 40003637  del 03/04/2017 Fornitura gas naturale utenza Polo Scolastico mese di febbraio 2017;04-05-2017;31801;0;65;1;Spese correnti;3;Acquisto di beni e servizi;2;Acquisto di servizi;5;Utenze e canoni;6;Gas;04-05-2017;
378;1;0;"299,65";"299,65";TESORERIA PROVINCIALE DELLO STATO - RISCOSSIONE TRIBUTI; ;Liquidazione IVA a debito primo trimestre 2017 - A.L. AC n. 80 del 05.05.2017;10-05-2017;9240;0;154;1;Spese correnti;10;Altre spese correnti;3;Versamenti IVA a debito;1;Versamenti IVA a debito per le gestioni commerciali;1;Versamenti IVA a debito per le gestioni commerciali;10-05-2017;
379;1;0;"439,20";"439,20";LAZZARINI LORIS;Z391DE2260;SALDO Fatt.n. FATTPA 2_17  del 13/04/2017 Sostituzione vetri porta e finestre Villa Venier;10-05-2017;1310;0;105;1;Spese correnti;3;Acquisto di beni e servizi;2;Acquisto di servizi;9;Manutenzione ordinaria e riparazioni;8;Manutenzione ordinaria e riparazioni di beni immobili;10-05-2017;
380;1;0;"445,30";"445,30";LAZZARINI LORIS;Z471DE223A;SALDO Fatt.n. FATTPA 3_17  del 13/04/2017 Sostituzione serrature su immobili comunali;10-05-2017;1302;0;120;1;Spese correnti;3;Acquisto di beni e servizi;2;Acquisto di servizi;9;Manutenzione ordinaria e riparazioni;8;Manutenzione ordinaria e riparazioni di beni immobili;10-05-2017;
381;1;0;"1.606,50";"1.606,50";CODESS SOCIALE;684143311D;ACCONTO Fatt.n. 2120/PA  del 26/04/2017 SERVIZIO DI ASSISTENZA SOCIALE E DOMICILIARE mese di marzo 2017;10-05-2017;6980;0;435;1;Spese correnti;3;Acquisto di beni e servizi;2;Acquisto di servizi;15;Contratti di servizio pubblico;9;Contratti di servizio di assistenza sociale domiciliare;10-05-2017;
382;1;0;"3.122,18";"3.122,18";CODESS SOCIALE;684143311D;SALDO Fatt.n. 2120/PA  del 26/04/2017 SERVIZIO DI ASSISTENZA SOCIALE E DOMICILIARE mese di marzo 2017;10-05-2017;6990;0;436;1;Spese correnti;3;Acquisto di beni e servizi;2;Acquisto di servizi;15;Contratti di servizio pubblico;9;Contratti di servizio di assistenza sociale domiciliare;10-05-2017;
383;1;0;"861,63";"861,63";Melillo Servizi Ambientali e Cimiteriali s.r.l.;ZE418C2969;SALDO Fatt.n. 3466  del 31/03/2017 Tumulazioni ed estumulazioni mesi di febbraio e marzo 2017;10-05-2017;5190;0;85;1;Spese correnti;3;Acquisto di beni e servizi;2;Acquisto di servizi;99;Altri servizi;999;Altri servizi diversi n.a.c.;10-05-2017;
384;1;0;"3.876,82";"8.369,26";S.E.S.A. SPA;Z11182D6F2;SALDO Fatt.n. 2000100  del 31/03/2017 Servizio di smaltimento rifiuti mese di marzo 2017;10-05-2017;5780;0;74;1;Spese correnti;3;Acquisto di beni e servizi;2;Acquisto di servizi;15;Contratti di servizio pubblico;4;Contratti di servizio per la raccolta rifiuti;10-05-2017;
384;2;0;"4.492,44";"8.369,26";S.E.S.A. SPA;Z11182D6F2;ACCONTO Fatt.n. 2000100  del 31/03/2017 Servizio di smaltimento rifiuti mese di marzo 2017;10-05-2017;5780;0;74;1;Spese correnti;3;Acquisto di beni e servizi;2;Acquisto di servizi;15;Contratti di servizio pubblico;4;Contratti di servizio per la raccolta rifiuti;10-05-2017;
385;1;0;"27.500,00";"27.500,00";MARTINI LUCIANO SRL;Z5D1CB66CD;SALDO Fatt.n. 5/EL  del 27/04/2017 Acconto su lavori di asfaltature varie strade comunali;10-05-2017;11820;0;441;2;Spese in conto capitale;2;Investimenti fissi lordi e acquisto di terreni;1;Beni materiali;9;Beni immobili;12;Infrastrutture stradali;10-05-2017;
386;1;0;"10.951,03";"10.951,03";Atheste Costruzioni s.r.l.;6834508E68;SALDO Fatt.n. 37PA  del 02/05/2017 Saldo lavori di riqualificazione statica Polo Scolastico;10-05-2017;10380;0;420;2;Spese in conto capitale;2;Investimenti fissi lordi e acquisto di terreni;1;Beni materiali;9;Beni immobili;3;Fabbricati ad uso scolastico;10-05-2017;
387;1;0;"732,00";"732,00";AUTOFFICINA ELETTRAUTO BARBIERO SNC DI BARBIERO ETTORE;Z3D1CC8A33;SALDO Fatt.n. 1/01  del 14/04/2017 Manutenzione veicolo Fiat Doblo 1.3 JTD 16V Multijet targa DH568NN;10-05-2017;572;0;443;1;Spese correnti;3;Acquisto di beni e servizi;2;Acquisto di servizi;9;Manutenzione ordinaria e riparazioni;1;"Manutenzione ordinaria e riparazioni di mezzi di trasporto ad uso civile, di sicurezza e ordine pubblico";10-05-2017;
388;1;0;"1.045,00";"1.045,00";ZEFIRO SRL;Z3D1A45638;ACCONTO Fatt.n. 7/PA  del 31/03/2017 Servizio di pulizia edifici comunali MESE di MARZO 2017;10-05-2017;475;0;393;1;Spese correnti;3;Acquisto di beni e servizi;2;Acquisto di servizi;99;Altri servizi;999;Altri servizi diversi n.a.c.;10-05-2017;
389;1;0;"262,18";"262,18";ZEFIRO SRL;Z3D1A45638;ACCONTO Fatt.n. 7/PA  del 31/03/2017 Servizio di pulizia edifici comunali MESE di MARZO 2017;10-05-2017;2973;0;394;1;Spese correnti;3;Acquisto di beni e servizi;2;Acquisto di servizi;99;Altri servizi;999;Altri servizi diversi n.a.c.;10-05-2017;
390;1;0;"294,75";"294,75";ZEFIRO SRL;Z3D1A45638;ACCONTO Fatt.n. 7/PA  del 31/03/2017 Servizio di pulizia edifici comunali MESE di MARZO 2017;10-05-2017;37601;0;395;1;Spese correnti;3;Acquisto di beni e servizi;2;Acquisto di servizi;99;Altri servizi;999;Altri servizi diversi n.a.c.;10-05-2017;
391;1;0;"174,85";"174,85";ZEFIRO SRL;Z3D1A45638;SALDO Fatt.n. 7/PA  del 31/03/2017 Servizio di pulizia edifici comunali MESE di MARZO 2017;10-05-2017;1400;0;396;1;Spese correnti;3;Acquisto di beni e servizi;2;Acquisto di servizi;9;Manutenzione ordinaria e riparazioni;8;Manutenzione ordinaria e riparazioni di beni immobili;10-05-2017;
392;1;0;"17,64";"17,64";Servizio Elettrico Nazionale; ;SALDO Fatt.n. 282652602000126  del 14/04/2017 Spese per chiusura contratto di fornitura energia elettrica relativo all'utenza in Via IV Novembre codice POD IT001E04185398;17-05-2017;7420;0;155;1;Spese correnti;3;Acquisto di beni e servizi;2;Acquisto di servizi;5;Utenze e canoni;4;Energia elettrica;17-05-2017;
393;1;0;"313,60";"1.143,12";E.ON Energia S.p.a.;Z7113FE6B2;SALDO Fatt.n. 40003966  del 02/05/2017 Fornitura gas naturale utenza Sede Municipale (contatore 30155066) periodo dal 15 febbraio 2017 al 31 marzo 2017;17-05-2017;4751;0;62;1;Spese correnti;3;Acquisto di beni e servizi;2;Acquisto di servizi;5;Utenze e canoni;6;Gas;17-05-2017;
393;2;0;"829,52";"1.143,12";E.ON Energia S.p.a.;Z7113FE6B2;SALDO Fatt.n. 40004607  del 02/05/2017 Fornitura gas naturale utenza Sede Municipale (matricola contatore 1545006563) mese di marzo 2017;17-05-2017;4751;0;62;1;Spese correnti;3;Acquisto di beni e servizi;2;Acquisto di servizi;5;Utenze e canoni;6;Gas;17-05-2017;
394;1;0;"417,18";"417,18";E.ON Energia S.p.a.;Z7113FE6B2;SALDO Fatt.n. 40004649  del 02/05/2017 Fornitura gas naturale utenza Villa Venier acconto per il periodo dal 16 febbraio 2017 al 31 marzo 2017;17-05-2017;1312;0;66;1;Spese correnti;3;Acquisto di beni e servizi;2;Acquisto di servizi;5;Utenze e canoni;6;Gas;17-05-2017;
395;1;0;"1.086,97";"1.086,97";E.ON Energia S.p.a.;Z7113FE6B2;SALDO Fatt.n. 40004609  del 02/05/2017 Fornitura gas naturale utenza immobile Piazzetta Martiri mese di marzo 2017;17-05-2017;1405;0;61;1;Spese correnti;3;Acquisto di beni e servizi;2;Acquisto di servizi;5;Utenze e canoni;6;Gas;17-05-2017;
396;1;0;"878,40";"878,40";E.ON Energia S.p.a.;Z7113FE6B2;ACCONTO Fatt.n. 40004608  del 02/05/2017 Fornitura gas naturale utenza Polo Scolastico mese di marzo 2017;17-05-2017;28001;0;63;1;Spese correnti;3;Acquisto di beni e servizi;2;Acquisto di servizi;5;Utenze e canoni;6;Gas;17-05-2017;
397;1;0;"878,40";"878,40";E.ON Energia S.p.a.;Z7113FE6B2;ACCONTO Fatt.n. 40004608  del 02/05/2017 Fornitura gas naturale utenza Polo Scolastico mese di marzo 2017;17-05-2017;29701;0;64;1;Spese correnti;3;Acquisto di beni e servizi;2;Acquisto di servizi;5;Utenze e canoni;6;Gas;17-05-2017;
398;1;0;"880,97";"880,97";E.ON Energia S.p.a.;Z711FE6B2;SALDO Fatt.n. 40004608  del 02/05/2017 Fornitura gas naturale utenza Polo Scolastico mese di marzo 2017;17-05-2017;31801;0;65;1;Spese correnti;3;Acquisto di beni e servizi;2;Acquisto di servizi;5;Utenze e canoni;6;Gas;17-05-2017;
420;1;0;"780,00";"780,00";GRAMOLA FRANCESCO;Z3416D99E0;SALDO Fatt.n. 000001-2017-FATTPA  del 11/05/2017 PARCELLA PER PRESTAZIONI PROFESSIONALI PER COLLAUDO STATICO  LAVORI POLO SCOLASTICO;24-05-2017;10380;0;344;2;Spese in conto capitale;2;Investimenti fissi lordi e acquisto di terreni;1;Beni materiali;9;Beni immobili;3;Fabbricati ad uso scolastico;24-05-2017;
421;1;0;"13.323,94";"13.323,94";DE VIZIA TRANSFER S.P.A.;6848933E4B;SALDO Fatt.n. V3-30548  del 30/04/2017 Raccolta e trasporto rifiuti mese di aprile 2017;24-05-2017;5780;0;18;1;Spese correnti;3;Acquisto di beni e servizi;2;Acquisto di servizi;15;Contratti di servizio pubblico;4;Contratti di servizio per la raccolta rifiuti;24-05-2017;
422;1;0;"10.213,84";"10.213,84";Schiavo Michele;ZAF16D9AAC;SALDO Fatt.n. 000001-2017-PA1  del 17/05/2017 Progetto e DDLL lavori di riqualificazione sismisca polo scolastico;24-05-2017;10380;0;345;2;Spese in conto capitale;2;Investimenti fissi lordi e acquisto di terreni;1;Beni materiali;9;Beni immobili;3;Fabbricati ad uso scolastico;24-05-2017;
423;1;0;"424,56";"424,56";GRAFICHE E. GASPARI S.R.L.;Z7A1D6A087;SALDO Fatt.n. 05007  del 29/04/2017 Fornitura materiale per uffici demografici;24-05-2017;910;0;47;1;Spese correnti;3;Acquisto di beni e servizi;1;Acquisto di beni;2;Altri beni di consumo;999;Altri beni e materiali di consumo n.a.c.;24-05-2017;
424;1;0;"31,20";"31,20";Busitalia Veneto spa; ;SALDO Fatt.n. 8121000293  del 30/04/2017 Quota partecipazione 1' trimestre 2017;24-05-2017;6935;0;19;1;Spese correnti;4;Trasferimenti correnti;2;Trasferimenti correnti a Famiglie;5;Altri trasferimenti a famiglie;999;Altri trasferimenti a famiglie n.a.c.;24-05-2017;
425;1;0;"1.330,64";"4.000,00";ACCATRE S.r.l.;ZDC1DABA8D;ACCONTO Fatt.n. 1/170377  del 04/05/2017 Servizio bollettazione TARI effettuata nel 2017 e spese postali;24-05-2017;1477;0;89;1;Spese correnti;3;Acquisto di beni e servizi;2;Acquisto di servizi;99;Altri servizi;999;Altri servizi diversi n.a.c.;24-05-2017;
425;2;0;"2.669,36";"4.000,00";ACCATRE S.r.l.;ZDC1DABA8D;ACCONTO Fatt.n. 1/170377  del 04/05/2017 Servizio bollettazione TARI effettuata nel 2017 e spese postali;24-05-2017;1477;0;89;1;Spese correnti;3;Acquisto di beni e servizi;2;Acquisto di servizi;99;Altri servizi;999;Altri servizi diversi n.a.c.;24-05-2017;
426;1;0;"5.032,50";"5.032,50";ACCATRE S.r.l.;Z021BBA232;SALDO Fatt.n. 1/170375  del 03/05/2017 Bonifica dati ICI/IMU svolta nell'anno 2017;24-05-2017;1485;0;373;1;Spese correnti;3;Acquisto di beni e servizi;2;Acquisto di servizi;99;Altri servizi;999;Altri servizi diversi n.a.c.;24-05-2017;
427;1;0;"1.045,00";"1.045,00";ZEFIRO SRL;Z3D1A45638;ACCONTO Fatt.n. 13/PA  del 30/04/2017 Servizio di pulizia edifici comunali MESE di APRILE 2017;24-05-2017;475;0;393;1;Spese correnti;3;Acquisto di beni e servizi;2;Acquisto di servizi;99;Altri servizi;999;Altri servizi diversi n.a.c.;24-05-2017;
428;1;0;"262,18";"262,18";ZEFIRO SRL;Z3D1A45638;ACCONTO Fatt.n. 13/PA  del 30/04/2017 Servizio di pulizia edifici comunali MESE di APRILE 2017;24-05-2017;2973;0;394;1;Spese correnti;3;Acquisto di beni e servizi;2;Acquisto di servizi;99;Altri servizi;999;Altri servizi diversi n.a.c.;24-05-2017;
429;1;0;"294,75";"294,75";ZEFIRO SRL;Z3D1A45638;ACCONTO Fatt.n. 13/PA  del 30/04/2017 Servizio di pulizia edifici comunali MESE di APRILE 2017;24-05-2017;37601;0;395;1;Spese correnti;3;Acquisto di beni e servizi;2;Acquisto di servizi;99;Altri servizi;999;Altri servizi diversi n.a.c.;24-05-2017;
430;1;0;"174,85";"174,85";ZEFIRO SRL;Z3D1A45638;SALDO Fatt.n. 13/PA  del 30/04/2017 Servizio di pulizia edifici comunali MESE di APRILE 2017;24-05-2017;1400;0;396;1;Spese correnti;3;Acquisto di beni e servizi;2;Acquisto di servizi;9;Manutenzione ordinaria e riparazioni;8;Manutenzione ordinaria e riparazioni di beni immobili;24-05-2017;
431;1;0;"609,28";"609,28";MyO srl;Z601E8D48D;SALDO Fatt.n. 2040/170011468  del 12/05/2017 Fornitura articoli di cancelleria e carta da fotocopie per uffici;24-05-2017;4753;0;157;1;Spese correnti;3;Acquisto di beni e servizi;1;Acquisto di beni;2;Altri beni di consumo;1;"Carta, cancelleria e stampati";24-05-2017;
432;1;0;"660,00";"660,00";ISTITUTO COMPRENSIVO LOZZO ATESTINO; ;Contributo per gestione progetto di orientamento scolastico rivolto a n. 33 alunni iscritti al terzo anno della scuola secondaria di 1' grado - anno scolastico 2016/2017 - a.l. a.c. n. 81 del 10.05.2017;24-05-2017;3415;0;240;1;Spese correnti;4;Trasferimenti correnti;2;Trasferimenti correnti a Famiglie;5;Altri trasferimenti a famiglie;999;Altri trasferimenti a famiglie n.a.c.;24-05-2017;
433;1;0;"4.399,45";"4.399,45";COOPERATIVA SOCIALE SERVIZI ASSOCIATI;Z561A7EDC6;SALDO Fatt.n. D-143  del 30/04/2017 Servizio di trasporto scolastico mese di aprile 2017;24-05-2017;3413;0;319;1;Spese correnti;3;Acquisto di beni e servizi;2;Acquisto di servizi;15;Contratti di servizio pubblico;2;Contratti di servizio di trasporto scolastico;24-05-2017;
434;1;0;"2.441,07";"2.441,07";Sodexo Italia Spa;64630250F4;SALDO Fatt.n. 6400017047  del 30/04/2017 Fornitura pasti alunni scuola infanzia mese di aprile 2017;24-05-2017;3404;0;45;1;Spese correnti;3;Acquisto di beni e servizi;2;Acquisto di servizi;15;Contratti di servizio pubblico;6;Contratti di servizio per le mense scolastiche;24-05-2017;
435;1;0;"1.378,71";"1.378,71";Sodexo Italia Spa;64630250F4;SALDO Fatt.n. 6400017048  del 30/04/2017 Fornitura pasti alunni scuola primaria mese di aprile 2017;24-05-2017;3406;0;46;1;Spese correnti;3;Acquisto di beni e servizi;2;Acquisto di servizi;15;Contratti di servizio pubblico;6;Contratti di servizio per le mense scolastiche;24-05-2017;
436;1;0;"750,00";"750,00";CASA DI RIPOSO "A. SIMIONATI"; ;SALDO Fatt.n. 51/E  del 30/04/2017 Quota retta R.R. aprile 2017;24-05-2017;6875;0;40;1;Spese correnti;3;Acquisto di beni e servizi;2;Acquisto di servizi;99;Altri servizi;999;Altri servizi diversi n.a.c.;24-05-2017;
437;1;0;"249,95";"249,95";Sodexo Italia Spa;64630250F4;SALDO Fatt.n. 6400017049  del 30/04/2017 Servizio di sorveglianza refettorio mese di aprile 2017;24-05-2017;3406;0;78;1;Spese correnti;3;Acquisto di beni e servizi;2;Acquisto di servizi;15;Contratti di servizio pubblico;6;Contratti di servizio per le mense scolastiche;24-05-2017;
438;1;0;"493,08";"493,08";LAZZARETTO ROBERTA; ;Rimborso spese viaggio agli amministratori comunali primo quadrimestre 2017 - A.L. A.C. N. 83 DEL 18.05.2017;24-05-2017;230;0;159;1;Spese correnti;3;Acquisto di beni e servizi;2;Acquisto di servizi;1;Organi e incarichi istituzionali dell'amministrazione;2;Organi istituzionali dell'amministrazione - Rimborsi;24-05-2017;
440;1;0;"19,16";"19,16";ACCATRE S.r.l.;ZDC1DABA8D;SALDO Fatt.n. 1/170377  del 04/05/2017 Servizio bollettazione TARI effettuata nel 2017 e spese postali;24-05-2017;1485;0;90;1;Spese correnti;3;Acquisto di beni e servizi;2;Acquisto di servizi;99;Altri servizi;999;Altri servizi diversi n.a.c.;24-05-2017;
441;1;0;"367,20";"367,20";Illumia S.p.A.;Z0E14167CF;ACCONTO Fatt.n. 4800-PE  del 20/04/2017 Fornitura energia elettrica utenza Polo Scolastico mese di marzo 2017  -  provv. 44;24-05-2017;28001;0;31;1;Spese correnti;3;Acquisto di beni e servizi;2;Acquisto di servizi;5;Utenze e canoni;4;Energia elettrica;24-05-2017;
442;1;0;"118,17";"118,17";Illumia S.p.A.;Z0E14167CF;ACCONTO Fatt.n. 4800-PE  del 20/04/2017 Fornitura energia elettrica utenza Polo Scolastico mese di marzo 2017  -  provv. 44;24-05-2017;28001;0;146;1;Spese correnti;3;Acquisto di beni e servizi;2;Acquisto di servizi;5;Utenze e canoni;4;Energia elettrica;24-05-2017;
443;1;0;"367,20";"367,20";Illumia S.p.A.;Z0E14167CF;ACCONTO Fatt.n. 4800-PE  del 20/04/2017 Fornitura energia elettrica utenza Polo Scolastico mese di marzo 2017  -  provv. 44;24-05-2017;29701;0;32;1;Spese correnti;3;Acquisto di beni e servizi;2;Acquisto di servizi;5;Utenze e canoni;4;Energia elettrica;24-05-2017;
444;1;0;"361,81";"361,81";Illumia S.p.A.;Z0E14167CF;SALDO Fatt.n. 4800-PE  del 20/04/2017 Fornitura energia elettrica utenza Polo Scolastico mese di marzo 2017  -  provv. 44;24-05-2017;31801;0;33;1;Spese correnti;3;Acquisto di beni e servizi;2;Acquisto di servizi;5;Utenze e canoni;4;Energia elettrica;24-05-2017;
445;1;0;"83,47";"558,69";Illumia S.p.A.;Z0E14167CF;SALDO Fatt.n. 4802-PE  del 20/04/2017 Fornitura energia elettrica utenza Villa Venier (POD IT001E35511782) periodo febbraio / marzo 2017  - provv. 45;24-05-2017;1312;0;151;1;Spese correnti;3;Acquisto di beni e servizi;2;Acquisto di servizi;5;Utenze e canoni;4;Energia elettrica;24-05-2017;
445;2;0;"83,47";"558,69";Illumia S.p.A.;Z0E14167CF;SALDO Fatt.n. 4801-PE  del 20/04/2017 Fornitura energia elettrica utenza Villa Venier (POD IT001E35511792) periodo febbraio / marzo 2017  -  provv. 46;24-05-2017;1312;0;151;1;Spese correnti;3;Acquisto di beni e servizi;2;Acquisto di servizi;5;Utenze e canoni;4;Energia elettrica;24-05-2017;
445;3;0;"97,55";"558,69";Illumia S.p.A.;Z0E14167CF;SALDO Fatt.n. 4803-PE  del 20/04/2017 Fornitura energia elettrica utenza Villa Venier (POD IT001E04020273) periodo febbraio / marzo 2017  -  provv. 39;24-05-2017;1312;0;151;1;Spese correnti;3;Acquisto di beni e servizi;2;Acquisto di servizi;5;Utenze e canoni;4;Energia elettrica;24-05-2017;
445;4;0;"97,55";"558,69";Illumia S.p.A.;Z0E14167CF;SALDO Fatt.n. 4476-PE  del 20/04/2017 Fornitura energia elettrica utenza Villa Venier (POD IT001E04020277) periodo febbraio / marzo 2017  -  provv. 47;24-05-2017;1312;0;151;1;Spese correnti;3;Acquisto di beni e servizi;2;Acquisto di servizi;5;Utenze e canoni;4;Energia elettrica;24-05-2017;
445;5;0;"196,65";"558,69";Illumia S.p.A.;Z0E14167CF;SALDO Fatt.n. 4478-PE  del 20/04/2017 Fornitura energia elettrica utenza Villa Venier (POD IT001E34674161) mese di marzo 2017  -  provv.  34;24-05-2017;1312;0;151;1;Spese correnti;3;Acquisto di beni e servizi;2;Acquisto di servizi;5;Utenze e canoni;4;Energia elettrica;24-05-2017;
446;1;0;"60,52";"165,28";Illumia S.p.A.;Z0E14167CF;SALDO Fatt.n. 4799-PE  del 20/04/2017 Fornitura energia elettrica utenza ex scuola Vo Vecchio (POD IT001E04020269) periodo febbario / marzo 2017  -  provv.  43;24-05-2017;1330;0;34;1;Spese correnti;3;Acquisto di beni e servizi;2;Acquisto di servizi;5;Utenze e canoni;4;Energia elettrica;24-05-2017;
446;2;0;"104,76";"165,28";Illumia S.p.A.;Z0E14167CF;SALDO Fatt.n. 4228-PE  del 20/04/2017 Fornitura energia elettrica utenza ex scuola Zovon periodo febbraio / marzo 2017  -  provv. 37;24-05-2017;1330;0;34;1;Spese correnti;3;Acquisto di beni e servizi;2;Acquisto di servizi;5;Utenze e canoni;4;Energia elettrica;24-05-2017;
447;1;0;"384,43";"384,43";Illumia S.p.A.;Z0E14167CF;ACCONTO Fatt.n. 4701-PE  del 20/04/2017 Fornitura energia elettrica utenza impianto sportivo Via Marconi mese di marzo 2017  -  provv. 30;24-05-2017;64981;0;35;1;Spese correnti;3;Acquisto di beni e servizi;2;Acquisto di servizi;5;Utenze e canoni;4;Energia elettrica;24-05-2017;
448;1;0;"2,49";"110,98";Illumia S.p.A.;Z0E14167CF;SALDO Fatt.n. 4701-PE  del 20/04/2017 Fornitura energia elettrica utenza impianto sportivo Via Marconi mese di marzo 2017  -  provv. 30;24-05-2017;64981;0;150;1;Spese correnti;3;Acquisto di beni e servizi;2;Acquisto di servizi;5;Utenze e canoni;4;Energia elettrica;24-05-2017;
448;2;0;"108,49";"110,98";Illumia S.p.A.;Z0E14167CF;SALDO Fatt.n. 4702-PE  del 20/04/2017 Fornitura energia elettrica utenza impianto sportivo Zovon mese di marzo 2017  -  provv. 31;24-05-2017;64981;0;150;1;Spese correnti;3;Acquisto di beni e servizi;2;Acquisto di servizi;5;Utenze e canoni;4;Energia elettrica;24-05-2017;
449;1;0;"198,59";"198,59";Illumia S.p.A.;Z0E14167CF;SALDO Fatt.n. 4232-PE  del 20/04/2017 Fornitura energia elettrica utenza magazzino comunale conguaglio periodo gennaio / febbario / marzo 2017  -  provv. 41;24-05-2017;1450;0;36;1;Spese correnti;3;Acquisto di beni e servizi;2;Acquisto di servizi;5;Utenze e canoni;4;Energia elettrica;24-05-2017;
450;1;0;"209,56";"209,56";Illumia S.p.A.;Z0E14167CF;ACCONTO Fatt.n. 4477-PE  del 20/04/2017 Fornitura energia elettrica utenza Immobile Piazzetta Martiri mese di marzo 2017  -  provv. 33;24-05-2017;1405;0;38;1;Spese correnti;3;Acquisto di beni e servizi;2;Acquisto di servizi;5;Utenze e canoni;4;Energia elettrica;24-05-2017;
451;1;0;"117,86";"117,86";Illumia S.p.A.;Z0E14167CF;SALDO Fatt.n. 4477-PE  del 20/04/2017 Fornitura energia elettrica utenza Immobile Piazzetta Martiri mese di marzo 2017  -  provv. 33;24-05-2017;1405;0;152;1;Spese correnti;3;Acquisto di beni e servizi;2;Acquisto di servizi;5;Utenze e canoni;4;Energia elettrica;24-05-2017;
452;1;0;"337,23";"337,23";Illumia S.p.A.;Z0E14167CF;ACCONTO Fatt.n. 4231-PE  del 20/04/2017 Fornitura energia elettrica utenza Sede Municipale mese di marzo 2017  -  provv. 40;24-05-2017;4751;0;30;1;Spese correnti;3;Acquisto di beni e servizi;2;Acquisto di servizi;5;Utenze e canoni;4;Energia elettrica;24-05-2017;
453;1;0;"47,97";"47,97";Illumia S.p.A.;Z0E14167CF;SALDO Fatt.n. 4231-PE  del 20/04/2017 Fornitura energia elettrica utenza Sede Municipale mese di marzo 2017  -  provv. 40;24-05-2017;4751;0;145;1;Spese correnti;3;Acquisto di beni e servizi;2;Acquisto di servizi;5;Utenze e canoni;4;Energia elettrica;24-05-2017;
454;1;0;"25,60";"8.435,25";Illumia S.p.A.;Z0E14167CF;SALDO Fatt.n. 4798-PE  del 20/04/2017 Fornitura energia elettrica utenza illuminazione pubblica Piazzetta Martiri (POD IT001E32268714) mese di marzo 2017  -  provv. 42;24-05-2017;7420;0;39;1;Spese correnti;3;Acquisto di beni e servizi;2;Acquisto di servizi;5;Utenze e canoni;4;Energia elettrica;24-05-2017;
454;2;0;"97,55";"8.435,25";Illumia S.p.A.;Z0E14167CF;SALDO Fatt.n. 4230-PE  del 20/04/2017 Fornitura energia elettrica utenza illuminazione pubblica Piazzetta Martiri (POD IT001E04199192) periodo febbraio / marzo 2017  -  provv. 32;24-05-2017;7420;0;39;1;Spese correnti;3;Acquisto di beni e servizi;2;Acquisto di servizi;5;Utenze e canoni;4;Energia elettrica;24-05-2017;
454;3;0;"114,62";"8.435,25";Illumia S.p.A.;Z0E14167CF;SALDO Fatt.n. 4479-PE  del 20/04/2017 Fornitura energia elettrica utenza torretta Piazzetta Spolverato mese di marzo 2017  -  provv. 35;24-05-2017;7420;0;39;1;Spese correnti;3;Acquisto di beni e servizi;2;Acquisto di servizi;5;Utenze e canoni;4;Energia elettrica;24-05-2017;
454;4;0;"185,76";"8.435,25";Illumia S.p.A.;Z0E14167CF;SALDO Fatt.n. 4229-PE  del 20/04/2017 Fornitura energia elettrica utenza lottizzazione Canaletto (POD IT001E33625246) periodo febbraio / marzo 2017  -  provv. 38;24-05-2017;7420;0;39;1;Spese correnti;3;Acquisto di beni e servizi;2;Acquisto di servizi;5;Utenze e canoni;4;Energia elettrica;24-05-2017;
454;5;0;"8.011,72";"8.435,25";Illumia S.p.A.;Z0E14167CF;SALDO Fatt.n. 4227-PE  del 20/04/2017 Fornitura energia elettrica  utenze illuminazione pubblica conguaglio periodo febbraio / marzo 2017  -  provv. 36;24-05-2017;7420;0;39;1;Spese correnti;3;Acquisto di beni e servizi;2;Acquisto di servizi;5;Utenze e canoni;4;Energia elettrica;24-05-2017;
455;1;0;"18,97";"297,22";Servizio Elettrico Nazionale; ;SALDO Fatt.n. 28265140704552D  del 16/05/2017 Fornitura energia elettrica utenza ill. pubblica Via Capitelli n. cliente 354989221 codice POD IT001E04020337 conguaglio periodo gennaio / aprile 2014;26-05-2017;7420;0;163;1;Spese correnti;3;Acquisto di beni e servizi;2;Acquisto di servizi;5;Utenze e canoni;4;Energia elettrica;26-05-2017;
455;2;0;"278,25";"297,22";Servizio Elettrico Nazionale; ;SALDO Fatt.n. 28265140704552C  del 16/05/2017 Fornitura energia elettrica utenza ill. pubblica Via Capitelli n. cliente 354989221 codice POD IT001E04020337 conguaglio periodo gennaio / aprile 2014;26-05-2017;7420;0;163;1;Spese correnti;3;Acquisto di beni e servizi;2;Acquisto di servizi;5;Utenze e canoni;4;Energia elettrica;26-05-2017;
456;1;0;"204,37";"204,37";CENTRO VENETO SERVIZI S.P.A.;Z311381BD7;SALDO Fatt.n. 2017130745  del 28/04/2017 Fornitura acqua potabile utenza scuola secondaria primo grado per il periodo dal 01.07.2016 al 31.12.2016;31-05-2017;31801;0;74;1;Spese correnti;3;Acquisto di beni e servizi;2;Acquisto di servizi;5;Utenze e canoni;5;Acqua;31-05-2017;
457;1;0;"418,00";"418,00";CENTRO VENETO SERVIZI S.P.A.;Z311381BD7;ACCONTO Fatt.n. 2017130738  del 28/04/2017 Fornitura acqua potabile utenza Polo Scolastico (Utenza 002239) per il periodo dal 01.07.2016 al 31.12.2016;31-05-2017;28001;0;72;1;Spese correnti;3;Acquisto di beni e servizi;2;Acquisto di servizi;5;Utenze e canoni;5;Acqua;31-05-2017;
458;1;0;"398,71";"398,71";CENTRO VENETO SERVIZI S.P.A.;Z311381BD7;SALDO Fatt.n. 2017130738  del 28/04/2017 Fornitura acqua potabile utenza Polo Scolastico (Utenza 002239) per il periodo dal 01.07.2016 al 31.12.2016;31-05-2017;29701;0;73;1;Spese correnti;3;Acquisto di beni e servizi;2;Acquisto di servizi;5;Utenze e canoni;5;Acqua;31-05-2017;
459;1;0;"22,70";"22,70";CENTRO VENETO SERVIZI S.P.A.;Z311381BD7;SALDO Fatt.n. 2017130741  del 28/04/2017 Fornitura acqua potabile utenza impianto sportivo per il periodo dal 01.07.2016 al 31.12.2016;31-05-2017;64981;0;76;1;Spese correnti;3;Acquisto di beni e servizi;2;Acquisto di servizi;5;Utenze e canoni;5;Acqua;31-05-2017;
460;1;0;"22,70";"256,28";CENTRO VENETO SERVIZI S.P.A.;Z311381BD7;SALDO Fatt.n. 2017130755  del 28/04/2017 Fornitura acqua potabile utenza in Via Vasche per il periodo dal 01.07.2016 al 31.12.2016;31-05-2017;1350;0;81;1;Spese correnti;3;Acquisto di beni e servizi;2;Acquisto di servizi;5;Utenze e canoni;5;Acqua;31-05-2017;
460;2;0;"22,70";"256,28";CENTRO VENETO SERVIZI S.P.A.;Z311381BD7;SALDO Fatt.n. 2017130751  del 28/04/2017 Fornitura acqua potabile utenza Via Vo Di Sotto per il periodo dal 01.07.2016 al 31.12.2016;31-05-2017;1350;0;81;1;Spese correnti;3;Acquisto di beni e servizi;2;Acquisto di servizi;5;Utenze e canoni;5;Acqua;31-05-2017;
460;3;0;"22,70";"256,28";CENTRO VENETO SERVIZI S.P.A.;Z311381BD7;SALDO Fatt.n. 2017130747  del 28/04/2017 Fornitura acqua potabile utenza in Via IV Novembre per il periodo dal 01.07.2016 al 31.12.2016;31-05-2017;1350;0;81;1;Spese correnti;3;Acquisto di beni e servizi;2;Acquisto di servizi;5;Utenze e canoni;5;Acqua;31-05-2017;
460;4;0;"22,70";"256,28";CENTRO VENETO SERVIZI S.P.A.;Z311381BD7;SALDO Fatt.n. 2017130742  del 28/04/2017 Fornitura acqua potabile utenza Via Carducci per il periodo dal 01.07.2016 al 31.12.2016;31-05-2017;1350;0;81;1;Spese correnti;3;Acquisto di beni e servizi;2;Acquisto di servizi;5;Utenze e canoni;5;Acqua;31-05-2017;
460;5;0;"25,32";"256,28";CENTRO VENETO SERVIZI S.P.A.;Z311381BD7;SALDO Fatt.n. 2017130750  del 28/04/2017 Fornitura acqua potabile utenza fontanella pubblica Piazza Santimaria per il periodo dal 01.07.2016 al 31.12.2016;31-05-2017;1350;0;81;1;Spese correnti;3;Acquisto di beni e servizi;2;Acquisto di servizi;5;Utenze e canoni;5;Acqua;31-05-2017;
460;6;0;"140,16";"256,28";CENTRO VENETO SERVIZI S.P.A.;Z311381BD7;SALDO Fatt.n. 2017130744  del 28/04/2017 Fornitura acqua potabile utenza in Via Monte Castellaro per il periodo dal 01.07.2016 al 31.12.2016;31-05-2017;1350;0;81;1;Spese correnti;3;Acquisto di beni e servizi;2;Acquisto di servizi;5;Utenze e canoni;5;Acqua;31-05-2017;
461;1;0;"22,70";"114,00";CENTRO VENETO SERVIZI S.P.A.;Z311381BD7;SALDO Fatt.n. 2017130749  del 28/04/2017 Fornitura acqua potabile utenza cimitero Zovon per il periodo dal 01.07.2016 al 31.12.2016;31-05-2017;51801;0;77;1;Spese correnti;3;Acquisto di beni e servizi;2;Acquisto di servizi;5;Utenze e canoni;5;Acqua;31-05-2017;
461;2;0;"28,51";"114,00";CENTRO VENETO SERVIZI S.P.A.;Z311381BD7;SALDO Fatt.n. 2017130739  del 28/04/2017 Fornitura acqua potabile utenza cimitero Cortela per il periodo dal 01.07.2016 al 31.12.2016;31-05-2017;51801;0;77;1;Spese correnti;3;Acquisto di beni e servizi;2;Acquisto di servizi;5;Utenze e canoni;5;Acqua;31-05-2017;
461;3;0;"28,91";"114,00";CENTRO VENETO SERVIZI S.P.A.;Z311381BD7;SALDO Fatt.n. 2017130754  del 28/04/2017 Fornitura acqua potabile utenza cimitero Vo Vecchio per il periodo dal 01.07.2016 al 31.12.2016;31-05-2017;51801;0;77;1;Spese correnti;3;Acquisto di beni e servizi;2;Acquisto di servizi;5;Utenze e canoni;5;Acqua;31-05-2017;
461;4;0;"33,88";"114,00";CENTRO VENETO SERVIZI S.P.A.;Z311381BD7;SALDO Fatt.n. 2017130740  del 28/04/2017 Fornitura acqua potabile utenza cimitero Ca Sceriman per il periodo dal 01.07.2016 al 31.12.2016;31-05-2017;51801;0;77;1;Spese correnti;3;Acquisto di beni e servizi;2;Acquisto di servizi;5;Utenze e canoni;5;Acqua;31-05-2017;
462;1;0;"22,70";"69,63";CENTRO VENETO SERVIZI S.P.A.;Z311381BD7;SALDO Fatt.n. 2017130748  del 28/04/2017 Fornitura acqua potabile utenza ex scuola Zovon per il periodo dal 01.07.2016 al 31.12.2016;31-05-2017;1330;0;75;1;Spese correnti;3;Acquisto di beni e servizi;2;Acquisto di servizi;5;Utenze e canoni;5;Acqua;31-05-2017;
462;2;0;"46,93";"69,63";CENTRO VENETO SERVIZI S.P.A.;Z311381BD7;SALDO Fatt.n. 2017130752  del 28/04/2017 Fornitura acqua potabile utenza ex scuola Vo Vecchio per il periodo dal 01.07.2016 al 31.12.2016;31-05-2017;1330;0;75;1;Spese correnti;3;Acquisto di beni e servizi;2;Acquisto di servizi;5;Utenze e canoni;5;Acqua;31-05-2017;
463;1;0;"109,63";"109,63";CENTRO VENETO SERVIZI S.P.A.;Z311381BD7;SALDO Fatt.n. 2017130743  del 28/04/2017 Fornitura acqua potabile utenza Sede Municipale per il periodo dal 01.07.2016 al 31.12.2016;31-05-2017;4751;0;71;1;Spese correnti;3;Acquisto di beni e servizi;2;Acquisto di servizi;5;Utenze e canoni;5;Acqua;31-05-2017;
464;1;0;"97,37";"97,37";CENTRO VENETO SERVIZI S.P.A.;Z311381BD7;SALDO Fatt.n. 2017130756  del 28/04/2017 Fornitura acqua potabile utenza magazzino comunale per il periodo dal 01.07.2016 al 31.12.2016;31-05-2017;78701;0;78;1;Spese correnti;3;Acquisto di beni e servizi;2;Acquisto di servizi;5;Utenze e canoni;5;Acqua;31-05-2017;
465;1;0;"22,70";"22,70";CENTRO VENETO SERVIZI S.P.A.;Z311381BD7;SALDO Fatt.n. 2017130753  del 28/04/2017 Fornitura acqua potabile utenza Barchessa Villa Venier per il periodo dal 01.07.2016 al 31.12.2016;31-05-2017;1312;0;79;1;Spese correnti;3;Acquisto di beni e servizi;2;Acquisto di servizi;5;Utenze e canoni;5;Acqua;31-05-2017;
467;1;0;"140,23";"140,23";E.ON Energia S.p.a.;Z7113FE6B2;SALDO Fatt.n. 40005516  del 01/06/2017 Fornitura gas naturale utenza Villa Venier mese di aprile 2017;05-06-2017;1312;0;66;1;Spese correnti;3;Acquisto di beni e servizi;2;Acquisto di servizi;5;Utenze e canoni;6;Gas;05-06-2017;
468;1;0;"242,71";"242,71";E.ON Energia S.p.a.;Z7113FE6B2;SALDO Fatt.n. 40005488  del 01/06/2017 Fornitura gas naturale utenza Sede Municipale (matricola contatore 1545006563) mese di aprile 2017;05-06-2017;4751;0;62;1;Spese correnti;3;Acquisto di beni e servizi;2;Acquisto di servizi;5;Utenze e canoni;6;Gas;05-06-2017;
469;1;0;"113,46";"113,46";E.ON Energia S.p.a.;Z7113FE6B2;ACCONTO Fatt.n. 40005489  del 01/06/2017 Fornitura gas naturale utenza Polo Scolastico mese di aprile 2017;05-06-2017;28001;0;63;1;Spese correnti;3;Acquisto di beni e servizi;2;Acquisto di servizi;5;Utenze e canoni;6;Gas;05-06-2017;
470;1;0;"113,46";"113,46";E.ON Energia S.p.a.;Z7113FE6B2;ACCONTO Fatt.n. 40005489  del 01/06/2017 Fornitura gas naturale utenza Polo Scolastico mese di aprile 2017;05-06-2017;29701;0;64;1;Spese correnti;3;Acquisto di beni e servizi;2;Acquisto di servizi;5;Utenze e canoni;6;Gas;05-06-2017;
471;1;0;"113,24";"113,24";E.ON Energia S.p.a.;Z711FE6B2;SALDO Fatt.n. 40005489  del 01/06/2017 Fornitura gas naturale utenza Polo Scolastico mese di aprile 2017;05-06-2017;31801;0;65;1;Spese correnti;3;Acquisto di beni e servizi;2;Acquisto di servizi;5;Utenze e canoni;6;Gas;05-06-2017;
472;1;0;"413,67";"413,67";E.ON Energia S.p.a.;Z7113FE6B2;SALDO Fatt.n. 40005490  del 01/06/2017 Fornitura gas naturale utenza immobile Piazzetta Martiri periodo dal 31.03.2017 al 04.05.2017;05-06-2017;1405;0;61;1;Spese correnti;3;Acquisto di beni e servizi;2;Acquisto di servizi;5;Utenze e canoni;6;Gas;05-06-2017;
473;1;0;"887,38";"887,38";TREVISAN VANESSA; ;Indennita di funzione spettante al Sindaco maggio 2017;07-06-2017;10;0;9;1;Spese correnti;3;Acquisto di beni e servizi;2;Acquisto di servizi;1;Organi e incarichi istituzionali dell'amministrazione;1;Organi istituzionali dell'amministrazione - Indennità;07-06-2017;
474;1;0;"177,48";"177,48";CALAON SIMONE; ;Indennita di funzione spettante al vice-sindaco maggio 2017;07-06-2017;10;0;10;1;Spese correnti;3;Acquisto di beni e servizi;2;Acquisto di servizi;1;Organi e incarichi istituzionali dell'amministrazione;1;Organi istituzionali dell'amministrazione - Indennità;07-06-2017;
475;1;0;"266,21";"266,21";SANTIMARIA ANDREA; ;Indennita di funzione assessore maggio 2017;07-06-2017;10;0;11;1;Spese correnti;3;Acquisto di beni e servizi;2;Acquisto di servizi;1;Organi e incarichi istituzionali dell'amministrazione;1;Organi istituzionali dell'amministrazione - Indennità;07-06-2017;
476;1;0;"266,21";"266,21";ZAVATTIERO AGOSTINO; ;Indennita di funzione assessore maggio 2017;07-06-2017;10;0;13;1;Spese correnti;3;Acquisto di beni e servizi;2;Acquisto di servizi;1;Organi e incarichi istituzionali dell'amministrazione;1;Organi istituzionali dell'amministrazione - Indennità;07-06-2017;
477;1;0;"133,11";"133,11";LAZZARETTO ROBERTA; ;Indennita di funzione assessore maggio 2017;07-06-2017;10;0;12;1;Spese correnti;3;Acquisto di beni e servizi;2;Acquisto di servizi;1;Organi e incarichi istituzionali dell'amministrazione;1;Organi istituzionali dell'amministrazione - Indennità;07-06-2017;
480;1;0;"138,88";"138,88";LAZZARETTO ROBERTA; ;Rimborso spese viaggio ad assessore Lazzaretto mese di maggio 2017 - A.L. AC N. 87 DEL 01.06.2017;07-06-2017;230;0;159;1;Spese correnti;3;Acquisto di beni e servizi;2;Acquisto di servizi;1;Organi e incarichi istituzionali dell'amministrazione;2;Organi istituzionali dell'amministrazione - Rimborsi;07-06-2017;
481;1;0;"300,00";"1.200,00";BALDESCHI DANIELA; ;Rimborso spese ai componenti Commissione esaminatrice per il concorso di ideee progetto di Riqualificazione Piazze Vo capoluogo - a.l. UTC N. 66 DEL 29.05.2017;09-06-2017;790;0;88;1;Spese correnti;3;Acquisto di beni e servizi;2;Acquisto di servizi;99;Altri servizi;999;Altri servizi diversi n.a.c.;09-06-2017;
481;2;0;"300,00";"1.200,00";TRIVELLA ALEX; ;Rimborso spese ai componenti Commissione esaminatrice per il concorso di ideee progetto di Riqualificazione Piazze Vo capoluogo - a.l. UTC N. 66 DEL 29.05.2017;09-06-2017;790;0;88;1;Spese correnti;3;Acquisto di beni e servizi;2;Acquisto di servizi;99;Altri servizi;999;Altri servizi diversi n.a.c.;09-06-2017;
481;3;0;"300,00";"1.200,00";ZERBETTO MICHELA; ;Rimborso spese ai componenti Commissione esaminatrice per il concorso di ideee progetto di Riqualificazione Piazze Vo capoluogo - a.l. UTC N. 66 DEL 29.05.2017;09-06-2017;790;0;88;1;Spese correnti;3;Acquisto di beni e servizi;2;Acquisto di servizi;99;Altri servizi;999;Altri servizi diversi n.a.c.;09-06-2017;
481;4;0;"300,00";"1.200,00";ZERBINATO UMBERTO; ;Rimborso spese ai componenti Commissione esaminatrice per il concorso di ideee progetto di Riqualificazione Piazze Vo capoluogo - a.l. UTC N. 66 DEL 29.05.2017;09-06-2017;790;0;88;1;Spese correnti;3;Acquisto di beni e servizi;2;Acquisto di servizi;99;Altri servizi;999;Altri servizi diversi n.a.c.;09-06-2017;
482;1;0;"398,00";"812,50";BOGONI ALFONSO & C. S.A.S.;Z9E1D16A02;SALDO Fatt.n. V0000003FE  del 29/04/2017 Fornitura carburante mese di aprile 2017;09-06-2017;570;0;86;1;Spese correnti;3;Acquisto di beni e servizi;1;Acquisto di beni;2;Altri beni di consumo;2;"Carburanti, combustibili e lubrificanti";09-06-2017;
482;2;0;"414,50";"812,50";BOGONI ALFONSO & C. S.A.S.;Z9E1D16A02;SALDO Fatt.n. V0000002FE  del 31/03/2017 Fornitura carburante mese di marzo 2017;09-06-2017;570;0;86;1;Spese correnti;3;Acquisto di beni e servizi;1;Acquisto di beni;2;Altri beni di consumo;2;"Carburanti, combustibili e lubrificanti";09-06-2017;
483;1;0;"488,00";"488,00";HALLEY VENETO SRL;ZA11D57922;SALDO Fatt.n. 1/170343  del 30/05/2017 Avviamento programma contratti (rapportino n. 12 del 26.04.2017);09-06-2017;555;0;43;1;Spese correnti;3;Acquisto di beni e servizi;2;Acquisto di servizi;19;Servizi informatici e di telecomunicazioni;1;Gestione e manutenzione applicazioni;09-06-2017;
484;1;0;"352,00";"352,00";ALBION PAOLO;ZE21C12EFD;SALDO Fatt.n. 44/A  del 22/12/2016 Fornitura n. 2 tigli;09-06-2017;1300;0;389;1;Spese correnti;3;Acquisto di beni e servizi;1;Acquisto di beni;2;Altri beni di consumo;999;Altri beni e materiali di consumo n.a.c.;09-06-2017;
485;1;0;"4.330,39";"8.976,07";S.E.S.A. SPA;Z11182D6F2;ACCONTO Fatt.n. 2000135  del 30/04/2017 Smaltimento rifiuti mese di aprile 2017;09-06-2017;5780;0;74;1;Spese correnti;3;Acquisto di beni e servizi;2;Acquisto di servizi;15;Contratti di servizio pubblico;4;Contratti di servizio per la raccolta rifiuti;09-06-2017;
485;2;0;"4.645,68";"8.976,07";S.E.S.A. SPA;Z11182D6F2;SALDO Fatt.n. 2000135  del 30/04/2017 Smaltimento rifiuti mese di aprile 2017;09-06-2017;5780;0;74;1;Spese correnti;3;Acquisto di beni e servizi;2;Acquisto di servizi;15;Contratti di servizio pubblico;4;Contratti di servizio per la raccolta rifiuti;09-06-2017;
488;1;0;"613,25";"613,25";POSTE ITALIANE SPA;Z961438A4F;ACCONTO Fatt.n. 8717138865  del 18/05/2017 Fattura Elettronica relativa all'Identificativo Rendiconto 2091801199 mese di marzo 2017;09-06-2017;4800;0;17;1;Spese correnti;3;Acquisto di beni e servizi;2;Acquisto di servizi;16;Servizi amministrativi;2;Spese postali;09-06-2017;
489;1;0;"729,83";"729,83";POSTE ITALIANE SPA;Z961438A4F;SALDO Fatt.n. 8717138865  del 18/05/2017 Fattura Elettronica relativa all'Identificativo Rendiconto 2091801199 mese di marzo 2017;09-06-2017;4800;0;165;1;Spese correnti;3;Acquisto di beni e servizi;2;Acquisto di servizi;16;Servizi amministrativi;2;Spese postali;09-06-2017;
491;1;0;"3,50";"3,50";Intesa Sanpaolo S.p.A.; ;Quota interessi finanziamento n. 00/0052147241 rata del 30.06.2017 Codice debitore 00/0052147241;13-06-2017;1309;0;192;1;Spese correnti;7;Interessi passivi;5;Interessi su Mutui e altri finanziamenti a medio lungo termine;4;Interessi passivi su finanziamenti a medio lungo termine a Imprese;999;Interessi passivi a altre imprese su finanziamenti a medio lungo termine;13-06-2017;
493;1;0;"618,60";"618,60";DEXIA CREDIOP SPA; ;Quota interessi dei mutui in ammortamento rata del 30.06.2017 Avviso n. 0000149496;13-06-2017;7450;0;194;1;Spese correnti;7;Interessi passivi;5;Interessi su Mutui e altri finanziamenti a medio lungo termine;4;Interessi passivi su finanziamenti a medio lungo termine a Imprese;999;Interessi passivi a altre imprese su finanziamenti a medio lungo termine;13-06-2017;
494;1;0;"944,50";"944,50";DEXIA CREDIOP SPA; ;Quota interessi dei mutui in ammortamento rata del 30.06.2017 Avviso n. 0000149496;13-06-2017;5685;0;195;1;Spese correnti;7;Interessi passivi;5;Interessi su Mutui e altri finanziamenti a medio lungo termine;4;Interessi passivi su finanziamenti a medio lungo termine a Imprese;999;Interessi passivi a altre imprese su finanziamenti a medio lungo termine;13-06-2017;
495;1;0;"396,08";"396,08";DEXIA CREDIOP SPA; ;Quota interessi dei mutui in ammortamento rata del 30.06.2017 Avviso n. 0000149496;13-06-2017;5280;0;196;1;Spese correnti;7;Interessi passivi;5;Interessi su Mutui e altri finanziamenti a medio lungo termine;5;Interessi passivi su mutui e altri finanziamenti a medio lungo termine ad altri soggetti;999;Interessi passivi su mutui e altri finanziamenti a medio lungo termine ad altri soggetti;13-06-2017;
496;1;0;"95,00";"545,16";TELECOM ITALIA SPA;ZE31381BC6;SALDO Fatt.n. 8E00366202  del 06/04/2017 Spese telefoniche utenza Sede Municipale (0499940027) - Terzo bimestre 2017;13-06-2017;4751;0;67;1;Spese correnti;3;Acquisto di beni e servizi;2;Acquisto di servizi;5;Utenze e canoni;1;Telefonia fissa;13-06-2017;
496;2;0;"212,16";"545,16";TELECOM ITALIA SPA;ZE31381BC6;SALDO Fatt.n. 8E00359141  del 06/04/2017 Spese telefoniche utenza Sede Municiaple (0499940666)  -  Terzo bimestre 2017;13-06-2017;4751;0;67;1;Spese correnti;3;Acquisto di beni e servizi;2;Acquisto di servizi;5;Utenze e canoni;1;Telefonia fissa;13-06-2017;
496;3;0;"238,00";"545,16";TELECOM ITALIA SPA;ZE31381BC6;SALDO Fatt.n. 8E00360745  del 06/04/2017 Spese telefoniche utenza Sede Municipale (0499940677) Terzo bimestre 2017;13-06-2017;4751;0;67;1;Spese correnti;3;Acquisto di beni e servizi;2;Acquisto di servizi;5;Utenze e canoni;1;Telefonia fissa;13-06-2017;
497;1;0;"60,98";"60,98";TELECOM ITALIA SPA;ZE31381BC6;SALDO Fatt.n. 8E00361199  del 06/04/2017 Spese telefoniche utenza Villa Venier - Terzo bimestre 2017;13-06-2017;1312;0;71;1;Spese correnti;3;Acquisto di beni e servizi;2;Acquisto di servizi;5;Utenze e canoni;1;Telefonia fissa;13-06-2017;
498;1;0;"197,02";"197,02";TELECOM ITALIA SPA;ZE31381BC6;SALDO Fatt.n. 8E00367335  del 06/04/2017 Spese telefoniche utenza Scuola Secondaria primo grado - Terzo bimestre 2017;13-06-2017;31801;0;70;1;Spese correnti;3;Acquisto di beni e servizi;2;Acquisto di servizi;5;Utenze e canoni;1;Telefonia fissa;13-06-2017;
499;1;0;"126,26";"126,26";TELECOM ITALIA SPA;ZE31381BC6;SALDO Fatt.n. 8E00365731  del 06/04/2017 Spese telefoniche utenza Scuola Primaria - Terzo bimestre 2017;13-06-2017;29701;0;69;1;Spese correnti;3;Acquisto di beni e servizi;2;Acquisto di servizi;5;Utenze e canoni;1;Telefonia fissa;13-06-2017;
500;1;0;"73,79";"73,79";TELECOM ITALIA SPA;ZE31381BC6;SALDO Fatt.n. 8E00366141  del 06/04/2017 Spese telefoniche utenza Scuola Infanzia - Terzo bimestre 2017;13-06-2017;28001;0;68;1;Spese correnti;3;Acquisto di beni e servizi;2;Acquisto di servizi;5;Utenze e canoni;1;Telefonia fissa;13-06-2017;
501;1;0;"114,72";"114,72";TELECOM ITALIA SPA;ZE31381BC6;SALDO Fatt.n. 8E00365840  del 06/04/2017 Spese telefoniche utenza Biblioteca - Terzo bimestre 2017;13-06-2017;3761;0;72;1;Spese correnti;3;Acquisto di beni e servizi;2;Acquisto di servizi;5;Utenze e canoni;1;Telefonia fissa;13-06-2017;
502;1;0;"22.667,60";"22.667,60";Vanzetto Veicoli Industriali Srl;Z4C1ECF9E9;SALDO Fatt.n. 3/PA  del 07/06/2017 Fornitura autocarro IVECO DAILY 35C18 TELAIO N. ZCFC35D100D397064;16-06-2017;9397;0;173;2;Spese in conto capitale;2;Investimenti fissi lordi e acquisto di terreni;1;Beni materiali;1;"Mezzi di trasporto ad uso civile, di sicurezza e ordine pubblico";1;Mezzi di trasporto stradali;16-06-2017;
525;1;0;"13.323,94";"13.323,94";DE VIZIA TRANSFER S.P.A.;6848933E4B;SALDO Fatt.n. V3-30735  del 31/05/2017 Servizio raccolta e trasporto rifiuti mese di maggio 2017;19-06-2017;5780;0;18;1;Spese correnti;3;Acquisto di beni e servizi;2;Acquisto di servizi;15;Contratti di servizio pubblico;4;Contratti di servizio per la raccolta rifiuti;19-06-2017;
526;1;0;"3.806,40";"3.806,40";GAMMA COSTRUZIONI DI AMBROSI SANDRO & C.;Z231C1C3FF;SALDO Fatt.n. 3  del 15/05/2017 Sistemazione tetto plesso scolastico;19-06-2017;11950;0;397;2;Spese in conto capitale;5;Altre spese in conto capitale;99;Altre spese in conto capitale n.a.c.;99;Altre spese in conto capitale n.a.c.;999;Altre spese in conto capitale n.a.c.;19-06-2017;
527;1;0;"401,09";"401,09";AUTOFFICINA ELETTRAUTO BARBIERO SNC DI BARBIERO ETTORE;Z371EC9CFD;SALDO Fatt.n. 2/01  del 29/05/2017 Riparazione veicolo Fiat Doblo' 1.3 JTD 16V Multijet targa DH568NN;19-06-2017;572;0;164;1;Spese correnti;3;Acquisto di beni e servizi;2;Acquisto di servizi;9;Manutenzione ordinaria e riparazioni;1;"Manutenzione ordinaria e riparazioni di mezzi di trasporto ad uso civile, di sicurezza e ordine pubblico";19-06-2017;
528;1;0;"488,00";"488,00";MOLON GERARDO;Z641E929F3;SALDO Fatt.n. 1  del 08/06/2017 Fornitura n. 13 pannelli in multistrato 125x160 per mostra;19-06-2017;780;0;158;1;Spese correnti;3;Acquisto di beni e servizi;1;Acquisto di beni;2;Altri beni di consumo;999;Altri beni e materiali di consumo n.a.c.;19-06-2017;
529;1;0;"210,44";"210,44";POSTE ITALIANE SPA;Z961438A4F;SALDO Fatt.n. 8717161079  del 01/06/2017 Fattura Elettronica relativa all'Identificativo Rendiconto 2092308181;19-06-2017;4800;0;165;1;Spese correnti;3;Acquisto di beni e servizi;2;Acquisto di servizi;16;Servizi amministrativi;2;Spese postali;19-06-2017;
530;1;0;"1.159,00";"1.159,00";GESCOP SRL;Z3B1DD2208;SALDO Fatt.n. 14/E  del 01/06/2017 AGGIORNAMENTO DATI INVENTARIO 2016;19-06-2017;790;0;103;1;Spese correnti;3;Acquisto di beni e servizi;2;Acquisto di servizi;99;Altri servizi;999;Altri servizi diversi n.a.c.;19-06-2017;
531;1;0;"249,00";"385,20";IL MATTINO DI PADOVA; ;Rinnovo abbonamento A033954 anno 2017 a "IL MATTINO DI PADOVA"  - 5 numeri;23-06-2017;3760;0;77;1;Spese correnti;3;Acquisto di beni e servizi;2;Acquisto di servizi;99;Altri servizi;999;Altri servizi diversi n.a.c.;23-06-2017;
531;2;0;"82,90";"385,20";PANINI SPA - Abbonamenti Disney; ;Abbonamento a TOPOLINO anno 2017;23-06-2017;3760;0;77;1;Spese correnti;3;Acquisto di beni e servizi;2;Acquisto di servizi;99;Altri servizi;999;Altri servizi diversi n.a.c.;23-06-2017;
531;3;0;"33,80";"385,20";PRESS- DISTRIBUZIONE STAMPA E MULTIMEDIA SRL; ;Abbonamento a FOCUS anno 2017;23-06-2017;3760;0;77;1;Spese correnti;3;Acquisto di beni e servizi;2;Acquisto di servizi;99;Altri servizi;999;Altri servizi diversi n.a.c.;23-06-2017;
531;4;0;"19,50";"385,20";SOC. GABINETTO DI LETTURA; ;Abbonamento a "Terra d'Este"  anno 2017;23-06-2017;3760;0;77;1;Spese correnti;3;Acquisto di beni e servizi;2;Acquisto di servizi;99;Altri servizi;999;Altri servizi diversi n.a.c.;23-06-2017;
532;1;0;"750,00";"750,00";CASA DI RIPOSO "A. SIMIONATI"; ;SALDO Fatt.n. 65/E  del 31/05/2017 Contributo in conto retta di ricovero per R.R. mese di maggio 2017;23-06-2017;6875;0;40;1;Spese correnti;3;Acquisto di beni e servizi;2;Acquisto di servizi;99;Altri servizi;999;Altri servizi diversi n.a.c.;23-06-2017;
533;1;0;"3.782,00";"3.782,00";Sodexo Italia Spa;64630250F4;SALDO Fatt.n. 6400021983  del 31/05/2017 Fornitura pasti scuola materna mese di maggio 2017;23-06-2017;3404;0;45;1;Spese correnti;3;Acquisto di beni e servizi;2;Acquisto di servizi;15;Contratti di servizio pubblico;6;Contratti di servizio per le mense scolastiche;23-06-2017;
534;1;0;"2.195,54";"2.195,54";Sodexo Italia Spa;64630250F4;SALDO Fatt.n. 6400021984  del 31/05/2017 Fornitura pasti scuole elementari mese di maggio 2017;23-06-2017;3406;0;46;1;Spese correnti;3;Acquisto di beni e servizi;2;Acquisto di servizi;15;Contratti di servizio pubblico;6;Contratti di servizio per le mense scolastiche;23-06-2017;
535;1;0;"449,91";"449,91";Sodexo Italia Spa;64630250F4;SALDO Fatt.n. 6400021985  del 31/05/2017 Servizio di sorveglianza refettorio mese di maggio 2017;23-06-2017;3406;0;78;1;Spese correnti;3;Acquisto di beni e servizi;2;Acquisto di servizi;15;Contratti di servizio pubblico;6;Contratti di servizio per le mense scolastiche;23-06-2017;
536;1;0;"146,40";"146,40";GRAFICHE E. GASPARI S.R.L.;Z921EB2E4F;SALDO Fatt.n. 06526  del 31/05/2017 Fornitura materiale per uffici demografici;23-06-2017;910;0;160;1;Spese correnti;3;Acquisto di beni e servizi;1;Acquisto di beni;2;Altri beni di consumo;999;Altri beni e materiali di consumo n.a.c.;23-06-2017;
537;1;0;"344,25";"344,25";Illumia S.p.A.;Z0E14167CF;SALDO Fatt.n. 5350-PE  del 18/05/2017 Fornitura energia elettrica utenza Immobile Piazzetta Martiri mese di aprile 2017  -  provv. 56;27-06-2017;1405;0;152;1;Spese correnti;3;Acquisto di beni e servizi;2;Acquisto di servizi;5;Utenze e canoni;4;Energia elettrica;27-06-2017;
538;1;0;"25,32";"1.720,42";Illumia S.p.A.;Z0E14167CF;SALDO Fatt.n. 5405-PE  del 18/05/2017 Fornitura energia elettrica utenza ill. pubblica (POD IT001E32268714) mese di aprile 2017  -  provv. 50;27-06-2017;7420;0;39;1;Spese correnti;3;Acquisto di beni e servizi;2;Acquisto di servizi;5;Utenze e canoni;4;Energia elettrica;27-06-2017;
538;2;0;"107,07";"1.720,42";Illumia S.p.A.;Z0E14167CF;SALDO Fatt.n. 5351-PE  del 18/05/2017 Fornitura energia elettrica utenza torretta Piazzetta Spolverato mese di aprile 2017  -  provv. 55;27-06-2017;7420;0;39;1;Spese correnti;3;Acquisto di beni e servizi;2;Acquisto di servizi;5;Utenze e canoni;4;Energia elettrica;27-06-2017;
538;3;0;"1.588,03";"1.720,42";Illumia S.p.A.;Z0E14167CF;ACCONTO Fatt.n. 5348-PE  del 18/05/2017 Fornitura energia elettrica utenze illuminazione pubblica periodo marzo / aprile 2017  -  provv. 52;27-06-2017;7420;0;39;1;Spese correnti;3;Acquisto di beni e servizi;2;Acquisto di servizi;5;Utenze e canoni;4;Energia elettrica;27-06-2017;
539;1;0;"999,37";"999,37";Illumia S.p.A.;Z0E14167CF;SALDO Fatt.n. 5348-PE  del 18/05/2017 Fornitura energia elettrica utenze illuminazione pubblica periodo marzo / aprile 2017  -  provv. 52;27-06-2017;7420;0;162;1;Spese correnti;3;Acquisto di beni e servizi;2;Acquisto di servizi;5;Utenze e canoni;4;Energia elettrica;27-06-2017;
540;1;0;"107,97";"427,67";Illumia S.p.A.;Z0E14167CF;SALDO Fatt.n. 5558-PE  del 18/05/2017 Fornitura energia elettrica utenza impianto sportivo Zovon mese di aprile 2017  -  provv. 53;27-06-2017;64981;0;150;1;Spese correnti;3;Acquisto di beni e servizi;2;Acquisto di servizi;5;Utenze e canoni;4;Energia elettrica;27-06-2017;
540;2;0;"319,70";"427,67";Illumia S.p.A.;Z0E14167CF;SALDO Fatt.n. 5349-PE  del 18/05/2017 Fornitura energia elettrica utenza impianto sportivo Via Marconi mese di aprile 2017  -  provv. 54;27-06-2017;64981;0;150;1;Spese correnti;3;Acquisto di beni e servizi;2;Acquisto di servizi;5;Utenze e canoni;4;Energia elettrica;27-06-2017;
541;1;0;"325,61";"325,61";Illumia S.p.A.;Z0E14167CF;SALDO Fatt.n. 5775-PE  del 18/05/2017 Fornitura energia elettrica utenza Sede Municipale mese di aprile 2017  -  provv. 49;27-06-2017;4751;0;145;1;Spese correnti;3;Acquisto di beni e servizi;2;Acquisto di servizi;5;Utenze e canoni;4;Energia elettrica;27-06-2017;
542;1;0;"200,01";"200,01";Illumia S.p.A.;Z0E14167CF;SALDO Fatt.n. 5774-PE  del 18/05/2017 Fornitura energia elettrica utenza Villa Venier (POD IT001E34674161) mese di aprile 2017  -  provv. 48;27-06-2017;1312;0;151;1;Spese correnti;3;Acquisto di beni e servizi;2;Acquisto di servizi;5;Utenze e canoni;4;Energia elettrica;27-06-2017;
543;1;0;"309,88";"309,88";Illumia S.p.A.;Z0E14167CF;ACCONTO Fatt.n. 5557-PE  del 18/05/2017 Fornitura energia elettrica utenza Polo Scolastico mese di aprile 2017  -  provv.  51;27-06-2017;28001;0;146;1;Spese correnti;3;Acquisto di beni e servizi;2;Acquisto di servizi;5;Utenze e canoni;4;Energia elettrica;27-06-2017;
544;1;0;"309,88";"309,88";Illumia S.p.A.;Z0E14167CF;ACCONTO Fatt.n. 5557-PE  del 18/05/2017 Fornitura energia elettrica utenza Polo Scolastico mese di aprile 2017  -  provv. 51;27-06-2017;29701;0;147;1;Spese correnti;3;Acquisto di beni e servizi;2;Acquisto di servizi;5;Utenze e canoni;4;Energia elettrica;27-06-2017;
545;1;0;"310,78";"310,78";Illumia S.p.A.;Z0E14167CF;SALDO Fatt.n. 5557-PE  del 18/05/2017 Fornitura energia elettrica utenza Polo Scolastico mese di aprile 2017  -  provv. 51;27-06-2017;31801;0;148;1;Spese correnti;3;Acquisto di beni e servizi;2;Acquisto di servizi;5;Utenze e canoni;4;Energia elettrica;27-06-2017;
